Inv Transaction,Supplier Name,Headserv Name,Stratdir Name,Account description,Redact Name,Paid Date, Sum of Inv Amount ,Proclass,merchant
470882,NAL LIMITED,Operations and Neighbourhoods,Operations and Neighbourhoods,General Materials,,06/01/2021," 1,286.06 ",230000,Highway Equipment & Materials
5403248,ATKINS LIMITED,(blank),(blank),Engineers - Internal Recharge,,04/01/2021," 9,370.74 ",180000,Environmental Services
5404940,Hillgate Health Group Limited,Childrens Services,Children's Services,Living With Formal Support,,04/01/2021," 1,179.36 ",-999999,Unclassifiable
5404941,Hillgate Health Group Limited,Childrens Services,Children's Services,Living With Formal Support,,04/01/2021," 1,179.36 ",-999999,Unclassifiable
5404942,Hillgate Health Group Limited,Childrens Services,Children's Services,Living With Formal Support,,04/01/2021," 1,179.36 ",-999999,Unclassifiable
5404938,Hillgate Health Group Limited,Childrens Services,Children's Services,Living With Formal Support,,04/01/2021," 1,179.36 ",-999999,Unclassifiable
5404939,Hillgate Health Group Limited,Childrens Services,Children's Services,Living With Formal Support,,04/01/2021," 1,179.36 ",-999999,Unclassifiable
5404943,Hillgate Health Group Limited,Childrens Services,Children's Services,Living With Formal Support,,04/01/2021," 1,179.36 ",-999999,Unclassifiable
5405014,ISW CSC Limited,Childrens Services,Children's Services,Living With Formal Support,,04/01/2021, 980.00 ,260000,Human Resources
5405013,ISW CSC Limited,Childrens Services,Children's Services,Living With Formal Support,,04/01/2021, 980.00 ,260000,Human Resources
5405012,ISW CSC Limited,Childrens Services,Children's Services,Living With Formal Support,,04/01/2021, 870.00 ,260000,Human Resources
5405007,ISW CSC Limited,Childrens Services,Children's Services,Living With Formal Support,,04/01/2021, 850.00 ,260000,Human Resources
5405018,ISW CSC Limited,Childrens Services,Children's Services,Living With Formal Support,,04/01/2021, 950.00 ,260000,Human Resources
5404957,Carrington West Ltd,Place,Growth,Agency Staff,,04/01/2021, 912.60 ,-999999,Unclassifiable
5401925,redacted,Childrens Services,Children's Services,Professional Consultancy Services,,04/01/2021," 1,500.00 ",280000,Legal Services
5403009,HALLIWELL HOMES,Childrens Services,Children's Services,Childrens Homes Outside Local Authority Fees,,04/01/2021," 21,235.00 ",321100,Social Community Care Supplies & Services - Children
5403008,HALLIWELL HOMES,Childrens Services,Children's Services,Childrens Homes Outside Local Authority Fees,,04/01/2021," 22,120.71 ",321100,Social Community Care Supplies & Services - Children
5403015,TELEFONICA O2 (UK) LTD,Education,Children's Services,Mobile Telephones,,04/01/2021," 1,077.00 ",270000,Information Communication Technology
5404780,ASHTON PIONEER HOMES,Place,Growth,Contributions,,04/01/2021," 2,934.75 ",329999,Social Community Care Supplies & Services
5398188,Reach Publishing Services Limited,Policy and Communications,Governance,"Marketing, Publicity and Recruitment",,04/01/2021," 2,940.37 ",908001,Public Bodies
5398190,Reach Publishing Services Limited,Policy and Communications,Governance,"Marketing, Publicity and Recruitment",,04/01/2021, 636.90 ,908001,Public Bodies
5403073,XMA LIMITED,Digital Tameside,Finance & IT,IT Equipment,,04/01/2021," 1,128.80 ",270000,Information Communication Technology
5405036,redacted,Adult Social Care,Adults,Residential Home Short Stay Fees,Redacted Supplier,04/01/2021," 1,483.97 ",321000,Social Community Care Supplies & Services - Adult
5404686,R & P PRINTERS,GMPF (FX),GMPF (FX),Printing And Stationery,,04/01/2021, 624.20 ,190000,Facilities & Management Services
470889,AGGREGATE INDUSTRIES UK LIMITED,Operations and Neighbourhoods,Operations and Neighbourhoods,General Materials,,05/01/2021," 1,317.56 ",230000,Highway Equipment & Materials
470889,EAGLE CIVIL ENGINEERING LTD,Operations and Neighbourhoods,Operations and Neighbourhoods,Sub-contractor Services,,05/01/2021," 28,565.55 ",391411,"Works - Construction, Repair & Maintenance"
470889,ELECTRICITY NORTH WEST LTD,Operations and Neighbourhoods,Operations and Neighbourhoods,Sub-contractor Services,,05/01/2021, 808.12 ,370000,Utilities
470889,FAIRWAY LANDSCAPES LTD,Operations and Neighbourhoods,Operations and Neighbourhoods,Sub-contractor Services,,05/01/2021," 20,009.00 ",399999,"Works - Construction, Repair & Maintenance"
470889,TARMAC CENTRAL LIMITED,Operations and Neighbourhoods,Operations and Neighbourhoods,General Materials,,05/01/2021," 3,571.80 ",230000,Highway Equipment & Materials
470889,WOLSELEY UK LTD,Civil Engineers,Director of Place,Debits Goods Received,,05/01/2021," 4,493.62 ",230000,Highway Equipment & Materials
470889,WOLSELEY UK LTD,Operations and Neighbourhoods,Operations and Neighbourhoods,General Materials,,05/01/2021," 3,491.77 ",230000,Highway Equipment & Materials
470889,GRAFTON MERCHANTING GB LTD,Operations and Neighbourhoods,Operations and Neighbourhoods,General Materials,,05/01/2021," 2,277.00 ",100000,Building Construction Materials
470889,BRAMHALL SURFACING LTD,Operations and Neighbourhoods,Operations and Neighbourhoods,Sub-contractor Services,,05/01/2021," 23,404.09 ",390000,"Works - Construction, Repair & Maintenance"
470889,INSTARMAC GROUP PLC,Civil Engineers,Director of Place,Debits Goods Received,,05/01/2021," 1,182.00 ",230000,Highway Equipment & Materials
470889,NORTHWEST UTILITY SOLUTIONS LTD,Operations and Neighbourhoods,Operations and Neighbourhoods,Sub-contractor Services,,05/01/2021," 14,505.00 ",370000,Utilities
470889,TRAFFIC DIRECT LTD,(blank),(blank),Highway Construction,,05/01/2021," 1,800.00 ",350000,Street & Traffic Management
470889,TRAFFIC DIRECT LTD,(blank),(blank),Traffic Signs,,05/01/2021, 800.00 ,350000,Street & Traffic Management
470889,TRAFFIC DIRECT LTD,Operations and Neighbourhoods,Operations and Neighbourhoods,Sub-contractor Services,,05/01/2021," 1,600.00 ",350000,Street & Traffic Management
470889,NU FIRE & SECURITY LTD,Operations and Neighbourhoods,Operations and Neighbourhoods,General Materials,,05/01/2021, 559.97 ,190000,Facilities & Management Services
470889,MALLATITE LTD,Operations and Neighbourhoods,Operations and Neighbourhoods,General Materials,,05/01/2021," 18,202.97 ",230000,Highway Equipment & Materials
470889,mph inspection services ltd,Engineers Client,Director of Place,Street Lighting Works,,05/01/2021," 10,501.00 ",130000,Cleaning & Janitorial
5405080,Montrose Recruitment Limited TA Montrose Living,Childrens Services,Children's Services,Living With Formal Support,,05/01/2021," 4,207.14 ",321100,Social Community Care Supplies & Services - Children
5405173,ISW CSC Limited,Childrens Services,Children's Services,Living With Formal Support,,05/01/2021," 1,160.00 ",260000,Human Resources
5405172,ISW CSC Limited,Childrens Services,Children's Services,Living With Formal Support,,05/01/2021," 1,145.00 ",260000,Human Resources
5405015,ISW CSC Limited,Childrens Services,Children's Services,Living With Formal Support,,05/01/2021," 1,520.00 ",260000,Human Resources
5405249,Andrea Stanley Social care Training,Quality and Safeguarding,Quality and Safeguarding,Training Course Costs,,05/01/2021," 1,200.00 ",-999999,Unclassifiable
5404220,MOSSLEY PRIVATE HIRE,Education,Children's Services,Transport Of Pupils,,05/01/2021," 1,645.00 ",360000,Public Transport
5404226,MOSSLEY PRIVATE HIRE,Education,Children's Services,Transport Of Pupils,,05/01/2021," 1,750.00 ",360000,Public Transport
5404227,MOSSLEY PRIVATE HIRE,Education,Children's Services,Transport Of Pupils,,05/01/2021," 1,750.00 ",360000,Public Transport
5404228,MOSSLEY PRIVATE HIRE,Education,Children's Services,Transport Of Pupils,,05/01/2021," 1,750.00 ",360000,Public Transport
5404221,MOSSLEY PRIVATE HIRE,Education,Children's Services,Transport Of Pupils,,05/01/2021," 2,100.00 ",360000,Public Transport
5404223,MOSSLEY PRIVATE HIRE,Education,Children's Services,Transport Of Pupils,,05/01/2021," 2,100.00 ",360000,Public Transport
5404224,MOSSLEY PRIVATE HIRE,Education,Children's Services,Transport Of Ola Pupils,,05/01/2021," 1,806.00 ",360000,Public Transport
5404219,MOSSLEY PRIVATE HIRE,Education,Children's Services,Transport Of Pupils,,05/01/2021, 980.00 ,360000,Public Transport
5398248,AUTISM INITIATIVES (UK),Contingency,Contingency,COVID-19 Infection Control Fund,,05/01/2021," 1,018.20 ",321100,Social Community Care Supplies & Services - Children
5404444,TAMESIDE AND GLOSSOP INTEGRATED CARE NHS FOUNDATION TRUST,Engineers Client,Director of Place,Specialist Works,,05/01/2021," 1,550.00 ",310000,Healthcare
5404308,Park Lane Minibuses LTD,Education,Children's Services,Transport Of Pupils,,05/01/2021," 1,202.50 ",360000,Public Transport
5404299,Park Lane Minibuses LTD,Education,Children's Services,Transport Of Pupils,,05/01/2021," 1,801.52 ",360000,Public Transport
5404309,Park Lane Minibuses LTD,Education,Children's Services,Transport Of Pupils,,05/01/2021," 1,609.44 ",360000,Public Transport
5404641,Park Lane Minibuses LTD,Education,Children's Services,Transport Of Pupils,,05/01/2021," 1,190.00 ",360000,Public Transport
5404301,Park Lane Minibuses LTD,Education,Children's Services,Transport Of Pupils,,05/01/2021," 1,120.00 ",360000,Public Transport
5404306,Park Lane Minibuses LTD,Operations and Neighbourhoods,Operations and Neighbourhoods,Hired Transport,,05/01/2021," 3,074.40 ",360000,Public Transport
5404310,Park Lane Minibuses LTD,Education,Children's Services,Transport Of Pupils,,05/01/2021," 1,993.60 ",360000,Public Transport
5404824,INSPIREDSPACES TAMESIDE LTD,Tameside Investment Partnership,Director of Place,Refurbishment Construction Costs,,05/01/2021," 28,772.84 ",390000,"Works - Construction, Repair & Maintenance"
5404490,Viva Minibus LTD,Education,Children's Services,Transport Of Pupils,,05/01/2021," 1,540.00 ",230000,Highway Equipment & Materials
5404564,Viva Minibus LTD,Education,Children's Services,Transport Of Pupils,,05/01/2021," 1,540.00 ",230000,Highway Equipment & Materials
5404566,Viva Minibus LTD,Education,Children's Services,Transport Of Pupils,,05/01/2021," 1,540.00 ",230000,Highway Equipment & Materials
5405234,Compass Fostering North LTD,Childrens Services,Children's Services,Foster Carer Agency Fees,,05/01/2021," 2,899.80 ",321100,Social Community Care Supplies & Services - Children
5405231,Compass Fostering North LTD,Childrens Services,Children's Services,Foster Carer Agency Fees,,05/01/2021," 3,112.77 ",321100,Social Community Care Supplies & Services - Children
5405229,Compass Fostering North LTD,Childrens Services,Children's Services,Foster Carer Agency Fees,,05/01/2021," 3,159.00 ",321100,Social Community Care Supplies & Services - Children
5405103,redacted,Education,Children's Services,Transport Of Pupils,Business Payment,05/01/2021," 1,750.00 ",UNCLASS,Unclassifiable
5405106,redacted,Education,Children's Services,Transport Of Pupils,Business Payment,05/01/2021," 1,750.00 ",UNCLASS,Unclassifiable
5405108,redacted,Education,Children's Services,Transport Of Pupils,Business Payment,05/01/2021," 1,750.00 ",UNCLASS,Unclassifiable
5405101,redacted,Education,Children's Services,Transport Of Pupils,Business Payment,05/01/2021," 2,100.00 ",UNCLASS,Unclassifiable
5405111,redacted,Education,Children's Services,Transport Of Post 16 Pupils,Business Payment,05/01/2021," 1,462.50 ",UNCLASS,Unclassifiable
5404692,TAMESIDE SPORTS TRUST,Contingency,Contingency,COVID-19 Infection Control Fund,,05/01/2021," 34,744.14 ",290000,Arts & Leisure Services
5401810,"TAMESIDE, OLDHAM AND GLOSSOP MIND",Contingency,Contingency,COVID-19 Infection Control Fund,,05/01/2021," 4,695.16 ",321000,Social Community Care Supplies & Services - Adult
5404963,MHR International UK Limited,People and Workforce Development,Governance,Computer Software,,05/01/2021," 1,512.63 ",270000,Information Communication Technology
5404948,TAMESIDE ARTS LTD,Adult Social Care,Adults,Professional Services,,05/01/2021," 3,361.92 ",290000,Arts & Leisure Services
5404155,TAMESIDE ARTS LTD,Contingency,Contingency,COVID-19 Infection Control Fund,,05/01/2021," 18,311.10 ",290000,Arts & Leisure Services
5403861,SOFTCAT LIMITED,Digital Tameside,Finance & IT,Computer Software,,13/01/2021," 4,447.50 ",270000,Information Communication Technology
5403859,SOFTCAT LIMITED,Digital Tameside,Finance & IT,Computer Software,,13/01/2021," 26,244.00 ",270000,Information Communication Technology
5409040,redacted,Digital Tameside,Finance & IT,Security Services,,22/02/2021," 1,609.78 ",270000,Information Communication Technology
5408691,The Networking People (TNP) Ltd,Digital Tameside,Finance & IT,Security Services,,04/03/2021, 600.00 ,270000,Information Communication Technology
5409172,SOFTCAT LIMITED,Digital Tameside,Finance & IT,Computer Software,,05/03/2021," 1,819.33 ",270000,Information Communication Technology
5413348,redacted,Digital Tameside,Finance & IT,Computer Software,,16/03/2021," 1,989.17 ",-999999,Unclassifiable
5410539,CARETOWER LTD,Digital Tameside,Finance & IT,Computer Software Maintenance Costs,,24/03/2021," 12,581.40 ",270000,Information Communication Technology
5411669,The Networking People (TNP) Ltd,Digital Tameside,Finance & IT,Security Services,,31/03/2021, 600.00 ,270000,Information Communication Technology
5403106,HC Assessment Ltd,Adult Social Care,Adults,Professional Services,,06/01/2021," 1,225.00 ",260000,Human Resources
5405085,Montrose Recruitment Limited TA Montrose Living,Childrens Services,Children's Services,Living With Formal Support,,06/01/2021, 682.00 ,321100,Social Community Care Supplies & Services - Children
5405082,Montrose Recruitment Limited TA Montrose Living,Childrens Services,Children's Services,Living With Formal Support,,06/01/2021," 1,162.50 ",321100,Social Community Care Supplies & Services - Children
5405084,Montrose Recruitment Limited TA Montrose Living,Childrens Services,Children's Services,Living With Formal Support,,06/01/2021, 604.50 ,321100,Social Community Care Supplies & Services - Children
5403108,APS Group,Operations and Neighbourhoods,Operations and Neighbourhoods,Professional Medical Services,,06/01/2021," 1,029.44 ",-999999,Unclassifiable
5405010,ISW CSC Limited,Childrens Services,Children's Services,Living With Formal Support,,06/01/2021," 1,160.00 ",260000,Human Resources
5403111,iCare Solutions,Adult Social Care,Adults,Homecare Fees,,06/01/2021," 15,204.37 ",310000,Healthcare
5402961,ROC Northwest Limited,Childrens Services,Children's Services,Childrens Homes Outside Local Authority Fees,,06/01/2021," 13,499.52 ",321100,Social Community Care Supplies & Services - Children
5402963,ROC Northwest Limited,Childrens Services,Children's Services,Childrens Homes Outside Local Authority Fees,,06/01/2021," 13,499.52 ",321100,Social Community Care Supplies & Services - Children
5399827,PENNINE CARE NHS TRUST,Population Health,Population Health,Professional Services,,06/01/2021," 17,416.00 ",321000,Social Community Care Supplies & Services - Adult
5403112,Zeno Ltd,Adult Social Care,Adults,Homecare Fees,,06/01/2021," 10,037.84 ",310000,Healthcare
5403115,N-Compass Northwest,Adult Social Care,Adults,Professional Services,,06/01/2021," 14,789.84 ",-999999,Unclassifiable
5405598,Carrington West Ltd,Place,Growth,Agency Staff,,06/01/2021, 772.20 ,-999999,Unclassifiable
5403116,FROSTBITE REFRIGERATION LTD,Operations and Neighbourhoods,Operations and Neighbourhoods,Other Accommodation Related Costs,,06/01/2021," 2,200.00 ",-999999,Unclassifiable
5403117,Space Solutions Limited,(blank),(blank),New Accommodation Works,,06/01/2021," 3,000.00 ",171011,Education
5403119,Wraparound Partnership,Hosted Services,Hosted Services,Professional Services,,06/01/2021, 600.00 ,-999999,Unclassifiable
5403063,The Bow Street Cafe,Place,Growth,Contributions,,06/01/2021," 2,984.80 ",-999999,Unclassifiable
5405653,The Brittania Inn,Contingency,Contingency,COVID-19 Payments - RV less than or equal to 15k,,06/01/2021," 3,202.29 ",UNCLASS,Unclassifiable
470876,NAL LIMITED,Contingency,Contingency,Plant & Equipment,,06/01/2021," 5,356.26 ",230000,Highway Equipment & Materials
5403151,TYNETEC,Adult Social Care,Adults,IT Equipment,,06/01/2021, 728.60 ,321100,Social Community Care Supplies & Services - Children
5398191,Reach Publishing Services Limited,Policy and Communications,Governance,"Marketing, Publicity and Recruitment",,06/01/2021," 4,829.44 ",908001,Public Bodies
5405097,redacted,Childrens Services,Children's Services,Childrens Homes Outside Local Authority Fees,Redacted Supplier,06/01/2021," 12,842.86 ",321100,Social Community Care Supplies & Services - Children
5405098,redacted,Childrens Services,Children's Services,Childrens Homes Outside Local Authority Fees,Redacted Supplier,06/01/2021," 12,842.86 ",321100,Social Community Care Supplies & Services - Children
5404153,COMMUNITY INTEGRATED CARE,Adult Social Care,Adults,Homecare Fees,,06/01/2021, 670.80 ,321000,Social Community Care Supplies & Services - Adult
5404154,COMMUNITY INTEGRATED CARE,Adult Social Care,Adults,Homecare Fees,,06/01/2021, 670.80 ,321000,Social Community Care Supplies & Services - Adult
5403161,INTACT PROJECTS LTD,Childrens Services,Children's Services,Living With Formal Support,,06/01/2021," 1,590.00 ",-999999,Unclassifiable
5403048,BRANAS ISAF LTD,Childrens Services,Children's Services,Childrens Homes Outside Local Authority Fees,,06/01/2021," 21,000.00 ",321100,Social Community Care Supplies & Services - Children
5403202,redacted,Childrens Services,Children's Services,Professional Services,,06/01/2021," 6,155.60 ",321000,Social Community Care Supplies & Services - Adult
5405605,Smartway Health and Social Care Limited,Adult Social Care,Adults,Homecare Fees,,06/01/2021," 5,532.40 ",321000,Social Community Care Supplies & Services - Adult
5403203,MOSSCARE HOUSING LTD,Adult Social Care,Adults,Non-Authority Accommodation Rental,,06/01/2021," 30,570.37 ",321000,Social Community Care Supplies & Services - Adult
5403208,DOCUMENT MANAGEMENT INDUSTRIES ASSOCIATION,Digital Tameside,Finance & IT,Computer Software,,06/01/2021, 957.60 ,190000,Facilities & Management Services
5403215,redacted,Adult Social Care,Adults,Homecare Fees,Redacted Supplier,06/01/2021," 1,973.12 ",321100,Social Community Care Supplies & Services - Children
5403214,redacted,Childrens Services,Children's Services,Childrens Homes Outside Local Authority Fees,Redacted Supplier,06/01/2021," 11,785.80 ",321100,Social Community Care Supplies & Services - Children
5403212,BARCHAM TREES PLC,Operations and Neighbourhoods,Operations and Neighbourhoods,General Equipment Repair & Maintenance,,06/01/2021, 932.00 ,240000,Horticultural
5403126,YORKSHIRE PURCHASING ORGANISATION,Childrens Services,Children's Services,"Fixtures, Fittings & Furniture Purchase",,06/01/2021," 1,230.80 ",170000,Education
5403206,Water Plus,Operations and Neighbourhoods,Operations and Neighbourhoods,Water (Metered and Rates),,06/01/2021, 615.47 ,370000,Utilities
5405867,ASDA Business,(blank),(blank),Food & Refreshments,,07/01/2021," 196,761.60 ",321000,Social Community Care Supplies & Services - Adult
5405856,ASDA Business,(blank),(blank),Food & Refreshments,,07/01/2021," 3,225.60 ",321000,Social Community Care Supplies & Services - Adult
5404761,WORLDPAY,Finance,Finance & IT,National Giro,,07/01/2021," 11,053.84 ",200000,Financial Services
5404760,CAPITA - NNDR REFUNDS,(blank),(blank),COVID-19 Christmas Support Payment,,07/01/2021," 39,000.00 ",400000,Non 3rd Party spend  
5404760,CAPITA - NNDR REFUNDS,Contingency,Contingency,COVID-19 Payments - RV greater than 15k and less than 51k,,07/01/2021," 6,000.00 ",400000,Non 3rd Party spend  
5404760,CAPITA - NNDR REFUNDS,Contingency,Contingency,COVID-19 Payments - RV greater than or equal to 51k,,07/01/2021," 9,000.00 ",400000,Non 3rd Party spend  
5404760,CAPITA - NNDR REFUNDS,Contingency,Contingency,COVID-19 Payments - RV less than or equal to 15k,,07/01/2021," 25,250.72 ",400000,Non 3rd Party spend  
5405594,CAPITA - NNDR REFUNDS,(blank),(blank),COVID-19 Christmas Support Payment,,07/01/2021," 8,000.00 ",400000,Non 3rd Party spend  
5405594,CAPITA - NNDR REFUNDS,Contingency,Contingency,COVID-19 Payments - RV greater than 15k and less than 51k,,07/01/2021," 4,000.00 ",400000,Non 3rd Party spend  
5405594,CAPITA - NNDR REFUNDS,Contingency,Contingency,COVID-19 Payments - RV greater than or equal to 51k,,07/01/2021," 6,000.00 ",400000,Non 3rd Party spend  
5405594,CAPITA - NNDR REFUNDS,Contingency,Contingency,COVID-19 Payments - RV less than or equal to 15k,,07/01/2021," 75,371.01 ",400000,Non 3rd Party spend  
5405870,AD HOC CHAPS PAYMENT,(blank),(blank),Food & Refreshments,,07/01/2021," 106,360.00 ",400002,Chaps Payments
5405847,AD HOC CHAPS PAYMENT,Multiple Heads of Service,Multiple Strategic Directorates,Debits Superann Local Govt,,07/01/2021," 521,470.18 ",400002,Chaps Payments
5405847,AD HOC CHAPS PAYMENT,(blank),(blank),Debits Superann Local Govt,,07/01/2021," 1,193.33 ",400002,Chaps Payments
5405580,AD HOC CHAPS PAYMENT,(blank),(blank),Grants to Organisations,,07/01/2021," 7,440.00 ",400002,Chaps Payments
5405578,AD HOC CHAPS PAYMENT,(blank),(blank),Grants to Organisations,,07/01/2021," 7,350.00 ",400002,Chaps Payments
5405584,AD HOC CHAPS PAYMENT,(blank),(blank),Grants to Organisations,,07/01/2021," 5,000.00 ",400002,Chaps Payments
5405585,AD HOC CHAPS PAYMENT,(blank),(blank),Grants to Organisations,,07/01/2021," 4,261.00 ",400002,Chaps Payments
5405575,AD HOC CHAPS PAYMENT,Multiple Heads of Service,Multiple Strategic Directorates,Salaries & Wages Advances(Hold),,07/01/2021," 1,008.10 ",400002,Chaps Payments
5405839,AD HOC CHAPS PAYMENT,Multiple Heads of Service,Multiple Strategic Directorates,Salaries & Wages Advances(Hold),,07/01/2021," 1,723.04 ",400002,Chaps Payments
5405841,AD HOC CHAPS PAYMENT,Multiple Heads of Service,Multiple Strategic Directorates,Salaries & Wages Advances(Hold),,07/01/2021," 1,308.00 ",400002,Chaps Payments
5405843,AD HOC CHAPS PAYMENT,Contingency,Contingency,Other Accommodation Related Costs,,07/01/2021," 2,400.00 ",400002,Chaps Payments
5405846,AD HOC CHAPS PAYMENT,Multiple Heads of Service,Multiple Strategic Directorates,Salaries & Wages Advances(Hold),,07/01/2021, 560.00 ,400002,Chaps Payments
5405586,AD HOC CHAPS PAYMENT,Operations and Neighbourhoods,Operations and Neighbourhoods,Other Accommodation Related Costs,,07/01/2021," 2,522.00 ",400002,Chaps Payments
5405845,AD HOC CHAPS PAYMENT,Operations and Neighbourhoods,Operations and Neighbourhoods,Other Accommodation Related Costs,,07/01/2021, 850.00 ,400002,Chaps Payments
5405863,AD HOC CHAPS PAYMENT,Operations and Neighbourhoods,Operations and Neighbourhoods,Grants to Organisations,,07/01/2021," 2,000.00 ",400002,Chaps Payments
5405583,AD HOC CHAPS PAYMENT,(blank),(blank),Grants to Organisations,,07/01/2021," 4,320.00 ",400002,Chaps Payments
5405853,REDIWELD RUBBER & PLASTICS LIMITED,(blank),(blank),General Materials,,07/01/2021," 10,190.00 ",-999999,Unclassifiable
5405855,REDIWELD RUBBER & PLASTICS LIMITED,(blank),(blank),General Materials,,07/01/2021," 13,854.00 ",-999999,Unclassifiable
5405854,REDIWELD RUBBER & PLASTICS LIMITED,(blank),(blank),General Materials,,07/01/2021," 26,498.00 ",-999999,Unclassifiable
3250794,BURNT TREE GROUP LIMITED,Operations and Neighbourhoods,Operations and Neighbourhoods,Additional Hire,,07/01/2021," 7,986.40 ",380000,Vehicle Management
3250794,DENNIS EAGLE LTD,Transport,Director of Place,Debits Goods Received,,07/01/2021," 1,440.80 ",380000,Vehicle Management
3250794,DENNIS EAGLE LTD,Operations and Neighbourhoods,Operations and Neighbourhoods,General Materials,,07/01/2021," 1,691.17 ",380000,Vehicle Management
3250794,DENNIS EAGLE LTD,Operations and Neighbourhoods,Operations and Neighbourhoods,Sub-contractor Services,,07/01/2021," 7,943.53 ",380000,Vehicle Management
3250794,G B OILS TA CARLTON FUELS,Transport,Director of Place,Diesel Fuel,,07/01/2021," 21,185.30 ",380000,Vehicle Management
3250794,STOCKPORT TRUCK CENTRE LTD,Operations and Neighbourhoods,Operations and Neighbourhoods,Vehicle Inspection/Testing Costs,,07/01/2021," 3,000.00 ",260000,Human Resources
3250794,Teletrac Navman UK LTD (in corporating Navman Wireless UK LTD),Operations and Neighbourhoods,Operations and Neighbourhoods,General Equipment Repair & Maintenance,,07/01/2021," 5,385.33 ",360000,Public Transport
3250794,MAN TRUCK AND BUS UK LIMITED,Operations and Neighbourhoods,Operations and Neighbourhoods,Sub-contractor Services,,07/01/2021," 1,253.25 ",-999999,Unclassifiable
3250794,BRENNTAG UK LIMITED,Transport,Director of Place,Fuel / Ad Blu,,07/01/2021, 844.08 ,130000,Cleaning & Janitorial
3250794,LEEDS COMMERCIAL LTD T/A LC VEHICLE HIRE,Operations and Neighbourhoods,Operations and Neighbourhoods,Additional Hire,,07/01/2021," 6,510.00 ",380000,Vehicle Management
3250794,TRUCTYRE ATS,Operations and Neighbourhoods,Operations and Neighbourhoods,Tyre Costs,,07/01/2021, 676.38 ,380000,Vehicle Management
3250794,RIVERSIDE TRUCK RENTAL LIMITED,Operations and Neighbourhoods,Operations and Neighbourhoods,Additional Hire,,07/01/2021," 8,234.00 ",380000,Vehicle Management
3250794,PETER DOUGLASS PLATFORMS,Operations and Neighbourhoods,Operations and Neighbourhoods,Additional Hire,,07/01/2021," 1,120.00 ",380000,Vehicle Management
3250794,MOTUS COMMERCIALS (OLDHAM),Operations and Neighbourhoods,Operations and Neighbourhoods,General Materials,,07/01/2021," 1,096.84 ",380000,Vehicle Management
3250794,HTF TYRE SERVICES LTD,Operations and Neighbourhoods,Operations and Neighbourhoods,Tyre Costs,,07/01/2021, 524.55 ,380000,Vehicle Management
5399829,PENNINE CARE NHS TRUST,Population Health,Population Health,Professional Services,,07/01/2021," 87,632.00 ",321000,Social Community Care Supplies & Services - Adult
5405781,redacted,Childrens Services,Children's Services,Living With Formal Support,,07/01/2021, 710.68 ,-999999,Unclassifiable
5405631,Pure Care Homes Ltd,Childrens Services,Children's Services,Childrens Homes Outside Local Authority Fees,,07/01/2021," 6,342.84 ",321000,Social Community Care Supplies & Services - Adult
5405325,Avant Healthcare Services,Adult Social Care,Adults,Homecare Fees,,07/01/2021, 506.60 ,321000,Social Community Care Supplies & Services - Adult
5403273,SEASHELL TRUST,Childrens Services,Children's Services,Homecare Fees,,07/01/2021," 2,054.00 ",321000,Social Community Care Supplies & Services - Adult
5403274,SEASHELL TRUST,Childrens Services,Children's Services,Homecare Fees,,07/01/2021," 1,105.00 ",321000,Social Community Care Supplies & Services - Adult
5403276,SEASHELL TRUST,Childrens Services,Children's Services,Homecare Fees,,07/01/2021," 1,898.00 ",321000,Social Community Care Supplies & Services - Adult
5403280,CARE QUALITY COMMISSION,Adult Social Care,Adults,Food & Refreshments,,07/01/2021," 10,361.00 ",200000,Financial Services
5403302,ALPHA BIOLABS,Childrens Services,Children's Services,Professional Medical Services,,07/01/2021, 504.00 ,180000,Environmental Services
5403207,THE GUINNESS PARTNERSHIP LTD,Adult Social Care,Adults,Non-Authority Accommodation Rental,,07/01/2021," 1,433.81 ",250000,Housing Management
5403209,THE GUINNESS PARTNERSHIP LTD,Adult Social Care,Adults,Non-Authority Accommodation Rental,,07/01/2021," 4,986.80 ",250000,Housing Management
5403334,CITY LIFT SERVICES (NW) LTD,Adult Social Care,Adults,General Equipment Repair & Maintenance,,07/01/2021, 945.00 ,390000,"Works - Construction, Repair & Maintenance"
5403343,ORACLE CARE LTD,Childrens Services,Children's Services,Childrens Homes Outside Local Authority Fees,,07/01/2021," 20,150.00 ",321100,Social Community Care Supplies & Services - Children
5405069,INSPIREDSPACES TAMESIDE LTD,Asset & Investment Partnership Management,Growth,PFI FM Fees and Insurance Costs,,07/01/2021," 32,136.67 ",390000,"Works - Construction, Repair & Maintenance"
5405066,INSPIREDSPACES TAMESIDE LTD,Asset & Investment Partnership Management,Growth,PFI FM Fees and Insurance Costs,,07/01/2021," 38,795.98 ",390000,"Works - Construction, Repair & Maintenance"
5405070,INSPIREDSPACES TAMESIDE LTD,Cultural and Customer Services,"Community,Environmental,Adult and Health Services",New Build Construction Costs,,07/01/2021," 106,215.05 ",390000,"Works - Construction, Repair & Maintenance"
5405068,INSPIREDSPACES TAMESIDE LTD,(blank),(blank),New Accommodation Works,,07/01/2021," 59,860.46 ",390000,"Works - Construction, Repair & Maintenance"
5405067,INSPIREDSPACES TAMESIDE LTD,Place,Growth,Facilities Management Services,,07/01/2021," 342,612.74 ",390000,"Works - Construction, Repair & Maintenance"
5405067,INSPIREDSPACES TAMESIDE LTD,Place,Growth,Fees,,07/01/2021," 2,740.90 ",390000,"Works - Construction, Repair & Maintenance"
5403359,UK FOSTERING LTD,Childrens Services,Children's Services,Foster Carer Agency Fees,,07/01/2021," 3,196.20 ",321100,Social Community Care Supplies & Services - Children
5403361,UK FOSTERING LTD,Childrens Services,Children's Services,Foster Carer Agency Fees,,07/01/2021," 3,297.90 ",321100,Social Community Care Supplies & Services - Children
5405842,The Shed Tameside,Contingency,Contingency,COVID-19 Infection Control Fund,,07/01/2021," 4,695.15 ",321000,Social Community Care Supplies & Services - Adult
5403363,Target Psychology Limited,Childrens Services,Children's Services,Professional Child Services,,07/01/2021, 798.25 ,280000,Legal Services
5403362,Target Psychology Limited,Childrens Services,Children's Services,Professional Child Services,,07/01/2021, 780.00 ,280000,Legal Services
5405604,Smartway Health and Social Care Limited,Adult Social Care,Adults,Homecare Fees,,07/01/2021," 5,605.93 ",321000,Social Community Care Supplies & Services - Adult
5403221,Northern Community Pathways Limited,Childrens Services,Children's Services,Living With Formal Support,,07/01/2021," 12,000.00 ",321100,Social Community Care Supplies & Services - Children
5403372,ARCO LIMITED,Operations and Neighbourhoods,Operations and Neighbourhoods,Protective Clothing,,07/01/2021," 2,712.04 ",140000,Clothing
5404334,CREATIVE SUPPORT LTD,Adult Social Care,Adults,Residential Home Long Stay Fees,,07/01/2021," 1,817.20 ",321000,Social Community Care Supplies & Services - Adult
5403386,NORTH WEST EMPLOYERS,Hosted Services,Hosted Services,Professional Services,,07/01/2021," 28,702.80 ",260000,Human Resources
5403388,PHOENIX SOFTWARE LTD,GMPF (FX),GMPF (FX),Computer Software,,07/01/2021, 658.38 ,270000,Information Communication Technology
5405196,redacted,Operations and Neighbourhoods,Operations and Neighbourhoods,Hired Transport,Business Payment,08/01/2021," 1,978.00 ",360000,Public Transport
5405194,redacted,Operations and Neighbourhoods,Operations and Neighbourhoods,Hired Transport,Business Payment,08/01/2021, 945.00 ,360000,Public Transport
5404955,Eurovia infrastructure Ltd,District Assemblies,"Community,Environmental,Adult and Health Services",Engineers -External,,08/01/2021," 77,146.08 ",150000,Consultancy
5403397,Fairfield Care Services,Adult Social Care,Adults,Homecare Fees,,08/01/2021," 2,010.40 ",321000,Social Community Care Supplies & Services - Adult
5403555,The Compost Bag Company Ltd,Operations and Neighbourhoods,Operations and Neighbourhoods,Purchase Plastic Sacks,,08/01/2021," 6,030.00 ",182014,Environmental Services
5403759,Capita Resourcing Ltd trading as Veredus,Childrens Services,Children's Services,Agency Staff,,08/01/2021," 1,370.00 ",-999999,Unclassifiable
5403763,Southway Housing Trust,Population Health,Population Health,Contributions,,08/01/2021," 4,000.08 ",290000,Arts & Leisure Services
5405828,ISW CSC Limited,Childrens Services,Children's Services,Living With Formal Support,,08/01/2021," 1,250.00 ",260000,Human Resources
5405831,ISW CSC Limited,Childrens Services,Children's Services,Living With Formal Support,,08/01/2021," 1,250.00 ",260000,Human Resources
5405823,ISW CSC Limited,Childrens Services,Children's Services,Living With Formal Support,,08/01/2021," 1,250.00 ",260000,Human Resources
5405830,ISW CSC Limited,Childrens Services,Children's Services,Living With Formal Support,,08/01/2021," 1,160.00 ",260000,Human Resources
5405826,ISW CSC Limited,Childrens Services,Children's Services,Living With Formal Support,,08/01/2021," 1,070.00 ",260000,Human Resources
5403429,YOUNG PEOPLE FIRST LIMITED,Childrens Services,Children's Services,Living With Formal Support,,08/01/2021, 850.00 ,321100,Social Community Care Supplies & Services - Children
5403401,YOUNG PEOPLE FIRST LIMITED,Childrens Services,Children's Services,Living With Formal Support,,08/01/2021, 850.00 ,321100,Social Community Care Supplies & Services - Children
5403400,YOUNG PEOPLE FIRST LIMITED,Childrens Services,Children's Services,Living With Formal Support,,08/01/2021," 2,730.00 ",321100,Social Community Care Supplies & Services - Children
5403580,CFS CARE LIMITED,Childrens Services,Children's Services,Living With Formal Support,,08/01/2021," 4,871.43 ",321100,Social Community Care Supplies & Services - Children
5403581,CFS CARE LIMITED,Childrens Services,Children's Services,Living With Formal Support,,08/01/2021," 1,257.14 ",321100,Social Community Care Supplies & Services - Children
5403410,AFFINITY WORKFORCE SOLUTIONS LIMITED T/A Monarch Education,Education,Children's Services,Independent School Fees,,08/01/2021, 600.00 ,170000,Education
5403558,PENNINE CARE NHS TRUST,Population Health,Population Health,Professional Services,,08/01/2021," 8,437.00 ",321000,Social Community Care Supplies & Services - Adult
5403557,PENNINE CARE NHS TRUST,Population Health,Population Health,Professional Services,,08/01/2021," 87,632.00 ",321000,Social Community Care Supplies & Services - Adult
5403559,PENNINE CARE NHS TRUST,Population Health,Population Health,Professional Services,,08/01/2021," 17,416.00 ",321000,Social Community Care Supplies & Services - Adult
5403418,G2V Recruitment Group Limited t/a Vivid Resourcing,Place,Growth,Agency Staff,,08/01/2021," 2,000.00 ",280000,Legal Services
5403750,Rite Directions Ltd,Childrens Services,Children's Services,Living With Formal Support,,08/01/2021," 3,214.20 ",390000,"Works - Construction, Repair & Maintenance"
5405914,Tameside South and Longdendale Foodbank,(blank),(blank),Grants to Organisations,,08/01/2021," 2,550.00 ",400000,Non 3rd Party spend  
5403582,KEYS PCE LTD,Education,Children's Services,Independent School Fees,,08/01/2021," 11,542.00 ",321100,Social Community Care Supplies & Services - Children
5403586,KEYS PCE LTD,Education,Children's Services,Independent School Fees,,08/01/2021," 11,542.00 ",321100,Social Community Care Supplies & Services - Children
5403587,KEYS PCE LTD,Education,Children's Services,Independent School Fees,,08/01/2021," 11,542.00 ",321100,Social Community Care Supplies & Services - Children
5403583,KEYS PCE LTD,Education,Children's Services,Independent School Fees,,08/01/2021," 11,550.00 ",321100,Social Community Care Supplies & Services - Children
5403584,KEYS PCE LTD,Education,Children's Services,Independent School Fees,,08/01/2021," 11,020.00 ",321100,Social Community Care Supplies & Services - Children
5403589,Stepping Stone Projects,Childrens Services,Children's Services,Living With Formal Support,,08/01/2021," 1,990.40 ",-999999,Unclassifiable
5403796,R&L ESTATES LIMITED,Operations and Neighbourhoods,Operations and Neighbourhoods,Other Accommodation Related Costs,,08/01/2021," 3,090.14 ",202000,Financial Services
5403816,redacted,Operations and Neighbourhoods,Operations and Neighbourhoods,Non-Authority Accommodation Rental,,08/01/2021," 5,250.00 ",202000,Financial Services
5403591,Digital Gaps (Public Sector) Limited,Hosted Services,Hosted Services,Professional Services,,08/01/2021," 2,200.00 ",-999999,Unclassifiable
5402161,Gladstone Grooming Ltd,Place,Growth,Contributions,,08/01/2021," 1,500.00 ",400000,Non 3rd Party spend  
5403561,ID MANAGEMENT SYSTEMS,Operations and Neighbourhoods,Operations and Neighbourhoods,Professional Services,,08/01/2021, 699.00 ,190000,Facilities & Management Services
5405076,NSL LIMITED,Operations and Neighbourhoods,Operations and Neighbourhoods,General Materials,,08/01/2021," 49,295.03 ",350000,Street & Traffic Management
5403423,FOSTERING SOLUTIONS LTD,Childrens Services,Children's Services,Foster Carer Agency Fees,,08/01/2021," 3,302.52 ",321000,Social Community Care Supplies & Services - Adult
5403421,FOSTERING SOLUTIONS LTD,Childrens Services,Children's Services,Foster Carer Agency Fees,,08/01/2021," 2,987.11 ",321000,Social Community Care Supplies & Services - Adult
5403422,FOSTERING SOLUTIONS LTD,Childrens Services,Children's Services,Foster Carer Agency Fees,,08/01/2021," 2,987.11 ",321000,Social Community Care Supplies & Services - Adult
5403420,FOSTERING SOLUTIONS LTD,Childrens Services,Children's Services,Foster Carer Agency Fees,,08/01/2021," 3,344.64 ",321000,Social Community Care Supplies & Services - Adult
5403419,FOSTERING SOLUTIONS LTD,Childrens Services,Children's Services,Foster Carer Agency Fees,,08/01/2021," 2,924.09 ",321000,Social Community Care Supplies & Services - Adult
5403424,FOSTERING SOLUTIONS LTD,Childrens Services,Children's Services,Foster Carer Agency Fees,,08/01/2021," 2,924.09 ",321000,Social Community Care Supplies & Services - Adult
5403425,FOSTERING SOLUTIONS LTD,Childrens Services,Children's Services,Foster Carer Agency Fees,,08/01/2021," 3,144.33 ",321000,Social Community Care Supplies & Services - Adult
5403570,TRANSPORT FOR GREATER MANCHESTER,(blank),(blank),Professional Consultancy Services,,08/01/2021," 1,543.48 ",360000,Public Transport
5403572,AUTISM INITIATIVES (UK),Adult Social Care,Adults,Homecare Fees,,08/01/2021," 2,899.68 ",321100,Social Community Care Supplies & Services - Children
5403576,AUTISM INITIATIVES (UK),Adult Social Care,Adults,Homecare Fees,,08/01/2021," 2,899.68 ",321100,Social Community Care Supplies & Services - Children
5403571,AUTISM INITIATIVES (UK),Adult Social Care,Adults,Homecare Fees,,08/01/2021, 908.28 ,321100,Social Community Care Supplies & Services - Children
5403452,Randstad Public Services Limited,Individual Schools Budget,Children's Services,Agency Staff,,08/01/2021, 508.50 ,170000,Education
5403448,Randstad Public Services Limited,Individual Schools Budget,Children's Services,Agency Staff,,08/01/2021, 630.00 ,170000,Education
5403604,Randstad Public Services Limited,Education,Children's Services,Agency Staff,,08/01/2021, 515.25 ,170000,Education
5403454,Randstad Public Services Limited,Individual Schools Budget,Children's Services,Agency Staff,,08/01/2021, 520.00 ,170000,Education
5403603,Randstad Public Services Limited,Education,Children's Services,Agency Staff,,08/01/2021, 572.50 ,170000,Education
5405924,HATTERSLEY FORUM COMMUNITY ASSOCIATION,Adult Social Care,Adults,Voluntary Organisations Fees,,08/01/2021," 1,320.00 ",-999999,Unclassifiable
5406077,TURNING POINT SERVICES LIMITED,Adult Social Care,Adults,Homecare Fees,,08/01/2021," 14,357.08 ",321000,Social Community Care Supplies & Services - Adult
5405816,FUSION CARE,Adult Social Care,Adults,Homecare Fees,,08/01/2021," 2,780.00 ",321100,Social Community Care Supplies & Services - Children
5405817,FUSION CARE,Adult Social Care,Adults,Homecare Fees,,08/01/2021," 2,380.00 ",321100,Social Community Care Supplies & Services - Children
5405815,FUSION CARE,Adult Social Care,Adults,Residential Home Long Stay Fees,,08/01/2021," 9,845.11 ",321100,Social Community Care Supplies & Services - Children
5403585,G4S CASH SOLUTIONS (UK) LIMITED,Finance,Finance & IT,Security Services,,08/01/2021, 659.62 ,190000,Facilities & Management Services
5403455,CAUSEWAY TECHNOLOGIES LTD,Operations and Neighbourhoods,Operations and Neighbourhoods,Computer Software,,08/01/2021," 1,344.09 ",270000,Information Communication Technology
5403673,LINK ASSET SERVICES,Finance,Finance & IT,Professional Services,,08/01/2021," 7,550.00 ",200000,Financial Services
5404455,Inspired Spaces (ProjectCo1) LTD,Asset & Investment Partnership Management,Growth,PFI FM Fees and Insurance Costs,,08/01/2021," 2,062.23 ",390000,"Works - Construction, Repair & Maintenance"
5403607,PROFILE SECURITY SERVICES LIMITED,Operations and Neighbourhoods,Operations and Neighbourhoods,General Materials,,08/01/2021," 5,924.10 ",190000,Facilities & Management Services
5403490,The Pathways Group Ltd,Childrens Services,Children's Services,Living With Formal Support,,08/01/2021," 5,753.57 ",321000,Social Community Care Supplies & Services - Adult
5404457,THE SYLVIA SWIFFIN TRUST,Adult Social Care,Adults,Voluntary Organisations Fees,,08/01/2021," 5,750.00 ",908001,Public Bodies
5403613,QUADRANT SECURITY GROUP LTD,Operations and Neighbourhoods,Operations and Neighbourhoods,Professional Services,,08/01/2021, 503.00 ,190000,Facilities & Management Services
5403616,ACORN CARE & EDUCATION LTD (SALES),Education,Children's Services,Independent School Fees,,08/01/2021," 4,485.25 ",321100,Social Community Care Supplies & Services - Children
5403614,ACORN CARE & EDUCATION LTD (SALES),Education,Children's Services,Independent School Fees,,08/01/2021," 17,100.00 ",321100,Social Community Care Supplies & Services - Children
5403333,CITY LIFT SERVICES (NW) LTD,Adult Social Care,Adults,General Equipment Repair & Maintenance,,08/01/2021," 1,165.00 ",390000,"Works - Construction, Repair & Maintenance"
5403844,GRANART LIMITED,Operations and Neighbourhoods,Operations and Neighbourhoods,Plaques,,08/01/2021," 2,333.00 ",120000,Cemetery & Crematorium
5403502,CIPFA - PENNA (PENNA PLC),Place,Growth,Recruitment Campaign,,08/01/2021," 14,400.00 ",260000,Human Resources
5403505,BARNARDO SERVICES LIMITED,Childrens Services,Children's Services,Professional Services,,08/01/2021," 18,555.83 ",321100,Social Community Care Supplies & Services - Children
5403507,BARNARDO SERVICES LIMITED,Childrens Services,Children's Services,Professional Services,,08/01/2021," 18,555.83 ",321100,Social Community Care Supplies & Services - Children
5403628,PRIME ACTIVE COMMUNITIES CIC,Operations and Neighbourhoods,Operations and Neighbourhoods,Grants to Organisations,,08/01/2021," 7,000.00 ",321100,Social Community Care Supplies & Services - Children
5403627,PRIME ACTIVE COMMUNITIES CIC,Operations and Neighbourhoods,Operations and Neighbourhoods,Grants to Organisations,,08/01/2021," 10,000.00 ",321100,Social Community Care Supplies & Services - Children
5403442,DHL Parcel UK Ltd (UK Mail),Exchequer,Governance,Printing And Stationery,,08/01/2021," 2,621.71 ",300000,Mail Services
5403885,SMS Coaching LTD,Education,Children's Services,Non-Maintained School Fees,,08/01/2021," 7,400.00 ",-999999,Unclassifiable
5405151,Hyde Accessible Transport Limited,Education,Children's Services,Transport Of Pupils,,08/01/2021," 2,100.00 ",360000,Public Transport
5405135,Hyde Accessible Transport Limited,Operations and Neighbourhoods,Operations and Neighbourhoods,Hired Transport,,08/01/2021," 1,530.00 ",360000,Public Transport
5405119,Hyde Accessible Transport Limited,Education,Children's Services,Transport Of Ola Pupils,,08/01/2021," 1,295.00 ",360000,Public Transport
5405138,Hyde Accessible Transport Limited,Education,Children's Services,Transport Of Pupils,,08/01/2021," 1,400.00 ",360000,Public Transport
5405143,Hyde Accessible Transport Limited,Education,Children's Services,Transport Of Pupils,,08/01/2021," 1,400.00 ",360000,Public Transport
5405161,Hyde Accessible Transport Limited,Education,Children's Services,Transport Of Pupils,,08/01/2021," 1,400.00 ",360000,Public Transport
5405104,Hyde Accessible Transport Limited,Education,Children's Services,Transport Of Pupils,,08/01/2021," 1,400.00 ",360000,Public Transport
5405130,Hyde Accessible Transport Limited,Education,Children's Services,Transport Of Post 16 Pupils,,08/01/2021," 1,125.00 ",360000,Public Transport
5405152,Hyde Accessible Transport Limited,Education,Children's Services,Transport Of Post 16 Pupils,,08/01/2021," 1,170.00 ",360000,Public Transport
5405121,Hyde Accessible Transport Limited,Operations and Neighbourhoods,Operations and Neighbourhoods,Hired Transport,,08/01/2021, 720.00 ,360000,Public Transport
5405117,Hyde Accessible Transport Limited,Education,Children's Services,Transport Of Pupils,,08/01/2021," 1,575.00 ",360000,Public Transport
5405127,Hyde Accessible Transport Limited,Education,Children's Services,Transport Of Pupils,,08/01/2021," 1,575.00 ",360000,Public Transport
5405154,Hyde Accessible Transport Limited,Education,Children's Services,Transport Of Pupils,,08/01/2021," 1,575.00 ",360000,Public Transport
5405168,Hyde Accessible Transport Limited,Education,Children's Services,Transport Of Post 16 Pupils,,08/01/2021," 1,575.00 ",360000,Public Transport
5405145,Hyde Accessible Transport Limited,Education,Children's Services,Transport Of Pupils,,08/01/2021," 1,575.00 ",360000,Public Transport
5405147,Hyde Accessible Transport Limited,Education,Children's Services,Transport Of Pupils,,08/01/2021," 1,750.00 ",360000,Public Transport
5405162,Hyde Accessible Transport Limited,Education,Children's Services,Hired Transport,,08/01/2021," 1,750.00 ",360000,Public Transport
5405153,Hyde Accessible Transport Limited,Education,Children's Services,Transport Of Pupils,,08/01/2021," 1,750.00 ",360000,Public Transport
5405157,Hyde Accessible Transport Limited,Education,Children's Services,Transport Of Pupils,,08/01/2021," 1,750.00 ",360000,Public Transport
5405159,Hyde Accessible Transport Limited,Education,Children's Services,Transport Of Pupils,,08/01/2021," 1,750.00 ",360000,Public Transport
5405116,Hyde Accessible Transport Limited,Education,Children's Services,Transport Of Pupils,,08/01/2021," 1,750.00 ",360000,Public Transport
5405137,Hyde Accessible Transport Limited,Operations and Neighbourhoods,Operations and Neighbourhoods,Hired Transport,,08/01/2021," 1,750.00 ",360000,Public Transport
5405149,Hyde Accessible Transport Limited,Education,Children's Services,Transport Of Pupils,,08/01/2021," 1,750.00 ",360000,Public Transport
5405160,Hyde Accessible Transport Limited,Education,Children's Services,Transport Of Pupils,,08/01/2021," 1,988.00 ",360000,Public Transport
5405122,Hyde Accessible Transport Limited,Education,Children's Services,Transport Of Ola Pupils,,08/01/2021," 1,974.00 ",360000,Public Transport
5405136,Hyde Accessible Transport Limited,Operations and Neighbourhoods,Operations and Neighbourhoods,Hired Transport,,08/01/2021," 1,974.00 ",360000,Public Transport
5405146,Hyde Accessible Transport Limited,Education,Children's Services,Transport Of Ola Pupils,,08/01/2021," 1,890.00 ",360000,Public Transport
5405118,Hyde Accessible Transport Limited,Education,Children's Services,Transport Of Ola Pupils,,08/01/2021," 1,890.00 ",360000,Public Transport
5405107,Hyde Accessible Transport Limited,Education,Children's Services,Transport Of Ola Pupils,,08/01/2021," 1,316.00 ",360000,Public Transport
5405142,Hyde Accessible Transport Limited,Education,Children's Services,Transport Of Post 16 Pupils,,08/01/2021, 910.00 ,360000,Public Transport
5405170,Hyde Accessible Transport Limited,Education,Children's Services,Transport Of Pupils,,08/01/2021, 735.00 ,360000,Public Transport
5405128,Hyde Accessible Transport Limited,Education,Children's Services,Transport Of Pupils,,08/01/2021, 735.00 ,360000,Public Transport
5405131,Hyde Accessible Transport Limited,Education,Children's Services,Transport Of Pupils,,08/01/2021, 735.00 ,360000,Public Transport
5405129,Hyde Accessible Transport Limited,Education,Children's Services,Transport Of Ola Pupils,,08/01/2021," 2,219.00 ",360000,Public Transport
5405099,Hyde Accessible Transport Limited,Education,Children's Services,Transport Of Post 16 Pupils,,08/01/2021," 1,462.50 ",360000,Public Transport
5405102,Hyde Accessible Transport Limited,Education,Children's Services,Transport Of Post 16 Pupils,,08/01/2021," 1,462.50 ",360000,Public Transport
5405144,Hyde Accessible Transport Limited,Operations and Neighbourhoods,Operations and Neighbourhoods,Hired Transport,,08/01/2021, 600.00 ,360000,Public Transport
5405114,Hyde Accessible Transport Limited,Education,Children's Services,Transport Of Pupils,,08/01/2021, 980.00 ,360000,Public Transport
5405140,Hyde Accessible Transport Limited,Education,Children's Services,Transport Of Pupils,,08/01/2021, 980.00 ,360000,Public Transport
5405141,Hyde Accessible Transport Limited,Education,Children's Services,Transport Of Pupils,,08/01/2021, 980.00 ,360000,Public Transport
5405150,Hyde Accessible Transport Limited,Education,Children's Services,Transport Of Pupils,,08/01/2021, 980.00 ,360000,Public Transport
5405169,Hyde Accessible Transport Limited,Education,Children's Services,Transport Of Post 16 Pupils,,08/01/2021, 975.00 ,360000,Public Transport
5405163,Hyde Accessible Transport Limited,Education,Children's Services,Transport Of Post 16 Pupils,,08/01/2021, 975.00 ,360000,Public Transport
5405164,Hyde Accessible Transport Limited,Education,Children's Services,Transport Of Pupils,,08/01/2021," 1,050.00 ",360000,Public Transport
5405123,Hyde Accessible Transport Limited,Education,Children's Services,Transport Of Pupils,,08/01/2021," 1,050.00 ",360000,Public Transport
5405113,Hyde Accessible Transport Limited,Operations and Neighbourhoods,Operations and Neighbourhoods,Hired Transport,,08/01/2021," 1,620.00 ",360000,Public Transport
5405120,Hyde Accessible Transport Limited,Education,Children's Services,Transport Of Ola Pupils,,08/01/2021," 1,813.00 ",360000,Public Transport
5405100,Hyde Accessible Transport Limited,Education,Children's Services,Transport Of Pupils,,08/01/2021," 1,260.00 ",360000,Public Transport
5405105,Hyde Accessible Transport Limited,Education,Children's Services,Transport Of Pupils,,08/01/2021," 1,260.00 ",360000,Public Transport
5405109,Hyde Accessible Transport Limited,Education,Children's Services,Transport Of Pupils,,08/01/2021," 1,260.00 ",360000,Public Transport
5405110,Hyde Accessible Transport Limited,Education,Children's Services,Transport Of Pupils,,08/01/2021," 1,260.00 ",360000,Public Transport
5405165,Hyde Accessible Transport Limited,Education,Children's Services,Transport Of Pupils,,08/01/2021," 1,260.00 ",360000,Public Transport
5405167,Hyde Accessible Transport Limited,Education,Children's Services,Transport Of Post 16 Pupils,,08/01/2021," 1,260.00 ",360000,Public Transport
5405124,Hyde Accessible Transport Limited,Education,Children's Services,Transport Of Ola Pupils,,08/01/2021," 1,260.00 ",360000,Public Transport
5405126,Hyde Accessible Transport Limited,Education,Children's Services,Transport Of Pupils,,08/01/2021," 1,260.00 ",360000,Public Transport
5405155,Hyde Accessible Transport Limited,Education,Children's Services,Transport Of Pupils,,08/01/2021," 1,260.00 ",360000,Public Transport
5403511,Footsteps Psychology,Education,Children's Services,Professional Services,,08/01/2021," 1,100.00 ",-999999,Unclassifiable
5403612,ADULLAM HOMES HOUSING ASSOC LTD,Operations and Neighbourhoods,Operations and Neighbourhoods,Supporting People Gross Contract,,08/01/2021," 63,250.00 ",321000,Social Community Care Supplies & Services - Adult
5403615,ADULLAM HOMES HOUSING ASSOC LTD,Operations and Neighbourhoods,Operations and Neighbourhoods,Supporting People Gross Contract,,08/01/2021," 8,000.00 ",321000,Social Community Care Supplies & Services - Adult
5403681,D.A. LANGUAGES LTD,Childrens Services,Children's Services,Professional Services,,08/01/2021, 876.00 ,260000,Human Resources
460418,ST LAWRENCES LODGE,Adult Social Care,Adults,Nursing Home Long Stay Fees,,08/01/2021," 4,774.18 ",321000,Social Community Care Supplies & Services - Adult
460418,ST LAWRENCES LODGE,Contingency,Contingency,Nursing Home Long Stay Fees,,08/01/2021," 7,169.46 ",321000,Social Community Care Supplies & Services - Adult
5403518,redacted,Education,Children's Services,Independent School Fees,Redacted Supplier,08/01/2021," 2,100.00 ",321100,Social Community Care Supplies & Services - Children
5403536,SWIIS FOSTER CARE LTD,Childrens Services,Children's Services,Foster Carer Agency Fees,,08/01/2021, 760.48 ,321100,Social Community Care Supplies & Services - Children
5403532,SWIIS FOSTER CARE LTD,Childrens Services,Children's Services,Foster Carer Agency Fees,,08/01/2021, 703.92 ,321100,Social Community Care Supplies & Services - Children
5403523,SWIIS FOSTER CARE LTD,Childrens Services,Children's Services,Foster Carer Agency Fees,,08/01/2021, 658.84 ,321100,Social Community Care Supplies & Services - Children
5403529,SWIIS FOSTER CARE LTD,Childrens Services,Children's Services,Foster Carer Agency Fees,,08/01/2021, 693.49 ,321100,Social Community Care Supplies & Services - Children
5403519,SWIIS FOSTER CARE LTD,Childrens Services,Children's Services,Foster Carer Agency Fees,,08/01/2021," 1,694.98 ",321100,Social Community Care Supplies & Services - Children
5403534,SWIIS FOSTER CARE LTD,Childrens Services,Children's Services,Foster Carer Agency Fees,,08/01/2021, 863.03 ,321100,Social Community Care Supplies & Services - Children
5403530,PHS GROUP PLC,Operations and Neighbourhoods,Operations and Neighbourhoods,Professional Services,,08/01/2021, 920.29 ,130000,Cleaning & Janitorial
5403531,PHS GROUP PLC,Operations and Neighbourhoods,Operations and Neighbourhoods,Professional Services,,08/01/2021, 920.29 ,130000,Cleaning & Janitorial
5403506,PHS GROUP PLC,Operations and Neighbourhoods,Operations and Neighbourhoods,Professional Services,,08/01/2021, 962.50 ,130000,Cleaning & Janitorial
5403937,ELECTORAL REFORM SERVICES,Governance,Governance,Printing And Stationery,,08/01/2021," 4,553.24 ",-999999,Unclassifiable
5403741,PERPETUAL FOSTERING,Childrens Services,Children's Services,Laundry,,08/01/2021," 2,170.00 ",321100,Social Community Care Supplies & Services - Children
5403484,ALPHA PLUS FOSTERING LIMITED,Childrens Services,Children's Services,Foster Carer Agency Fees,,08/01/2021," 5,867.99 ",321000,Social Community Care Supplies & Services - Adult
5403509,ALPHA PLUS FOSTERING LIMITED,Childrens Services,Children's Services,Foster Carer Agency Fees,,08/01/2021," 2,212.17 ",321000,Social Community Care Supplies & Services - Adult
5403512,ALPHA PLUS FOSTERING LIMITED,Childrens Services,Children's Services,Foster Carer Agency Fees,,08/01/2021," 2,082.19 ",321000,Social Community Care Supplies & Services - Adult
5403641,K P DODD CONSTRUCTION LTD,Housing,Director of Place,Minor Works - Building,,08/01/2021, 650.00 ,399999,"Works - Construction, Repair & Maintenance"
5405701,The Woodman Inn,Contingency,Contingency,COVID-19 Payments - RV less than or equal to 15k,,11/01/2021," 2,768.64 ",UNCLASS,Unclassifiable
5401344,GREENSCAPE,Adult Social Care,Adults,Professional Services,,11/01/2021, 758.08 ,390000,"Works - Construction, Repair & Maintenance"
5405814,FUSION CARE,Childrens Services,Children's Services,Living With Formal Support,,11/01/2021," 14,592.14 ",321100,Social Community Care Supplies & Services - Children
5400978,LONDON BOROUGH OF HARINGEY,Population Health,Population Health,Professional Services,,11/01/2021," 134,581.80 ",-999999,Unclassifiable
5405437,PERSON CENTRED CARE SERVICES LIMITED,Adult Social Care,Adults,Homecare Fees,,11/01/2021," 1,241.84 ",310000,Healthcare
5405436,PERSON CENTRED CARE SERVICES LIMITED,Adult Social Care,Adults,Homecare Fees,,11/01/2021," 1,307.20 ",310000,Healthcare
5404638,Inspired Spaces (ProjectCo1) LTD,Asset & Investment Partnership Management,Growth,PFI FM Fees and Insurance Costs,,11/01/2021," 6,241.14 ",390000,"Works - Construction, Repair & Maintenance"
5404639,INSPIREDSPACES TAMESIDE (PROJECTCO2) LTD,Asset Management and Investment Partnership Management,Director of Place,PFI FM Fees and Insurance Costs,,11/01/2021," 3,750.00 ",170000,Education
5404640,INSPIREDSPACES TAMESIDE (PROJECTCO2) LTD,Asset Management and Investment Partnership Management,Director of Place,PFI FM Fees and Insurance Costs,,11/01/2021," 7,786.00 ",170000,Education
5405654,redacted,Adult Social Care,Adults,Residential Home Short Stay Fees,,11/01/2021, 608.67 ,-999999,Unclassifiable
5406067,HOMESHINE CLEANERS LTD,Adult Social Care,Adults,Homecare Fees,,11/01/2021, 980.00 ,130000,Cleaning & Janitorial
5405481,redacted,Adult Social Care,Adults,Day Care Fees,,11/01/2021," 1,290.85 ",-999999,Unclassifiable
5405132,Hyde Accessible Transport Limited,Operations and Neighbourhoods,Operations and Neighbourhoods,Hired Transport,,11/01/2021, 810.00 ,360000,Public Transport
5405133,Hyde Accessible Transport Limited,Operations and Neighbourhoods,Operations and Neighbourhoods,Hired Transport,,11/01/2021," 2,250.00 ",360000,Public Transport
5405134,Hyde Accessible Transport Limited,Operations and Neighbourhoods,Operations and Neighbourhoods,Hired Transport,,11/01/2021," 2,250.00 ",360000,Public Transport
5403773,ARCO LIMITED,Adult Social Care,Adults,Printing And Stationery,,11/01/2021, 666.80 ,140000,Clothing
5406124,CREATIVE SUPPORT LTD,Adult Social Care,Adults,Age Concern Fees,,11/01/2021," 34,033.17 ",321000,Social Community Care Supplies & Services - Adult
5406109,CREATIVE SUPPORT LTD,Adult Social Care,Adults,Homecare Fees,,11/01/2021," 48,621.65 ",321000,Social Community Care Supplies & Services - Adult
5405477,redacted,Adult Social Care,Adults,Day Care Fees,Redacted Supplier,11/01/2021, 560.12 ,321000,Social Community Care Supplies & Services - Adult
5405673,redacted,Adult Social Care,Adults,Residential Home Short Stay Fees,,11/01/2021," 1,483.97 ",-999999,Unclassifiable
5405254,STAMFORD CARS UK LTD,Education,Children's Services,Transport Of Pupils,,11/01/2021," 1,235.00 ",360000,Public Transport
5405369,STAMFORD CARS UK LTD,Education,Children's Services,Transport Of Ola Pupils,,11/01/2021," 1,400.00 ",360000,Public Transport
5405294,STAMFORD CARS UK LTD,Operations and Neighbourhoods,Operations and Neighbourhoods,Hired Transport,,11/01/2021," 1,120.00 ",360000,Public Transport
5405367,STAMFORD CARS UK LTD,Education,Children's Services,Transport Of Ola Pupils,,11/01/2021," 1,120.00 ",360000,Public Transport
5405382,STAMFORD CARS UK LTD,Education,Children's Services,Transport Of Pupils,,11/01/2021," 1,120.00 ",360000,Public Transport
5405345,STAMFORD CARS UK LTD,Education,Children's Services,Transport Of Ola Pupils,,11/01/2021," 1,855.00 ",360000,Public Transport
5405378,STAMFORD CARS UK LTD,Education,Children's Services,Transport Of Ola Pupils,,11/01/2021," 2,065.00 ",360000,Public Transport
5405363,STAMFORD CARS UK LTD,Education,Children's Services,Transport Of Pupils,,11/01/2021, 665.00 ,360000,Public Transport
5405326,STAMFORD CARS UK LTD,Education,Children's Services,Transport Of Ola Pupils,,11/01/2021, 900.00 ,360000,Public Transport
5405225,STAMFORD CARS UK LTD,Operations and Neighbourhoods,Operations and Neighbourhoods,Transport Of Post 16 Pupils,,11/01/2021, 560.00 ,360000,Public Transport
5405379,STAMFORD CARS UK LTD,Education,Children's Services,Transport Of Pupils,,11/01/2021, 600.00 ,360000,Public Transport
5405274,STAMFORD CARS UK LTD,Operations and Neighbourhoods,Operations and Neighbourhoods,Transport Of Pupils,,11/01/2021," 1,080.00 ",360000,Public Transport
5405285,STAMFORD CARS UK LTD,Operations and Neighbourhoods,Operations and Neighbourhoods,Hired Transport,,11/01/2021," 1,085.00 ",360000,Public Transport
5405350,STAMFORD CARS UK LTD,Education,Children's Services,Transport Of Ola Pupils,,11/01/2021," 1,085.00 ",360000,Public Transport
5405360,STAMFORD CARS UK LTD,Operations and Neighbourhoods,Operations and Neighbourhoods,Transport Of Post 16 Pupils,,11/01/2021," 1,085.00 ",360000,Public Transport
5405242,STAMFORD CARS UK LTD,Operations and Neighbourhoods,Operations and Neighbourhoods,Transport Of Ola Pupils,,11/01/2021," 1,260.00 ",360000,Public Transport
5405296,STAMFORD CARS UK LTD,Operations and Neighbourhoods,Operations and Neighbourhoods,Hired Transport,,11/01/2021," 1,260.00 ",360000,Public Transport
5405266,STAMFORD CARS UK LTD,Operations and Neighbourhoods,Operations and Neighbourhoods,Transport Of Pupils,,11/01/2021," 1,435.00 ",360000,Public Transport
5405353,STAMFORD CARS UK LTD,Education,Children's Services,Transport Of Ola Pupils,,11/01/2021," 1,435.00 ",360000,Public Transport
5405316,STAMFORD CARS UK LTD,Operations and Neighbourhoods,Operations and Neighbourhoods,Hired Transport,,11/01/2021, 935.00 ,360000,Public Transport
5405352,STAMFORD CARS UK LTD,Operations and Neighbourhoods,Operations and Neighbourhoods,Hired Transport,,11/01/2021, 924.00 ,360000,Public Transport
5405354,STAMFORD CARS UK LTD,Education,Children's Services,Transport Of Pupils,,11/01/2021, 700.00 ,360000,Public Transport
5405235,STAMFORD CARS UK LTD,Education,Children's Services,Transport Of Pupils,,11/01/2021, 840.00 ,360000,Public Transport
5405355,STAMFORD CARS UK LTD,Education,Children's Services,Transport Of Pupils,,11/01/2021, 840.00 ,360000,Public Transport
5405247,STAMFORD CARS UK LTD,Education,Children's Services,Transport Of Pupils,,11/01/2021," 1,750.00 ",360000,Public Transport
5405256,STAMFORD CARS UK LTD,Education,Children's Services,Transport Of Pupils,,11/01/2021," 1,750.00 ",360000,Public Transport
5405321,STAMFORD CARS UK LTD,Education,Children's Services,Transport Of Pupils,,11/01/2021," 1,750.00 ",360000,Public Transport
5405329,STAMFORD CARS UK LTD,Education,Children's Services,Transport Of Ola Pupils,,11/01/2021," 1,560.00 ",360000,Public Transport
5405238,STAMFORD CARS UK LTD,Education,Children's Services,Transport Of Ola Pupils,,11/01/2021," 1,610.00 ",360000,Public Transport
5405376,STAMFORD CARS UK LTD,Education,Children's Services,Transport Of Pupils,,11/01/2021," 1,540.00 ",360000,Public Transport
5405299,STAMFORD CARS UK LTD,Operations and Neighbourhoods,Operations and Neighbourhoods,Hired Transport,,11/01/2021, 616.25 ,360000,Public Transport
5405357,STAMFORD CARS UK LTD,Education,Children's Services,Transport Of Post 16 Pupils,,11/01/2021, 715.00 ,360000,Public Transport
5405276,STAMFORD CARS UK LTD,Operations and Neighbourhoods,Operations and Neighbourhoods,Transport Of Pupils,,11/01/2021, 750.00 ,360000,Public Transport
5405308,STAMFORD CARS UK LTD,Education,Children's Services,Transport Of Post 16 Pupils,,11/01/2021, 910.00 ,360000,Public Transport
5405327,STAMFORD CARS UK LTD,Education,Children's Services,Transport Of Ola Pupils,,11/01/2021, 910.00 ,360000,Public Transport
5405292,STAMFORD CARS UK LTD,Operations and Neighbourhoods,Operations and Neighbourhoods,Hired Transport,,11/01/2021," 1,015.00 ",360000,Public Transport
5405359,STAMFORD CARS UK LTD,Operations and Neighbourhoods,Operations and Neighbourhoods,Hired Transport,,11/01/2021, 955.00 ,360000,Public Transport
5405385,STAMFORD CARS UK LTD,Operations and Neighbourhoods,Operations and Neighbourhoods,Hired Transport,,11/01/2021," 1,640.00 ",360000,Public Transport
5405252,STAMFORD CARS UK LTD,Education,Children's Services,Transport Of Pupils,,11/01/2021," 1,330.00 ",360000,Public Transport
5405324,STAMFORD CARS UK LTD,Education,Children's Services,Transport Of Pupils,,11/01/2021," 1,330.00 ",360000,Public Transport
5405361,STAMFORD CARS UK LTD,Education,Children's Services,Transport Of Pupils,,11/01/2021," 1,330.00 ",360000,Public Transport
5405362,STAMFORD CARS UK LTD,Education,Children's Services,Transport Of Pupils,,11/01/2021," 1,330.00 ",360000,Public Transport
5405365,STAMFORD CARS UK LTD,Education,Children's Services,Transport Of Pupils,,11/01/2021," 1,330.00 ",360000,Public Transport
5405384,STAMFORD CARS UK LTD,Education,Children's Services,Transport Of Pupils,,11/01/2021," 1,330.00 ",360000,Public Transport
5405381,STAMFORD CARS UK LTD,Education,Children's Services,Transport Of Pupils,,11/01/2021," 1,155.00 ",360000,Public Transport
5406376,REDIWELD RUBBER & PLASTICS LIMITED,(blank),(blank),General Materials,,12/01/2021, 511.99 ,-999999,Unclassifiable
5406219,ISW CSC Limited,Childrens Services,Children's Services,Living With Formal Support,,12/01/2021," 1,520.00 ",260000,Human Resources
5406208,ISW CSC Limited,Childrens Services,Children's Services,Living With Formal Support,,12/01/2021," 1,250.00 ",260000,Human Resources
5406214,ISW CSC Limited,Childrens Services,Children's Services,Living With Formal Support,,12/01/2021," 1,250.00 ",260000,Human Resources
5406218,ISW CSC Limited,Childrens Services,Children's Services,Living With Formal Support,,12/01/2021," 1,250.00 ",260000,Human Resources
5406220,ISW CSC Limited,Childrens Services,Children's Services,Living With Formal Support,,12/01/2021," 1,250.00 ",260000,Human Resources
5406207,ISW CSC Limited,Childrens Services,Children's Services,Living With Formal Support,,12/01/2021," 1,160.00 ",260000,Human Resources
5406211,ISW CSC Limited,Childrens Services,Children's Services,Living With Formal Support,,12/01/2021," 1,160.00 ",260000,Human Resources
5406217,ISW CSC Limited,Childrens Services,Children's Services,Living With Formal Support,,12/01/2021," 1,160.00 ",260000,Human Resources
5406215,ISW CSC Limited,Childrens Services,Children's Services,Living With Formal Support,,12/01/2021, 980.00 ,260000,Human Resources
5406221,ISW CSC Limited,Childrens Services,Children's Services,Living With Formal Support,,12/01/2021, 980.00 ,260000,Human Resources
5406222,ISW CSC Limited,Childrens Services,Children's Services,Living With Formal Support,,12/01/2021," 1,070.00 ",260000,Human Resources
5406212,ISW CSC Limited,Childrens Services,Children's Services,Living With Formal Support,,12/01/2021, 950.00 ,260000,Human Resources
5406223,ISW CSC Limited,Childrens Services,Children's Services,Living With Formal Support,,12/01/2021, 850.00 ,260000,Human Resources
5406209,ISW CSC Limited,Childrens Services,Children's Services,Living With Formal Support,,12/01/2021," 2,320.00 ",260000,Human Resources
5406213,ISW CSC Limited,Childrens Services,Children's Services,Living With Formal Support,,12/01/2021, 870.00 ,260000,Human Resources
5404588,Bloom Procurement Services Limited,(blank),(blank),Professional Consultancy Services,,12/01/2021," 5,316.00 ",150000,Consultancy
5403114,Supporting Futures LTD,Childrens Services,Children's Services,Childrens Homes Outside Local Authority Fees,,12/01/2021," 24,558.30 ",310000,Healthcare
5402260,Professional and Vocational Law Training,People and Workforce Development,Governance,Training Course Costs,,12/01/2021," 1,900.00 ",261520,Human Resources
5406107,PG FABRICATIONS,Operations and Neighbourhoods,Operations and Neighbourhoods,General Materials,,12/01/2021, 740.00 ,390000,"Works - Construction, Repair & Maintenance"
5405515,PERSON CENTRED CARE SERVICES LIMITED,Adult Social Care,Adults,Homecare Fees,,12/01/2021," 9,053.87 ",310000,Healthcare
5406298,COMFORT CALL LIMITED,Adult Social Care,Adults,Homecare Fees,,12/01/2021," 137,507.67 ",310000,Healthcare
5404813,INSPIREDSPACES TAMESIDE (PROJECTCO2) LTD,Asset Management and Investment Partnership Management,Director of Place,PFI FM Fees and Insurance Costs,,12/01/2021," 7,477.37 ",170000,Education
5404812,INSPIREDSPACES TAMESIDE (PROJECTCO2) LTD,Asset & Investment Partnership Management,Growth,PFI FM Fees and Insurance Costs,,12/01/2021, 566.00 ,170000,Education
5405349,THE FAMILY UNIT LTD,Childrens Services,Children's Services,Living With Formal Support,,12/01/2021," 41,000.00 ",321000,Social Community Care Supplies & Services - Adult
5405508,THE FAMILY UNIT LTD,Childrens Services,Children's Services,Living With Formal Support,,12/01/2021," 10,320.00 ",321000,Social Community Care Supplies & Services - Adult
5405439,THE FAMILY UNIT LTD,Childrens Services,Children's Services,Living With Formal Support,,12/01/2021," 3,600.00 ",321000,Social Community Care Supplies & Services - Adult
5405440,THE FAMILY UNIT LTD,Childrens Services,Children's Services,Living With Formal Support,,12/01/2021," 3,600.00 ",321000,Social Community Care Supplies & Services - Adult
5405506,THE FAMILY UNIT LTD,Childrens Services,Children's Services,Living With Formal Support,,12/01/2021," 8,000.00 ",321000,Social Community Care Supplies & Services - Adult
5405414,PENNINE MENCAP,Adult Social Care,Adults,Voluntary Organisations Fees,,12/01/2021," 1,200.00 ",329999,Social Community Care Supplies & Services
5405416,PENNINE MENCAP,Adult Social Care,Adults,Homecare Fees,,12/01/2021," 7,456.56 ",329999,Social Community Care Supplies & Services
5406339,CARELINE HOMECARE LTD,Adult Social Care,Adults,Homecare Fees,,12/01/2021," 23,238.00 ",321000,Social Community Care Supplies & Services - Adult
5406341,CARELINE HOMECARE LTD,Adult Social Care,Adults,Homecare Fees,,12/01/2021," 23,238.00 ",321000,Social Community Care Supplies & Services - Adult
5406296,CARELINE HOMECARE LTD,Adult Social Care,Adults,Homecare Fees,,12/01/2021," 151,570.60 ",321000,Social Community Care Supplies & Services - Adult
5405125,Hyde Accessible Transport Limited,Education,Children's Services,Transport Of Pupils,,12/01/2021," 1,260.00 ",360000,Public Transport
5404833,CREATIVE SUPPORT LTD,Adult Social Care,Adults,Residential Home Long Stay Fees,,12/01/2021," 1,817.20 ",321000,Social Community Care Supplies & Services - Adult
5406117,CREATIVE SUPPORT LTD,Adult Social Care,Adults,Homecare Fees,,12/01/2021," 43,000.00 ",321000,Social Community Care Supplies & Services - Adult
5404697,NEXUS MOVE LIMITED PREVIOUSLY RADIO CABS (ASHTON)LTD,Education,Children's Services,Transport Of Pupils,,12/01/2021," 1,479.41 ",360000,Public Transport
5405787,J HOPKINS CONTRACTORS  LTD,(blank),(blank),Highway Construction,,12/01/2021," 248,774.13 ",391411,"Works - Construction, Repair & Maintenance"
5405786,J HOPKINS CONTRACTORS  LTD,(blank),(blank),Highway Construction,,12/01/2021," 220,962.03 ",391411,"Works - Construction, Repair & Maintenance"
5405788,J HOPKINS CONTRACTORS  LTD,(blank),(blank),Highway Construction,,12/01/2021," 155,647.88 ",391411,"Works - Construction, Repair & Maintenance"
5403946,JPCS LIMITED,(blank),(blank),Footway Construction,,12/01/2021," 14,247.50 ",391411,"Works - Construction, Repair & Maintenance"
5403855,redacted,Operations and Neighbourhoods,Operations and Neighbourhoods,Professional Entertainment Services,,13/01/2021," 1,000.00 ",-999999,Unclassifiable
5403924,iCare Solutions,Adult Social Care,Adults,Homecare Fees,,13/01/2021," 15,579.37 ",310000,Healthcare
470890,AGGREGATE INDUSTRIES UK LIMITED,Operations and Neighbourhoods,Operations and Neighbourhoods,General Materials,,13/01/2021," 4,056.78 ",230000,Highway Equipment & Materials
470890,ARCO LIMITED,Civil Engineers,Director of Place,Debits Goods Received,,13/01/2021, 868.41 ,140000,Clothing
470890,KEYLINE BUILDERS MERCHANTS LTD,Civil Engineers,Director of Place,Debits Goods Received,,13/01/2021, 554.60 ,100000,Building Construction Materials
470890,MARWOOD ELECTRICAL CO,Civil Engineers,Director of Place,Debits Goods Received,,13/01/2021, 607.08 ,230000,Highway Equipment & Materials
470890,TARMAC CENTRAL LIMITED,Operations and Neighbourhoods,Operations and Neighbourhoods,General Materials,,13/01/2021," 3,531.18 ",230000,Highway Equipment & Materials
470890,WOLSELEY UK LTD,Civil Engineers,Director of Place,Debits Goods Received,,13/01/2021," 1,838.70 ",230000,Highway Equipment & Materials
470890,JONES LIGHTING LTD,Operations and Neighbourhoods,Operations and Neighbourhoods,Sub-contractor Services,,13/01/2021," 4,877.27 ",359999,Street & Traffic Management
470890,Saint-Gobain Building Distribution Limited t/a Benchmark Building Supplies,Civil Engineers,Director of Place,Debits Goods Received,,13/01/2021," 1,340.40 ",100000,Building Construction Materials
470890,Saint-Gobain Building Distribution Limited t/a Benchmark Building Supplies,Operations and Neighbourhoods,Operations and Neighbourhoods,General Materials,,13/01/2021," 42,536.35 ",100000,Building Construction Materials
470890,MULTEVO LIMITED,Operations and Neighbourhoods,Operations and Neighbourhoods,General Materials,,13/01/2021, 910.00 ,-999999,Unclassifiable
470890,CASTINGS SERVICES LTD,Civil Engineers,Director of Place,Debits Goods Received,,13/01/2021, 660.00 ,100000,Building Construction Materials
470890,TRAFFIC DIRECT LTD,(blank),(blank),General Materials,,13/01/2021, 800.00 ,350000,Street & Traffic Management
470890,TRAFFIC DIRECT LTD,(blank),(blank),Highway Construction,,13/01/2021," 1,050.00 ",350000,Street & Traffic Management
470890,TRAFFIC DIRECT LTD,Operations and Neighbourhoods,Operations and Neighbourhoods,Sub-contractor Services,,13/01/2021, 812.50 ,350000,Street & Traffic Management
470890,NU FIRE & SECURITY LTD,Operations and Neighbourhoods,Operations and Neighbourhoods,General Materials,,13/01/2021, 507.50 ,190000,Facilities & Management Services
470890,Lighthouse (UK) Ltd,Operations and Neighbourhoods,Operations and Neighbourhoods,General Materials,,13/01/2021," 1,185.00 ",100000,Building Construction Materials
470890,COMPASS MINERALS UK LTD,Civil Engineers,Director of Place,Debits Goods Received,,13/01/2021," 4,611.64 ",230000,Highway Equipment & Materials
470890,ZODION LTD,Operations and Neighbourhoods,Operations and Neighbourhoods,General Materials,,13/01/2021," 7,473.88 ",230000,Highway Equipment & Materials
470890,VAISALA LTD,Operations and Neighbourhoods,Operations and Neighbourhoods,Sub-contractor Services,,13/01/2021," 13,752.00 ",180000,Environmental Services
470890,CHARLES ENDIRECT LIMITED,Operations and Neighbourhoods,Operations and Neighbourhoods,General Materials,,14/01/2021," 3,601.16 ",180000,Environmental Services
5403887,Oyster Partnership,Place,Growth,Agency Staff,,13/01/2021," 3,000.00 ",261313,Human Resources
5406366,Carrington West Ltd,Place,Growth,Agency Staff,,13/01/2021, 842.40 ,-999999,Unclassifiable
5406464,redacted,Education,Children's Services,Independent School Fees,,13/01/2021," 2,195.00 ",-999999,Unclassifiable
5404702,Redacted,Childrens Services,Children's Services,Other Accommodation Related Costs,,13/01/2021, 660.00 ,202000,Financial Services
5403858,Brookfield House,Childrens Services,Children's Services,Childrens Homes Outside Local Authority Fees,,13/01/2021," 8,800.00 ",-999999,Unclassifiable
5403925,DOMAIN CARE NORTH WEST LTD,Adult Social Care,Adults,Homecare Fees,,13/01/2021, 885.54 ,321100,Social Community Care Supplies & Services - Children
5406340,redacted,Education,Children's Services,Independent School Fees,Business Payment,13/01/2021, 974.00 ,321100,Social Community Care Supplies & Services - Children
5406355,redacted,Education,Children's Services,Independent School Fees,Business Payment,13/01/2021, 974.00 ,321100,Social Community Care Supplies & Services - Children
5406392,redacted,Education,Children's Services,Independent School Fees,Business Payment,13/01/2021, 974.00 ,321100,Social Community Care Supplies & Services - Children
5406244,redacted,Education,Children's Services,Independent School Fees,Business Payment,13/01/2021, 988.00 ,321100,Social Community Care Supplies & Services - Children
5406291,redacted,Education,Children's Services,Independent School Fees,Business Payment,13/01/2021, 988.00 ,321100,Social Community Care Supplies & Services - Children
5406299,redacted,Education,Children's Services,Independent School Fees,Business Payment,13/01/2021, 988.00 ,321100,Social Community Care Supplies & Services - Children
5405570,redacted,Education,Children's Services,Transport Of Pupils,Business Payment,13/01/2021," 1,512.00 ",360000,Public Transport
5405571,redacted,Education,Children's Services,Transport Of Pupils,Business Payment,13/01/2021," 1,162.00 ",360000,Public Transport
5405475,redacted,Education,Children's Services,Transport Of Ola Pupils,Business Payment,13/01/2021," 1,404.00 ",360000,Public Transport
5405495,redacted,Education,Children's Services,Transport Of Pupils,Business Payment,13/01/2021," 1,862.00 ",360000,Public Transport
5406387,CHILDREN 4 MOST AT SQUIRRELS WOOD,Education,Children's Services,Independent School Fees,,13/01/2021, 974.00 ,321100,Social Community Care Supplies & Services - Children
5406354,S HOLDEN T/A KIDDI DAY KARE Dukinfield,Education,Children's Services,Independent School Fees,,13/01/2021, 988.00 ,321100,Social Community Care Supplies & Services - Children
5406461,redacted,Education,Children's Services,Hired Transport,,13/01/2021," 6,720.00 ",-999999,Unclassifiable
5403025,Kedleston (Wings Education) Limited,Childrens Services,Children's Services,Childrens Homes Outside Local Authority Fees,,13/01/2021," 57,937.00 ",908001,Public Bodies
5406321,LITTLE MUNCHKINS LIMITED,Education,Children's Services,Independent School Fees,,13/01/2021, 974.00 ,321100,Social Community Care Supplies & Services - Children
5406385,LITTLE MUNCHKINS LIMITED,Education,Children's Services,Independent School Fees,,13/01/2021, 974.00 ,321100,Social Community Care Supplies & Services - Children
5406471,redacted,Education,Children's Services,Independent School Fees,,13/01/2021," 1,647.00 ",-999999,Unclassifiable
5403870,FOSTERING PEOPLE LTD,Childrens Services,Children's Services,Foster Carer Agency Fees,,13/01/2021," 3,254.61 ",321100,Social Community Care Supplies & Services - Children
5406351,redacted,Education,Children's Services,Independent School Fees,,13/01/2021, 974.00 ,170000,Education
5406377,redacted,Education,Children's Services,Independent School Fees,,13/01/2021, 974.00 ,170000,Education
5406453,redacted,Childrens Services,Children's Services,Nursery Services,,13/01/2021, 748.00 ,170000,Education
5405509,STEPPING STONES CHILDRENS HOMES LTD,Childrens Services,Children's Services,Childrens Homes Outside Local Authority Fees,,13/01/2021," 13,720.00 ",321100,Social Community Care Supplies & Services - Children
5405511,STEPPING STONES CHILDRENS HOMES LTD,Childrens Services,Children's Services,Childrens Homes Outside Local Authority Fees,,13/01/2021," 20,000.00 ",321100,Social Community Care Supplies & Services - Children
5405510,STEPPING STONES CHILDRENS HOMES LTD,Childrens Services,Children's Services,Childrens Homes Outside Local Authority Fees,,13/01/2021," 27,440.00 ",321100,Social Community Care Supplies & Services - Children
5405513,STEPPING STONES CHILDRENS HOMES LTD,Childrens Services,Children's Services,Childrens Homes Outside Local Authority Fees,,13/01/2021," 28,000.00 ",321100,Social Community Care Supplies & Services - Children
5405313,STEPPING STONES CHILDRENS HOMES LTD,Childrens Services,Children's Services,Childrens Homes Outside Local Authority Fees,,13/01/2021," 8,057.14 ",321100,Social Community Care Supplies & Services - Children
5405512,STEPPING STONES CHILDRENS HOMES LTD,Childrens Services,Children's Services,Childrens Homes Outside Local Authority Fees,,13/01/2021," 13,200.00 ",321100,Social Community Care Supplies & Services - Children
5406440,MARVELS KIDS CLUB LTD,Education,Children's Services,Independent School Fees,,13/01/2021, 974.00 ,321100,Social Community Care Supplies & Services - Children
5406562,redacted,Childrens Services,Children's Services,Legal Fees,,13/01/2021," 1,000.00 ",280000,Legal Services
5406563,redacted,Childrens Services,Children's Services,Legal Fees,,13/01/2021, 750.00 ,280000,Legal Services
5406548,Smartway Health and Social Care Limited,Adult Social Care,Adults,Homecare Fees,,13/01/2021," 5,177.00 ",321000,Social Community Care Supplies & Services - Adult
5403868,Global Grooves,Operations and Neighbourhoods,Operations and Neighbourhoods,Professional Entertainment Services,,13/01/2021, 900.00 ,290000,Arts & Leisure Services
5405166,Hyde Accessible Transport Limited,Education,Children's Services,Transport Of Ola Pupils,,13/01/2021," 1,890.00 ",360000,Public Transport
5405156,Hyde Accessible Transport Limited,Education,Children's Services,Transport Of Pupils,,13/01/2021," 1,750.00 ",360000,Public Transport
5405139,Hyde Accessible Transport Limited,Education,Children's Services,Transport Of Pupils,,13/01/2021," 1,575.00 ",360000,Public Transport
5406525,FRESHWORKS,Digital Tameside,Finance & IT,Computer Software,,13/01/2021," 19,712.00 ",270000,Information Communication Technology
5378899,GREATER MANCHESTER COMBINED AUTHORITY,Operations and Neighbourhoods,Operations and Neighbourhoods,Passenger Transport Levy,,13/01/2021," 694,190.30 ",-999999,Unclassifiable
5378889,GREATER MANCHESTER COMBINED AUTHORITY,Operations and Neighbourhoods,Operations and Neighbourhoods,Passenger Transport Levy,,13/01/2021," 846,904.10 ",-999999,Unclassifiable
5406394,FAIRFIELD EDUCATION AND CHILDCARE,Education,Children's Services,Independent School Fees,,13/01/2021, 974.00 ,321100,Social Community Care Supplies & Services - Children
5405782,WILDE CONSULTING ENGINEERS,Tameside Investment Partnership,Director of Place,Engineers -External,,13/01/2021," 6,737.19 ",150000,Consultancy
5405576,M G DOMESTIC,Adult Social Care,Adults,"Fixtures, Fittings & Furniture Purchase",,13/01/2021, 736.66 ,160000,Domestic Goods
5403994,BEDSPACE RESOURCE LTD,Childrens Services,Children's Services,Living With Formal Support,,13/01/2021, 975.00 ,250000,Housing Management
5403995,BEDSPACE RESOURCE LTD,Childrens Services,Children's Services,Living With Formal Support,,13/01/2021, 975.00 ,250000,Housing Management
5404068,BEDSPACE RESOURCE LTD,Childrens Services,Children's Services,Living With Formal Support,,13/01/2021, 975.00 ,250000,Housing Management
5403978,BEDSPACE RESOURCE LTD,Childrens Services,Children's Services,Living With Formal Support,,13/01/2021, 725.00 ,250000,Housing Management
5403992,BEDSPACE RESOURCE LTD,Childrens Services,Children's Services,Living With Formal Support,,13/01/2021, 587.50 ,250000,Housing Management
5403864,ASKEWS  AND HOLTS LIBRARY SERVICES LTD,Operations and Neighbourhoods,Operations and Neighbourhoods,Purchase Books,,13/01/2021," 2,334.13 ",170000,Education
5403882,ROSS AUTO ENGINEERING LIMITED TRADING AS ROSS CARE,Adult Social Care,Adults,Joint Loans Store Fee,,13/01/2021," 13,347.82 ",321100,Social Community Care Supplies & Services - Children
5403672,LEEDS STUDENT HOMES LIMITED,Childrens Services,Children's Services,Living Without Formal Support,,13/01/2021," 1,248.00 ",250000,Housing Management
5406567,BARCLAYCARD COMMERCIAL,Childrens Services,Children's Services,Procurement Hub Holding Account,,13/01/2021," 14,653.93 ",200000,Financial Services
5406567,BARCLAYCARD COMMERCIAL,Individual Schools Budget,Children's Services,Procurement Hub Holding Account,,13/01/2021, 910.61 ,200000,Financial Services
5406567,BARCLAYCARD COMMERCIAL,Hosted Services,Hosted Services,Procurement Hub Holding Account,,13/01/2021," 1,120.11 ",200000,Financial Services
5406567,BARCLAYCARD COMMERCIAL,Adult Social Care,Adults,Procurement Hub Holding Account,,13/01/2021," 2,759.49 ",200000,Financial Services
5406567,BARCLAYCARD COMMERCIAL,Digital Tameside,Finance & IT,Procurement Hub Holding Account,,13/01/2021, 650.93 ,200000,Financial Services
5406567,BARCLAYCARD COMMERCIAL,Policy and Communications,Governance,Procurement Hub Holding Account,,13/01/2021, 939.38 ,200000,Financial Services
5406169,HMCTS (FOR PAYMENT BY ACCOUNT),Childrens Services,Children's Services,Court Fees,,13/01/2021," 17,255.00 ",-999999,Unclassifiable
5406173,CAPITA - NNDR REFUNDS,(blank),(blank),COVID-19 Christmas Support Payment,,13/01/2021," 7,000.00 ",400000,Non 3rd Party spend  
5406173,CAPITA - NNDR REFUNDS,Contingency,Contingency,COVID-19 Payments - RV greater than 15k and less than 51k,,13/01/2021," 2,000.00 ",400000,Non 3rd Party spend  
5406173,CAPITA - NNDR REFUNDS,Contingency,Contingency,COVID-19 Payments - RV less than or equal to 15k,,13/01/2021," 22,582.72 ",400000,Non 3rd Party spend  
5406153,CAPITA - NNDR REFUNDS,Contingency,Contingency,COVID-19 Payments - RV less than or equal to 15k,,13/01/2021," 2,668.00 ",400000,Non 3rd Party spend  
5406644,CAPITA - NNDR REFUNDS,Contingency,Contingency,COVID-19 Payments - RV greater than 15k and less than 51k,,13/01/2021," 24,785.71 ",400000,Non 3rd Party spend  
5406644,CAPITA - NNDR REFUNDS,Contingency,Contingency,COVID-19 Payments - RV greater than or equal to 51k,,13/01/2021," 4,000.00 ",400000,Non 3rd Party spend  
5406644,CAPITA - NNDR REFUNDS,Contingency,Contingency,COVID-19 Payments - RV less than or equal to 15k,,13/01/2021," 15,912.72 ",400000,Non 3rd Party spend  
5406569,CAPITA - NNDR REFUNDS,Contingency,Contingency,COVID-19 Payments - RV greater than 15k and less than 51k,,13/01/2021," 4,000.00 ",400000,Non 3rd Party spend  
5406569,CAPITA - NNDR REFUNDS,Contingency,Contingency,COVID-19 Payments - RV greater than or equal to 51k,,13/01/2021," 3,000.00 ",400000,Non 3rd Party spend  
5406569,CAPITA - NNDR REFUNDS,Contingency,Contingency,COVID-19 Payments - RV less than or equal to 15k,,13/01/2021," 17,342.00 ",400000,Non 3rd Party spend  
5406182,CAPITA - NNDR REFUNDS,Contingency,Contingency,COVID-19 Payments - RV less than or equal to 15k,,13/01/2021," 1,334.00 ",400000,Non 3rd Party spend  
5406575,CAPITA - NNDR REFUNDS,(blank),(blank),COVID-19 Christmas Support Payment,,13/01/2021," 7,000.00 ",400000,Non 3rd Party spend  
5406575,CAPITA - NNDR REFUNDS,Contingency,Contingency,COVID-19 Payments - RV greater than 15k and less than 51k,,13/01/2021," 12,928.57 ",400000,Non 3rd Party spend  
5406575,CAPITA - NNDR REFUNDS,Contingency,Contingency,COVID-19 Payments - RV greater than or equal to 51k,,13/01/2021," 3,000.00 ",400000,Non 3rd Party spend  
5406575,CAPITA - NNDR REFUNDS,Contingency,Contingency,COVID-19 Payments - RV less than or equal to 15k,,13/01/2021," 33,969.36 ",400000,Non 3rd Party spend  
5406643,AD HOC CHAPS PAYMENT,Multiple Heads of Service,Multiple Strategic Directorates,Debits Superann Teachers,,13/01/2021," 1,311,724.75 ",400002,Chaps Payments
5403951,Complete Care & Enablement Services LTD,Adult Social Care,Adults,Residential Home Long Stay Fees,,14/01/2021," 5,343.80 ",321000,Social Community Care Supplies & Services - Adult
5403953,Complete Care & Enablement Services LTD,Adult Social Care,Adults,Residential Home Long Stay Fees,,14/01/2021," 5,343.80 ",321000,Social Community Care Supplies & Services - Adult
5403976,Complete Care & Enablement Services LTD,Adult Social Care,Adults,Residential Home Long Stay Fees,,14/01/2021," 5,343.80 ",321000,Social Community Care Supplies & Services - Adult
5403977,Complete Care & Enablement Services LTD,Adult Social Care,Adults,Residential Home Long Stay Fees,,14/01/2021," 5,343.80 ",321000,Social Community Care Supplies & Services - Adult
5403982,Complete Care & Enablement Services LTD,Adult Social Care,Adults,Residential Home Long Stay Fees,,14/01/2021," 5,343.80 ",321000,Social Community Care Supplies & Services - Adult
5403984,Complete Care & Enablement Services LTD,Adult Social Care,Adults,Residential Home Long Stay Fees,,14/01/2021," 5,343.80 ",321000,Social Community Care Supplies & Services - Adult
5403988,Affinity Media,Childrens Services,Children's Services,"Marketing, Publicity and Recruitment",,14/01/2021," 1,315.00 ",-999999,Unclassifiable
3250795,DENNIS EAGLE LTD,Transport,Director of Place,Debits Goods Received,,14/01/2021, 586.87 ,380000,Vehicle Management
3250795,DENNIS EAGLE LTD,Operations and Neighbourhoods,Operations and Neighbourhoods,General Materials,,14/01/2021, 958.04 ,380000,Vehicle Management
3250795,DENNIS EAGLE LTD,Operations and Neighbourhoods,Operations and Neighbourhoods,Sub-contractor Services,,14/01/2021," 2,591.10 ",380000,Vehicle Management
3250795,G B OILS TA CARLTON FUELS,Transport,Director of Place,Diesel Fuel,,14/01/2021," 18,309.83 ",380000,Vehicle Management
3250795,TERBERG MATEC UK LTD,Transport,Director of Place,Debits Goods Received,,14/01/2021," 4,734.85 ",180000,Environmental Services
3250795,FUCHS LUBRICANTS UK PLC,Transport,Director of Place,Debits Goods Received,,14/01/2021," 2,588.27 ",390000,"Works - Construction, Repair & Maintenance"
3250795,TRUCTYRE ATS,Operations and Neighbourhoods,Operations and Neighbourhoods,Tyre Costs,,14/01/2021, 857.46 ,380000,Vehicle Management
3250795,PETER DOUGLASS PLATFORMS,Operations and Neighbourhoods,Operations and Neighbourhoods,Additional Hire,,14/01/2021," 1,610.00 ",380000,Vehicle Management
3250795,MOTUS COMMERCIALS (OLDHAM),Operations and Neighbourhoods,Operations and Neighbourhoods,General Materials,,14/01/2021, 744.81 ,380000,Vehicle Management
3250795,T & C MOTOR PANELS LIMITED,Operations and Neighbourhoods,Operations and Neighbourhoods,Sub-contractor Services,,14/01/2021, 540.00 ,381400,Vehicle Management
3250795,GARIC LTD,Operations and Neighbourhoods,Operations and Neighbourhoods,Additional Hire,,14/01/2021," 4,172.20 ",-999999,Unclassifiable
5406216,ISW CSC Limited,Childrens Services,Children's Services,Living With Formal Support,,14/01/2021," 1,160.00 ",260000,Human Resources
5404000,Furniture Resource Centre Ltd,Operations and Neighbourhoods,Operations and Neighbourhoods,"Fixtures, Fittings & Furniture Purchase",,14/01/2021, 668.25 ,UNCLASS,Unclassifiable
5404002,Beacon Counselling,People and Workforce Development,Governance,Professional Medical Services,,14/01/2021," 4,320.00 ",310000,Healthcare
5404014,redacted,Childrens Services,Children's Services,Living With Formal Support,,14/01/2021," 8,768.57 ",-999999,Unclassifiable
5404012,redacted,Childrens Services,Children's Services,Living With Formal Support,,14/01/2021," 5,668.57 ",-999999,Unclassifiable
5404010,redacted,Childrens Services,Children's Services,Living With Formal Support,,14/01/2021," 3,963.57 ",-999999,Unclassifiable
5404015,redacted,Childrens Services,Children's Services,Living With Formal Support,,14/01/2021," 5,668.57 ",-999999,Unclassifiable
5404024,redacted,Childrens Services,Children's Services,Living With Formal Support,,14/01/2021," 5,668.57 ",-999999,Unclassifiable
5406586,Andrea Stanley Social care Training,Quality and Safeguarding,Quality and Safeguarding,Training Course Costs,,14/01/2021," 1,200.00 ",-999999,Unclassifiable
5404018,ALLIANCE DISPOSABLES LTD,Adult Social Care,Adults,Printing And Stationery,,14/01/2021," 2,250.00 ",130000,Cleaning & Janitorial
5404029,LANCASHIRE COUNTY COUNCIL,Operations and Neighbourhoods,Operations and Neighbourhoods,Professional Services,,14/01/2021, 590.00 ,170000,Education
5403960,SEASHELL TRUST,Childrens Services,Children's Services,Homecare Fees,,14/01/2021," 1,800.00 ",321000,Social Community Care Supplies & Services - Adult
5403962,SEASHELL TRUST,Childrens Services,Children's Services,Homecare Fees,,14/01/2021," 1,050.00 ",321000,Social Community Care Supplies & Services - Adult
5403961,SEASHELL TRUST,Childrens Services,Children's Services,Homecare Fees,,14/01/2021," 1,950.00 ",321000,Social Community Care Supplies & Services - Adult
5404026,Randstad Public Services Limited,Individual Schools Budget,Children's Services,Agency Staff,,14/01/2021, 945.00 ,170000,Education
5404025,Randstad Public Services Limited,Individual Schools Budget,Children's Services,Agency Staff,,14/01/2021, 508.50 ,170000,Education
5404033,Normans Musical Instruments,Education,Children's Services,Musical Instruments,,14/01/2021, 845.80 ,-999999,Unclassifiable
5406626,redacted,Digital Tameside,Finance & IT,Security Services,,14/01/2021," 9,600.00 ",270000,Information Communication Technology
5405533,ASHTON PIONEER HOMES,Operations and Neighbourhoods,Operations and Neighbourhoods,Miscellaneous Expenses,,14/01/2021," 3,904.75 ",329999,Social Community Care Supplies & Services
5405323,THE FAMILY UNIT LTD,Childrens Services,Children's Services,Living With Formal Support,,14/01/2021," 1,800.00 ",321000,Social Community Care Supplies & Services - Adult
5405629,ABLE CARE AND SUPPORT SERVICES LTD,Adult Social Care,Adults,Homecare Fees,,14/01/2021," 21,119.00 ",321000,Social Community Care Supplies & Services - Adult
5405630,ABLE CARE AND SUPPORT SERVICES LTD,Adult Social Care,Adults,Homecare Fees,,14/01/2021," 39,856.73 ",321000,Social Community Care Supplies & Services - Adult
5405705,ABLE CARE AND SUPPORT SERVICES LTD,Adult Social Care,Adults,Homecare Fees,,14/01/2021," 4,697.15 ",321000,Social Community Care Supplies & Services - Adult
5406534,QUEST MEDIA NETWORKS LTD,Policy and Communications,Governance,"Marketing, Publicity and Recruitment",,14/01/2021," 1,500.00 ",-999999,Unclassifiable
5406559,UNIVERSITY OF BRISTOL,Childrens Services,Children's Services,Living Without Formal Support,,14/01/2021," 2,274.27 ",171010,Education
5404044,FAMILY CARE FOSTERING LTD,Childrens Services,Children's Services,Foster Carer Agency Fees,,14/01/2021," 4,594.51 ",321100,Social Community Care Supplies & Services - Children
5404045,FAMILY CARE FOSTERING LTD,Childrens Services,Children's Services,Foster Carer Agency Fees,,14/01/2021," 3,491.89 ",321100,Social Community Care Supplies & Services - Children
5404047,FAMILY CARE FOSTERING LTD,Childrens Services,Children's Services,Foster Carer Agency Fees,,14/01/2021," 3,582.67 ",321100,Social Community Care Supplies & Services - Children
5404071,redacted,(blank),(blank),Professional Entertainment Services,,14/01/2021," 1,320.00 ",-999999,Unclassifiable
5404030,CARETECH COMMUNITY SERVICES LIMITED,Adult Social Care,Adults,Residential Home Long Stay Fees,,14/01/2021," 4,164.00 ",321000,Social Community Care Supplies & Services - Adult
5404034,CARETECH COMMUNITY SERVICES LIMITED,Adult Social Care,Adults,Residential Home Long Stay Fees,,14/01/2021," 4,164.00 ",321000,Social Community Care Supplies & Services - Adult
5404032,CARETECH COMMUNITY SERVICES LIMITED,Adult Social Care,Adults,Residential Home Long Stay Fees,,14/01/2021," 3,400.60 ",321000,Social Community Care Supplies & Services - Adult
5404036,CARETECH COMMUNITY SERVICES LIMITED,Adult Social Care,Adults,Residential Home Long Stay Fees,,14/01/2021," 3,400.60 ",321000,Social Community Care Supplies & Services - Adult
5404031,CARETECH COMMUNITY SERVICES LIMITED,Adult Social Care,Adults,Residential Home Long Stay Fees,,14/01/2021," 6,315.40 ",321000,Social Community Care Supplies & Services - Adult
5404035,CARETECH COMMUNITY SERVICES LIMITED,Adult Social Care,Adults,Residential Home Long Stay Fees,,14/01/2021," 6,315.40 ",321000,Social Community Care Supplies & Services - Adult
5404037,CARETECH COMMUNITY SERVICES LIMITED,Adult Social Care,Adults,Residential Home Long Stay Fees,,14/01/2021," 6,315.40 ",321000,Social Community Care Supplies & Services - Adult
5404041,CARETECH COMMUNITY SERVICES LIMITED,Adult Social Care,Adults,Residential Home Long Stay Fees,,14/01/2021," 6,315.40 ",321000,Social Community Care Supplies & Services - Adult
5404039,CARETECH COMMUNITY SERVICES LIMITED,Adult Social Care,Adults,Residential Home Long Stay Fees,,14/01/2021," 3,671.96 ",321000,Social Community Care Supplies & Services - Adult
5404038,CARETECH COMMUNITY SERVICES LIMITED,Adult Social Care,Adults,Homecare Fees,,14/01/2021," 13,249.16 ",321000,Social Community Care Supplies & Services - Adult
5404008,redacted,Operations and Neighbourhoods,Operations and Neighbourhoods,Professional Entertainment Services,,14/01/2021," 3,950.00 ",-999999,Unclassifiable
5406648,Redacted,Childrens Services,Children's Services,Mainstream Foster Carer Allowances,,14/01/2021," 1,050.00 ",321000,Social Community Care Supplies & Services - Adult
5404051,MOSSCARE HOUSING LTD,Childrens Services,Children's Services,Non-Authority Accommodation Rental,,14/01/2021, 715.76 ,321000,Social Community Care Supplies & Services - Adult
5404063,ROYAL MAIL GROUP PLC,Governance,Governance,Postages,,14/01/2021, 970.88 ,300000,Mail Services
5405627,TAMESIDE LINK,Adult Social Care,Adults,Voluntary Organisations Fees,,14/01/2021," 24,805.69 ",321000,Social Community Care Supplies & Services - Adult
5405699,J & R TAXIS LTD,Education,Children's Services,Transport Of Ola Pupils,,14/01/2021," 1,680.00 ",360000,Public Transport
5406582,WILDE CONSULTING ENGINEERS,Tameside Investment Partnership,Director of Place,Engineers -External,,14/01/2021," 10,708.81 ",150000,Consultancy
5404067,ON365,GMPF (FX),GMPF (FX),Computer Hardware Maintenance Costs,,14/01/2021," 4,100.00 ",270000,Information Communication Technology
5405582,ROYALE MINICOACHES,Education,Children's Services,Transport Of Pupils,,14/01/2021," 1,456.00 ",UNCLASS,Unclassifiable
5404057,HOPWOOD HALL COLLEGE,Education,Children's Services,Other Local Authorities Fees,,14/01/2021," 3,839.00 ",170000,Education
5402349,NPOWER LIMITED,Operations and Neighbourhoods,Operations and Neighbourhoods,Electricity,,14/01/2021," 121,040.82 ",370000,Utilities
5405504,LANCASHIRE LANDSCAPES,Education,Children's Services,Chief/Ground Rent,,14/01/2021," 1,300.00 ",399999,"Works - Construction, Repair & Maintenance"
5404128,Pickering Psychology Services Limited,Childrens Services,Children's Services,Professional Child Services,,15/01/2021, 554.17 ,280000,Legal Services
5406193,Diversity Matters North West,Contingency,Contingency,COVID-19 Infection Control Fund,,15/01/2021," 2,817.10 ",190000,Facilities & Management Services
5403979,Complete Care & Enablement Services LTD,Adult Social Care,Adults,Residential Home Long Stay Fees,,15/01/2021," 4,649.80 ",321000,Social Community Care Supplies & Services - Adult
5403986,Complete Care & Enablement Services LTD,Adult Social Care,Adults,Residential Home Long Stay Fees,,15/01/2021," 4,649.80 ",321000,Social Community Care Supplies & Services - Adult
5404244,Moving Forward Care Ltd,Childrens Services,Children's Services,Living With Formal Support,,15/01/2021," 3,400.00 ",321100,Social Community Care Supplies & Services - Children
5404412,Capita Resourcing Ltd trading as Veredus,Childrens Services,Children's Services,Agency Staff,,15/01/2021," 2,055.00 ",-999999,Unclassifiable
5404420,Independent Together Limited,Childrens Services,Children's Services,Living With Formal Support,,15/01/2021," 3,100.00 ",321000,Social Community Care Supplies & Services - Adult
5404417,Independent Together Limited,Childrens Services,Children's Services,Living With Formal Support,,15/01/2021," 3,520.71 ",321000,Social Community Care Supplies & Services - Adult
5404418,Independent Together Limited,Childrens Services,Children's Services,Living With Formal Support,,15/01/2021," 3,520.71 ",321000,Social Community Care Supplies & Services - Adult
5404414,Independent Together Limited,Childrens Services,Children's Services,Living With Formal Support,,15/01/2021," 2,435.71 ",321000,Social Community Care Supplies & Services - Adult
5404415,Independent Together Limited,Childrens Services,Children's Services,Living With Formal Support,,15/01/2021," 2,582.85 ",321000,Social Community Care Supplies & Services - Adult
5404099,YOUNG PEOPLE FIRST LIMITED,Childrens Services,Children's Services,Living With Formal Support,,15/01/2021, 850.00 ,321100,Social Community Care Supplies & Services - Children
5404101,YOUNG PEOPLE FIRST LIMITED,Childrens Services,Children's Services,Living With Formal Support,,15/01/2021, 850.00 ,321100,Social Community Care Supplies & Services - Children
5404100,YOUNG PEOPLE FIRST LIMITED,Childrens Services,Children's Services,Living With Formal Support,,15/01/2021," 2,730.00 ",321100,Social Community Care Supplies & Services - Children
5404129,Sandcastle Care LTD,Childrens Services,Children's Services,Childrens Homes Outside Local Authority Fees,,15/01/2021," 44,064.29 ",321000,Social Community Care Supplies & Services - Adult
5404134,Sandcastle Care LTD,Childrens Services,Children's Services,Childrens Homes Outside Local Authority Fees,,15/01/2021," 44,064.29 ",321000,Social Community Care Supplies & Services - Adult
5404131,Sandcastle Care LTD,Childrens Services,Children's Services,Childrens Homes Outside Local Authority Fees,,15/01/2021," 18,821.43 ",321000,Social Community Care Supplies & Services - Adult
5404132,Sandcastle Care LTD,Childrens Services,Children's Services,Childrens Homes Outside Local Authority Fees,,15/01/2021," 26,549.29 ",321000,Social Community Care Supplies & Services - Adult
5404133,Sandcastle Care LTD,Childrens Services,Children's Services,Childrens Homes Outside Local Authority Fees,,15/01/2021," 26,549.29 ",321000,Social Community Care Supplies & Services - Adult
5404135,Sandcastle Care LTD,Childrens Services,Children's Services,Childrens Homes Outside Local Authority Fees,,15/01/2021," 26,549.29 ",321000,Social Community Care Supplies & Services - Adult
5404137,Sandcastle Care LTD,Childrens Services,Children's Services,Childrens Homes Outside Local Authority Fees,,15/01/2021," 26,549.29 ",321000,Social Community Care Supplies & Services - Adult
5404271,AFFINITY WORKFORCE SOLUTIONS LIMITED T/A Monarch Education,Education,Children's Services,Independent School Fees,,15/01/2021, 600.00 ,170000,Education
5404140,G2V Recruitment Group Limited t/a Vivid Resourcing,Place,Growth,Agency Staff,,15/01/2021," 2,500.00 ",280000,Legal Services
5404102,G2V Recruitment Group Limited t/a Vivid Resourcing,Place,Growth,Agency Staff,,15/01/2021," 2,500.00 ",280000,Legal Services
5404142,CARTER BROWN - THE EXPERT SERVICE LIMITED,Adult Social Care,Adults,Professional Consultancy Services,,15/01/2021, 918.15 ,280000,Legal Services
5404427,Flexoptix,Digital Tameside,Finance & IT,Network Equipment/Setup,,15/01/2021," 1,120.45 ",270000,Information Communication Technology
5404144,CLGDOTTV LIMITED,Hosted Services,Hosted Services,Professional Services,,15/01/2021, 700.00 ,270000,Information Communication Technology
5404103,N-Compass Northwest,Adult Social Care,Adults,Professional Services,,15/01/2021," 14,789.84 ",-999999,Unclassifiable
5406577,Avant Healthcare Services,Adult Social Care,Adults,Homecare Fees,,15/01/2021, 506.60 ,321000,Social Community Care Supplies & Services - Adult
5404213,Oyster Partnership,Place,Growth,Agency Staff,,15/01/2021," 1,925.00 ",261313,Human Resources
5404259,Oyster Partnership,Place,Growth,Agency Staff,,15/01/2021," 3,000.00 ",261313,Human Resources
5404276,Yorkshire Adoption Agency,Childrens Services,Children's Services,Adoption Agency Fees,,15/01/2021," 51,714.00 ",322000,0
5405693,Hattersley Community Big Garden Project,Adult Social Care,Adults,Voluntary Organisations Fees,,15/01/2021," 10,000.00 ",400000,Non 3rd Party spend  
5406873,Carrington West Ltd,Place,Growth,Agency Staff,,15/01/2021, 772.20 ,-999999,Unclassifiable
5404246,FROSTBITE REFRIGERATION LTD,Operations and Neighbourhoods,Operations and Neighbourhoods,Other Accommodation Related Costs,,15/01/2021," 4,000.00 ",-999999,Unclassifiable
5404105,redacted,Childrens Services,Children's Services,Professional Child Services,,15/01/2021, 793.33 ,280000,Legal Services
5404430,Staying Put,Childrens Services,Children's Services,Other Accommodation Related Costs,,15/01/2021," 2,155.00 ",321300,Social Community Care Supplies & Services
5404231,Nola House Tutoring,Education,Children's Services,Independent School Fees,,15/01/2021, 825.00 ,171011,Education
5404243,LOCAL CARE FORCE,Adult Social Care,Adults,Homecare Fees,,15/01/2021, 567.00 ,310000,Healthcare
5404280,Active Maps Limited,Operations and Neighbourhoods,Operations and Neighbourhoods,Highway Improvements,,15/01/2021," 1,128.00 ",-999999,Unclassifiable
5404432,Lemur Creative,Childrens Services,Children's Services,Training Materials,,15/01/2021," 1,864.00 ",401408,Social Community Care Supplies & Services - Children
5404435,Digital Gaps (Public Sector) Limited,Hosted Services,Hosted Services,Professional Services,,15/01/2021," 2,750.00 ",-999999,Unclassifiable
5404107,Redacted,Education,Children's Services,Professional Services,,15/01/2021," 2,200.00 ",-999999,Unclassifiable
5406538,Havas People Limited,People and Workforce Development,Governance,"Marketing, Publicity and Recruitment",,15/01/2021," 21,500.00 ",150000,Consultancy
5404439,ALLIANCE DISPOSABLES LTD,Adult Social Care,Adults,Printing And Stationery,,15/01/2021," 2,205.00 ",130000,Cleaning & Janitorial
5404234,ALLIANCE DISPOSABLES LTD,Adult Social Care,Adults,Printing And Stationery,,15/01/2021," 2,805.00 ",130000,Cleaning & Janitorial
5404777,redacted,Operations and Neighbourhoods,Operations and Neighbourhoods,Professional Entertainment Services,Business Payment,15/01/2021, 750.00 ,-999999,Unclassifiable
5404774,redacted,Operations and Neighbourhoods,Operations and Neighbourhoods,Professional Services,Business Payment,15/01/2021, 840.00 ,-999999,Unclassifiable
5404229,ROYAL MENCAP SOCIETY,Adult Social Care,Adults,Voluntary Organisations Fees,,15/01/2021," 10,019.84 ",321000,Social Community Care Supplies & Services - Adult
5405921,GREENSCAPE,Adult Social Care,Adults,Professional Services,,15/01/2021," 3,032.32 ",390000,"Works - Construction, Repair & Maintenance"
5405920,GREENSCAPE,Operations and Neighbourhoods,Operations and Neighbourhoods,General Materials,,15/01/2021," 1,880.00 ",390000,"Works - Construction, Repair & Maintenance"
5404113,SEASHELL TRUST,Education,Children's Services,Non-Maintained School Fees,,15/01/2021," 30,142.00 ",321000,Social Community Care Supplies & Services - Adult
5404111,SEASHELL TRUST,Education,Children's Services,Non-Maintained School Fees,,15/01/2021," 30,594.00 ",321000,Social Community Care Supplies & Services - Adult
5404112,SEASHELL TRUST,Education,Children's Services,Non-Maintained School Fees,,15/01/2021," 21,616.00 ",321000,Social Community Care Supplies & Services - Adult
5404109,SEASHELL TRUST,Education,Children's Services,Non-Maintained School Fees,,15/01/2021," 21,084.00 ",321000,Social Community Care Supplies & Services - Adult
5404110,SEASHELL TRUST,Education,Children's Services,Non-Maintained School Fees,,15/01/2021," 20,666.00 ",321000,Social Community Care Supplies & Services - Adult
5406056,OAKFIELDS CHILDRENS CARE,Childrens Services,Children's Services,Childrens Homes Outside Local Authority Fees,,15/01/2021," 9,980.00 ",321100,Social Community Care Supplies & Services - Children
5406071,OAKFIELDS CHILDRENS CARE,Childrens Services,Children's Services,Childrens Homes Outside Local Authority Fees,,15/01/2021," 9,980.00 ",321100,Social Community Care Supplies & Services - Children
5406091,OAKFIELDS CHILDRENS CARE,Childrens Services,Children's Services,Childrens Homes Outside Local Authority Fees,,15/01/2021," 9,980.00 ",321100,Social Community Care Supplies & Services - Children
5406090,OAKFIELDS CHILDRENS CARE,Childrens Services,Children's Services,Childrens Homes Outside Local Authority Fees,,15/01/2021," 9,400.00 ",321100,Social Community Care Supplies & Services - Children
5404254,Randstad Public Services Limited,Education,Children's Services,Agency Staff,,15/01/2021, 515.25 ,170000,Education
5404256,Randstad Public Services Limited,Education,Children's Services,Agency Staff,,15/01/2021, 572.50 ,170000,Education
5404446,TELEFONICA O2 (UK) LTD,Digital Tameside,Finance & IT,Mobile Telephones,,15/01/2021," 6,446.69 ",270000,Information Communication Technology
5405663,ST PETER'S PARTNERSHIP,Adult Social Care,Adults,Voluntary Organisations Fees,,15/01/2021," 10,000.00 ",321100,Social Community Care Supplies & Services - Children
5404117,VISION FOR EDUCATION LIMITED,Education,Children's Services,Professional Services,,15/01/2021," 2,570.00 ",170000,Education
5404116,VISION FOR EDUCATION LIMITED,Education,Children's Services,Professional Services,,15/01/2021," 1,011.66 ",170000,Education
5404118,VISION FOR EDUCATION LIMITED,Education,Children's Services,Professional Services,,15/01/2021," 2,646.00 ",170000,Education
5404121,VISION FOR EDUCATION LIMITED,Education,Children's Services,Professional Services,,15/01/2021," 2,646.00 ",170000,Education
5404123,VISION FOR EDUCATION LIMITED,Education,Children's Services,Professional Services,,15/01/2021," 2,646.00 ",170000,Education
5404120,VISION FOR EDUCATION LIMITED,Education,Children's Services,Professional Services,,15/01/2021," 2,342.00 ",170000,Education
5405918,PEOPLE FIRST TAMESIDE,Adult Social Care,Adults,Homecare Fees,,15/01/2021, 885.60 ,321000,Social Community Care Supplies & Services - Adult
5405943,PEOPLE FIRST TAMESIDE,Adult Social Care,Adults,Homecare Fees,,15/01/2021, 963.36 ,321000,Social Community Care Supplies & Services - Adult
5405942,PEOPLE FIRST TAMESIDE,Adult Social Care,Adults,Homecare Fees,,15/01/2021, 619.92 ,321000,Social Community Care Supplies & Services - Adult
5405945,PEOPLE FIRST TAMESIDE,Adult Social Care,Adults,Professional Services,,15/01/2021," 3,823.36 ",321000,Social Community Care Supplies & Services - Adult
5405946,PEOPLE FIRST TAMESIDE,Adult Social Care,Adults,Voluntary Organisations Fees,,15/01/2021," 5,000.00 ",321000,Social Community Care Supplies & Services - Adult
5405757,PERSON CENTRED CARE SERVICES LIMITED,Adult Social Care,Adults,Homecare Fees,,15/01/2021," 9,476.75 ",310000,Healthcare
5404124,ADVANCED HEALTH AND CARE,Adult Social Care,Adults,Computer Hardware Maintenance Costs,,15/01/2021," 6,228.50 ",310000,Healthcare
5404399,NEW BRIDGE HORIZONS,Adult Social Care,Adults,Homecare Fees,,15/01/2021," 1,167.50 ",321000,Social Community Care Supplies & Services - Adult
5404401,NEW BRIDGE HORIZONS,Adult Social Care,Adults,Homecare Fees,,15/01/2021, 900.00 ,321000,Social Community Care Supplies & Services - Adult
5404394,NEW BRIDGE HORIZONS,Adult Social Care,Adults,Homecare Fees,,15/01/2021, 812.50 ,321000,Social Community Care Supplies & Services - Adult
5404392,NEW BRIDGE HORIZONS,Adult Social Care,Adults,Homecare Fees,,15/01/2021, 508.00 ,321000,Social Community Care Supplies & Services - Adult
5404400,NEW BRIDGE HORIZONS,Adult Social Care,Adults,Homecare Fees,,15/01/2021, 934.00 ,321000,Social Community Care Supplies & Services - Adult
5405460,THE FAMILY UNIT LTD,Childrens Services,Children's Services,Living With Formal Support,,15/01/2021," 3,600.00 ",321000,Social Community Care Supplies & Services - Adult
5404127,HANDICARE LIMITED,Housing,Director of Place,Mandatory Adaptations Grant (DFG),,15/01/2021," 1,031.13 ",321100,Social Community Care Supplies & Services - Children
5404152,QUADRANT SECURITY GROUP LTD,Operations and Neighbourhoods,Operations and Neighbourhoods,Security Equipment,,15/01/2021," 10,520.00 ",190000,Facilities & Management Services
5404461,INCOM SYSTEMS COMMUNICATION LTD,Adult Social Care,Adults,Security Equipment,,15/01/2021," 22,456.00 ",270000,Information Communication Technology
5404320,CITY LIFT SERVICES (NW) LTD,Adult Social Care,Adults,General Equipment Repair & Maintenance,,15/01/2021, 782.00 ,390000,"Works - Construction, Repair & Maintenance"
5405803,ABLE CARE AND SUPPORT SERVICES LTD,Adult Social Care,Adults,Homecare Fees,,15/01/2021," 4,697.15 ",321000,Social Community Care Supplies & Services - Adult
5404178,TOWING SOLUTIONS LIMITED,Operations and Neighbourhoods,Operations and Neighbourhoods,Training Course Costs,,15/01/2021, 585.00 ,380000,Vehicle Management
5404130,CARE 4 CHILDREN RESIDENTIAL SERVICES LTD,Childrens Services,Children's Services,Foster Carer Agency Fees,,15/01/2021," 7,328.40 ",321100,Social Community Care Supplies & Services - Children
5404253,FAMILY CARE FOSTERING LTD,Childrens Services,Children's Services,Foster Carer Agency Fees,,15/01/2021," 3,467.10 ",321100,Social Community Care Supplies & Services - Children
5404251,FAMILY CARE FOSTERING LTD,Childrens Services,Children's Services,Foster Carer Agency Fees,,15/01/2021," 3,379.24 ",321100,Social Community Care Supplies & Services - Children
5404249,FAMILY CARE FOSTERING LTD,Childrens Services,Children's Services,Foster Carer Agency Fees,,15/01/2021," 4,446.30 ",321100,Social Community Care Supplies & Services - Children
5404468,PLATINUM STAIRLIFTS LIMITED,Housing,Director of Place,Mandatory Adaptations Grant (DFG),,15/01/2021," 2,025.68 ",321000,Social Community Care Supplies & Services - Adult
5404471,PLATINUM STAIRLIFTS LIMITED,Housing,Director of Place,Mandatory Adaptations Grant (DFG),,15/01/2021," 2,575.00 ",321000,Social Community Care Supplies & Services - Adult
5406583,PLATINUM STAIRLIFTS LIMITED,Housing,Director of Place,Mandatory Adaptations Grant (DFG),,15/01/2021," 2,722.18 ",321000,Social Community Care Supplies & Services - Adult
5404474,PLATINUM STAIRLIFTS LIMITED,Housing,Director of Place,Mandatory Adaptations Grant (DFG),,15/01/2021," 4,345.25 ",321000,Social Community Care Supplies & Services - Adult
5404473,PLATINUM STAIRLIFTS LIMITED,Housing,Director of Place,Mandatory Adaptations Grant (DFG),,15/01/2021," 5,960.50 ",321000,Social Community Care Supplies & Services - Adult
5404470,PLATINUM STAIRLIFTS LIMITED,Housing,Director of Place,Mandatory Adaptations Grant (DFG),,15/01/2021," 5,022.50 ",321000,Social Community Care Supplies & Services - Adult
5404322,NISAI LEARNING,Education,Children's Services,Professional Services,,15/01/2021," 10,000.00 ",170000,Education
5404174,Connex Community Support,Childrens Services,Children's Services,Homecare Fees,,15/01/2021," 1,423.25 ",321000,Social Community Care Supplies & Services - Adult
5404173,Connex Community Support,Childrens Services,Children's Services,Homecare Fees,,15/01/2021, 771.96 ,321000,Social Community Care Supplies & Services - Adult
5404171,Connex Community Support,Childrens Services,Children's Services,Homecare Fees,,15/01/2021," 1,389.25 ",321000,Social Community Care Supplies & Services - Adult
5404175,Connex Community Support,Childrens Services,Children's Services,Homecare Fees,,15/01/2021, 757.77 ,321000,Social Community Care Supplies & Services - Adult
5403341,FORENSIC TESTING SERVICE LTD,Childrens Services,Children's Services,Professional Medical Services,,15/01/2021," 1,023.80 ",180000,Environmental Services
5404092,CARETECH COMMUNITY SERVICES LIMITED,Adult Social Care,Adults,Homecare Fees,,15/01/2021," 5,343.80 ",321000,Social Community Care Supplies & Services - Adult
5404086,CARETECH COMMUNITY SERVICES LIMITED,Adult Social Care,Adults,Residential Home Long Stay Fees,,15/01/2021," 5,295.24 ",321000,Social Community Care Supplies & Services - Adult
5404078,CARETECH COMMUNITY SERVICES LIMITED,Adult Social Care,Adults,Residential Home Long Stay Fees,,15/01/2021," 5,295.24 ",321000,Social Community Care Supplies & Services - Adult
5404079,CARETECH COMMUNITY SERVICES LIMITED,Adult Social Care,Adults,Residential Home Long Stay Fees,,15/01/2021," 9,181.64 ",321000,Social Community Care Supplies & Services - Adult
5404073,CARETECH COMMUNITY SERVICES LIMITED,Adult Social Care,Adults,Residential Home Long Stay Fees,,15/01/2021," 9,181.64 ",321000,Social Community Care Supplies & Services - Adult
5404085,CARETECH COMMUNITY SERVICES LIMITED,Adult Social Care,Adults,Residential Home Long Stay Fees,,15/01/2021," 6,801.20 ",321000,Social Community Care Supplies & Services - Adult
5404088,CARETECH COMMUNITY SERVICES LIMITED,Adult Social Care,Adults,Residential Home Long Stay Fees,,15/01/2021," 6,801.20 ",321000,Social Community Care Supplies & Services - Adult
5404090,CARETECH COMMUNITY SERVICES LIMITED,Adult Social Care,Adults,Residential Home Long Stay Fees,,15/01/2021," 6,801.20 ",321000,Social Community Care Supplies & Services - Adult
5404077,CARETECH COMMUNITY SERVICES LIMITED,Adult Social Care,Adults,Residential Home Long Stay Fees,,15/01/2021," 6,801.20 ",321000,Social Community Care Supplies & Services - Adult
5404083,CARETECH COMMUNITY SERVICES LIMITED,Adult Social Care,Adults,Residential Home Long Stay Fees,,15/01/2021," 2,161.80 ",321000,Social Community Care Supplies & Services - Adult
5404076,CARETECH COMMUNITY SERVICES LIMITED,Adult Social Care,Adults,Residential Home Long Stay Fees,,15/01/2021," 2,161.80 ",321000,Social Community Care Supplies & Services - Adult
5404089,CARETECH COMMUNITY SERVICES LIMITED,Adult Social Care,Adults,Residential Home Long Stay Fees,,15/01/2021," 3,886.40 ",321000,Social Community Care Supplies & Services - Adult
5404091,CARETECH COMMUNITY SERVICES LIMITED,Adult Social Care,Adults,Residential Home Long Stay Fees,,15/01/2021," 3,886.40 ",321000,Social Community Care Supplies & Services - Adult
5404080,CARETECH COMMUNITY SERVICES LIMITED,Adult Social Care,Adults,Residential Home Long Stay Fees,,15/01/2021," 2,914.80 ",321000,Social Community Care Supplies & Services - Adult
5404082,CARETECH COMMUNITY SERVICES LIMITED,Adult Social Care,Adults,Residential Home Long Stay Fees,,15/01/2021," 2,914.80 ",321000,Social Community Care Supplies & Services - Adult
5404074,CARETECH COMMUNITY SERVICES LIMITED,Adult Social Care,Adults,Residential Home Long Stay Fees,,15/01/2021," 2,914.80 ",321000,Social Community Care Supplies & Services - Adult
5404075,CARETECH COMMUNITY SERVICES LIMITED,Adult Social Care,Adults,Residential Home Long Stay Fees,,15/01/2021," 2,914.80 ",321000,Social Community Care Supplies & Services - Adult
5404248,redacted,Operations and Neighbourhoods,Operations and Neighbourhoods,Professional Entertainment Services,,15/01/2021," 1,000.00 ",170000,Education
5404544,DHL Parcel UK Ltd (UK Mail),Exchequer,Governance,Printing And Stationery,,15/01/2021," 2,470.11 ",300000,Mail Services
5404329,Redacted,Operations and Neighbourhoods,Operations and Neighbourhoods,Professional Entertainment Services,,15/01/2021," 4,650.00 ",290000,Arts & Leisure Services
5404492,SMS Coaching LTD,Education,Children's Services,Non-Maintained School Fees,,15/01/2021," 6,000.00 ",-999999,Unclassifiable
5405862,NMA Travel LTD,Education,Children's Services,Transport Of Pupils,,15/01/2021," 1,652.00 ",360000,Public Transport
5405858,NMA Travel LTD,Childrens Services,Children's Services,Transport Of Pupils,,15/01/2021, 660.00 ,360000,Public Transport
5405860,NMA Travel LTD,Education,Children's Services,Transport Of Pupils,,15/01/2021," 1,568.00 ",360000,Public Transport
5405820,Christ Church Community Development,(blank),(blank),Contribution,,15/01/2021," 55,000.00 ",UNCLASS,Unclassifiable
5404204,ARCO LIMITED,Adult Social Care,Adults,Purchase Cleaning/Domestic Equipment,,15/01/2021, 511.00 ,140000,Clothing
5404332,XMA LIMITED,Digital Tameside,Finance & IT,IT Equipment,,15/01/2021," 5,547.36 ",270000,Information Communication Technology
5404211,COTSWOLD OUTDOOR LTD,Operations and Neighbourhoods,Operations and Neighbourhoods,General Materials,,15/01/2021, 623.25 ,140000,Clothing
5405869,DIRECT CARE (TAMESIDE) LTD,Adult Social Care,Adults,Homecare Fees,,15/01/2021," 169,452.38 ",321000,Social Community Care Supplies & Services - Adult
5404230,WEST END KIDS CLUB,Childrens Services,Children's Services,Child Care Fees,,15/01/2021," 1,560.00 ",-999999,Unclassifiable
5406729,GREATER MANCHESTER COMBINED AUTHORITY,(blank),(blank),Protective Clothing,,15/01/2021," 12,000.00 ",-999999,Unclassifiable
5404340,CIVICA UK LIMITED,Operations and Neighbourhoods,Operations and Neighbourhoods,Engineers Works,,15/01/2021," 14,787.45 ",271600,Information Communication Technology
5404333,THE LANDSCAPE CENTRE,Operations and Neighbourhoods,Operations and Neighbourhoods,Professional Entertainment Services,,15/01/2021, 550.00 ,390000,"Works - Construction, Repair & Maintenance"
5404210,INSTITUTE OF REVENUES RATING AND VALUATION,Exchequer,Governance,Subscriptions,,15/01/2021," 1,200.00 ",200000,Financial Services
5405662,ASHTON DISCOUNT WAREHOUSE LTD,Place,Growth,Contributions,,15/01/2021," 2,451.00 ",210000,Furniture & Soft Furnishings
5404335,GL EDUCATION GROUP,Education,Children's Services,Professional Services,,15/01/2021," 4,215.33 ",170000,Education
5405871,WILDE CONSULTING ENGINEERS,Engineers Client,Director of Place,Engineers -External,,15/01/2021," 4,981.90 ",150000,Consultancy
5405871,WILDE CONSULTING ENGINEERS,(blank),(blank),Engineers -External,,15/01/2021," 1,873.54 ",150000,Consultancy
5405871,WILDE CONSULTING ENGINEERS,District Assemblies,"Community,Environmental,Adult and Health Services",Engineers -External,,15/01/2021," 1,842.07 ",150000,Consultancy
5405753,NEXUS MOVE LIMITED PREVIOUSLY RADIO CABS (ASHTON)LTD,Education,Children's Services,Transport Of Pupils,,15/01/2021," 1,372.00 ",360000,Public Transport
5405756,NEXUS MOVE LIMITED PREVIOUSLY RADIO CABS (ASHTON)LTD,Education,Children's Services,Transport Of Pupils,,15/01/2021," 1,444.00 ",360000,Public Transport
5405769,NEXUS MOVE LIMITED PREVIOUSLY RADIO CABS (ASHTON)LTD,Education,Children's Services,Transport Of Pupils,,15/01/2021," 1,248.00 ",360000,Public Transport
5405742,NEXUS MOVE LIMITED PREVIOUSLY RADIO CABS (ASHTON)LTD,Education,Children's Services,Transport Of Post 16 Pupils,,15/01/2021," 1,248.00 ",360000,Public Transport
5405740,NEXUS MOVE LIMITED PREVIOUSLY RADIO CABS (ASHTON)LTD,Education,Children's Services,Transport Of Pupils,,15/01/2021," 1,248.00 ",360000,Public Transport
5406275,NEXUS MOVE LIMITED PREVIOUSLY RADIO CABS (ASHTON)LTD,Adult Social Care,Adults,Staff Travel Costs,,15/01/2021, 521.80 ,360000,Public Transport
5405722,NEXUS MOVE LIMITED PREVIOUSLY RADIO CABS (ASHTON)LTD,Operations and Neighbourhoods,Operations and Neighbourhoods,Hired Transport,,15/01/2021, 710.00 ,360000,Public Transport
5405724,NEXUS MOVE LIMITED PREVIOUSLY RADIO CABS (ASHTON)LTD,Operations and Neighbourhoods,Operations and Neighbourhoods,Hired Transport,,15/01/2021, 676.50 ,360000,Public Transport
5405714,NEXUS MOVE LIMITED PREVIOUSLY RADIO CABS (ASHTON)LTD,Operations and Neighbourhoods,Operations and Neighbourhoods,Hired Transport,,15/01/2021, 799.00 ,360000,Public Transport
5405734,NEXUS MOVE LIMITED PREVIOUSLY RADIO CABS (ASHTON)LTD,Education,Children's Services,Transport Of Ola Pupils,,15/01/2021, 791.50 ,360000,Public Transport
5405739,NEXUS MOVE LIMITED PREVIOUSLY RADIO CABS (ASHTON)LTD,Education,Children's Services,Transport Of Ola Pupils,,15/01/2021, 605.00 ,360000,Public Transport
5405729,NEXUS MOVE LIMITED PREVIOUSLY RADIO CABS (ASHTON)LTD,Education,Children's Services,Transport Of Pupils,,15/01/2021," 1,596.00 ",360000,Public Transport
5405723,NEXUS MOVE LIMITED PREVIOUSLY RADIO CABS (ASHTON)LTD,Education,Children's Services,Transport Of Pupils,,15/01/2021," 1,120.00 ",360000,Public Transport
5405759,NEXUS MOVE LIMITED PREVIOUSLY RADIO CABS (ASHTON)LTD,Education,Children's Services,Transport Of Pupils,,15/01/2021," 1,119.55 ",360000,Public Transport
5405763,NEXUS MOVE LIMITED PREVIOUSLY RADIO CABS (ASHTON)LTD,Education,Children's Services,Transport Of Pupils,,15/01/2021," 1,484.00 ",360000,Public Transport
5405728,NEXUS MOVE LIMITED PREVIOUSLY RADIO CABS (ASHTON)LTD,Education,Children's Services,Transport Of Pupils,,15/01/2021," 1,484.00 ",360000,Public Transport
5405731,NEXUS MOVE LIMITED PREVIOUSLY RADIO CABS (ASHTON)LTD,Education,Children's Services,Transport Of Pupils,,15/01/2021," 1,484.00 ",360000,Public Transport
5405732,NEXUS MOVE LIMITED PREVIOUSLY RADIO CABS (ASHTON)LTD,Education,Children's Services,Transport Of Pupils,,15/01/2021," 1,484.00 ",360000,Public Transport
5405760,NEXUS MOVE LIMITED PREVIOUSLY RADIO CABS (ASHTON)LTD,Education,Children's Services,Transport Of Ola Pupils,,15/01/2021," 1,680.00 ",360000,Public Transport
5405719,NEXUS MOVE LIMITED PREVIOUSLY RADIO CABS (ASHTON)LTD,Education,Children's Services,Transport Of Ola Pupils,,15/01/2021," 1,680.00 ",360000,Public Transport
5405725,NEXUS MOVE LIMITED PREVIOUSLY RADIO CABS (ASHTON)LTD,Operations and Neighbourhoods,Operations and Neighbourhoods,Hired Transport,,15/01/2021, 816.50 ,360000,Public Transport
5405741,NEXUS MOVE LIMITED PREVIOUSLY RADIO CABS (ASHTON)LTD,Education,Children's Services,Transport Of Pupils,,15/01/2021, 658.00 ,360000,Public Transport
5405717,NEXUS MOVE LIMITED PREVIOUSLY RADIO CABS (ASHTON)LTD,Education,Children's Services,Transport Of Ola Pupils,,15/01/2021," 1,008.00 ",360000,Public Transport
5405730,NEXUS MOVE LIMITED PREVIOUSLY RADIO CABS (ASHTON)LTD,Education,Children's Services,Transport Of Post 16 Pupils,,15/01/2021, 770.00 ,360000,Public Transport
5405771,NEXUS MOVE LIMITED PREVIOUSLY RADIO CABS (ASHTON)LTD,Education,Children's Services,Transport Of Pupils,,15/01/2021," 1,344.00 ",360000,Public Transport
5404180,GIBSONS GARDEN MACHINERY LIMITED,Operations and Neighbourhoods,Operations and Neighbourhoods,General Equipment Repair & Maintenance,,15/01/2021," 4,500.00 ",240000,Horticultural
5404161,SWIIS FOSTER CARE LTD,Childrens Services,Children's Services,Foster Carer Agency Fees,,15/01/2021," 1,694.98 ",321100,Social Community Care Supplies & Services - Children
5404157,SWIIS FOSTER CARE LTD,Childrens Services,Children's Services,Foster Carer Agency Fees,,15/01/2021, 693.49 ,321100,Social Community Care Supplies & Services - Children
5404156,SWIIS FOSTER CARE LTD,Childrens Services,Children's Services,Foster Carer Agency Fees,,15/01/2021, 658.84 ,321100,Social Community Care Supplies & Services - Children
5404168,SWIIS FOSTER CARE LTD,Childrens Services,Children's Services,Foster Carer Agency Fees,,15/01/2021, 760.48 ,321100,Social Community Care Supplies & Services - Children
5404160,SWIIS FOSTER CARE LTD,Childrens Services,Children's Services,Foster Carer Agency Fees,,15/01/2021, 703.92 ,321100,Social Community Care Supplies & Services - Children
5404164,SWIIS FOSTER CARE LTD,Childrens Services,Children's Services,Foster Carer Agency Fees,,15/01/2021, 863.03 ,321100,Social Community Care Supplies & Services - Children
5404208,MASSEY & HARRIS LTD,Operations and Neighbourhoods,Operations and Neighbourhoods,General Materials,,15/01/2021, 990.00 ,330000,Sports & Playground Equipment & Maintenance
5404493,P MCGUINNESS & CO LTD,Place,Growth,Building Works,,15/01/2021, 755.00 ,390000,"Works - Construction, Repair & Maintenance"
5404197,BARNARDO'S,Childrens Services,Children's Services,Professional Child Services,,15/01/2021," 3,506.40 ",-999999,Unclassifiable
5404184,ROSS AUTO ENGINEERING LIMITED TRADING AS ROSS CARE,Adult Social Care,Adults,Joint Loans Store Fee,,15/01/2021," 123,981.97 ",321100,Social Community Care Supplies & Services - Children
5404185,ROSS AUTO ENGINEERING LIMITED TRADING AS ROSS CARE,Adult Social Care,Adults,Joint Loans Store Fee,,15/01/2021," 13,411.84 ",321100,Social Community Care Supplies & Services - Children
5404579,BT GLOBAL SERVICES,Digital Tameside,Finance & IT,Telephone Landline Costs,,15/01/2021," 7,549.81 ",270000,Information Communication Technology
5406750,FORBES SOLICITORS,Multiple Heads of Service,Multiple Strategic Directorates,Public Liability Insurance Claims,,15/01/2021," 9,000.00 ",280000,Legal Services
5404225,NPOWER LIMITED,Place,Growth,Electricity,,15/01/2021," 17,817.45 ",370000,Utilities
5404222,NPOWER LIMITED,Place,Growth,Electricity,,15/01/2021," 52,345.13 ",370000,Utilities
5405765,TAMESIDE ARTS LTD,Adult Social Care,Adults,Professional Services,,15/01/2021," 3,361.92 ",290000,Arts & Leisure Services
5405761,STAMFORD CARS UK LTD,Education,Children's Services,Transport Of Ola Pupils,,15/01/2021," 2,310.00 ",360000,Public Transport
5404580,KONE PLC,Operations and Neighbourhoods,Operations and Neighbourhoods,Miscellaneous Expenses,,15/01/2021," 1,187.88 ",190000,Facilities & Management Services
5404321,Water Plus,Place,Growth,Water (Metered and Rates),,15/01/2021," 2,762.45 ",370000,Utilities
5404577,K P DODD CONSTRUCTION LTD,Housing,Director of Place,Mandatory Adaptations Grant (DFG),,15/01/2021," 19,044.60 ",399999,"Works - Construction, Repair & Maintenance"
5406836,ISW CSC Limited,Childrens Services,Children's Services,Living With Formal Support,,18/01/2021, 850.00 ,260000,Human Resources
5406842,ISW CSC Limited,Childrens Services,Children's Services,Living With Formal Support,,18/01/2021, 850.00 ,260000,Human Resources
5406840,ISW CSC Limited,Childrens Services,Children's Services,Living With Formal Support,,18/01/2021," 1,070.00 ",260000,Human Resources
5406850,ISW CSC Limited,Childrens Services,Children's Services,Living With Formal Support,,18/01/2021," 1,070.00 ",260000,Human Resources
5406828,ISW CSC Limited,Childrens Services,Children's Services,Living With Formal Support,,18/01/2021, 950.00 ,260000,Human Resources
5406848,ISW CSC Limited,Childrens Services,Children's Services,Living With Formal Support,,18/01/2021, 950.00 ,260000,Human Resources
5406818,ISW CSC Limited,Childrens Services,Children's Services,Living With Formal Support,,18/01/2021, 870.00 ,260000,Human Resources
5406853,ISW CSC Limited,Childrens Services,Children's Services,Living With Formal Support,,18/01/2021, 870.00 ,260000,Human Resources
5406835,ISW CSC Limited,Childrens Services,Children's Services,Living With Formal Support,,18/01/2021," 3,148.57 ",260000,Human Resources
5406838,ISW CSC Limited,Childrens Services,Children's Services,Living With Formal Support,,18/01/2021," 1,145.00 ",260000,Human Resources
5406829,ISW CSC Limited,Childrens Services,Children's Services,Living With Formal Support,,18/01/2021," 1,520.00 ",260000,Human Resources
5406830,ISW CSC Limited,Childrens Services,Children's Services,Living With Formal Support,,18/01/2021," 1,520.00 ",260000,Human Resources
5406831,ISW CSC Limited,Childrens Services,Children's Services,Living With Formal Support,,18/01/2021," 1,250.00 ",260000,Human Resources
5406832,ISW CSC Limited,Childrens Services,Children's Services,Living With Formal Support,,18/01/2021," 1,250.00 ",260000,Human Resources
5406841,ISW CSC Limited,Childrens Services,Children's Services,Living With Formal Support,,18/01/2021," 1,250.00 ",260000,Human Resources
5406846,ISW CSC Limited,Childrens Services,Children's Services,Living With Formal Support,,18/01/2021," 1,250.00 ",260000,Human Resources
5406820,ISW CSC Limited,Childrens Services,Children's Services,Living With Formal Support,,18/01/2021, 980.00 ,260000,Human Resources
5406852,ISW CSC Limited,Childrens Services,Children's Services,Living With Formal Support,,18/01/2021, 980.00 ,260000,Human Resources
5406823,ISW CSC Limited,Childrens Services,Children's Services,Living With Formal Support,,18/01/2021, 980.00 ,260000,Human Resources
5406851,ISW CSC Limited,Childrens Services,Children's Services,Living With Formal Support,,18/01/2021, 980.00 ,260000,Human Resources
5406834,ISW CSC Limited,Childrens Services,Children's Services,Living With Formal Support,,18/01/2021," 1,160.00 ",260000,Human Resources
5406837,ISW CSC Limited,Childrens Services,Children's Services,Living With Formal Support,,18/01/2021," 1,160.00 ",260000,Human Resources
5406843,ISW CSC Limited,Childrens Services,Children's Services,Living With Formal Support,,18/01/2021," 1,160.00 ",260000,Human Resources
5406844,ISW CSC Limited,Childrens Services,Children's Services,Living With Formal Support,,18/01/2021," 1,160.00 ",260000,Human Resources
5405450,Truancy Call Limited t/a Contact Group,Education,Children's Services,Professional Statistical Services,,18/01/2021," 24,910.47 ",321100,Social Community Care Supplies & Services - Children
5404433,Footsteps A Path To Change 08 Ltd,Childrens Services,Children's Services,Childrens Homes Outside Local Authority Fees,,18/01/2021," 20,150.00 ",250000,Housing Management
5406716,MATTHEWS ENVIRONMENTAL SOLUTIONS LTD,Contingency,Contingency,Building Works,,18/01/2021," 18,524.00 ",390000,"Works - Construction, Repair & Maintenance"
5406719,MATTHEWS ENVIRONMENTAL SOLUTIONS LTD,(blank),(blank),Engineers -External,,18/01/2021," 8,000.00 ",390000,"Works - Construction, Repair & Maintenance"
5406860,HOMES AND COMMUNITIES AGENCY,Tameside Investment Partnership,Director of Place,Consultancies,,18/01/2021, 600.00 ,280000,Legal Services
5406787,ABOUT TAMESIDE,Policy and Communications,Governance,"Marketing, Publicity and Recruitment",,18/01/2021, 550.00 ,908001,Public Bodies
5406329,NEW CHARTER HOUSING TRUST GROUP,Childrens Services,Children's Services,Professional Services,,18/01/2021," 8,800.00 ",-999999,Unclassifiable
5406863,Future Focused Care,Childrens Services,Children's Services,Childrens Homes Outside Local Authority Fees,,18/01/2021," 19,906.34 ",321100,Social Community Care Supplies & Services - Children
5405936,STOCKPORT MBC,Population Health,Population Health,Professional Services,,18/01/2021," 106,508.61 ",321100,Social Community Care Supplies & Services - Children
5378916,GREATER MANCHESTER COMBINED AUTHORITY,Operations and Neighbourhoods,Operations and Neighbourhoods,Waste Levy - Domestic Waste Disposal Costs,,18/01/2021," 1,259,000.00 ",-999999,Unclassifiable
5406336,PROMOTO LOGO,Operations and Neighbourhoods,Operations and Neighbourhoods,Uniforms/Clothing,,18/01/2021, 832.80 ,190000,Facilities & Management Services
5407009,Saddleworth Environmental Education,Education,Children's Services,Independent School Fees,,19/01/2021," 6,300.00 ",170000,Education
5406900,ISW CSC Limited,Childrens Services,Children's Services,Living With Formal Support,,19/01/2021, 950.00 ,260000,Human Resources
5406907,ISW CSC Limited,Childrens Services,Children's Services,Living With Formal Support,,19/01/2021," 1,070.00 ",260000,Human Resources
5406905,ISW CSC Limited,Childrens Services,Children's Services,Living With Formal Support,,19/01/2021, 850.00 ,260000,Human Resources
5406894,ISW CSC Limited,Childrens Services,Children's Services,Living With Formal Support,,19/01/2021, 870.00 ,260000,Human Resources
5406903,ISW CSC Limited,Childrens Services,Children's Services,Living With Formal Support,,19/01/2021," 1,160.00 ",260000,Human Resources
5406904,ISW CSC Limited,Childrens Services,Children's Services,Living With Formal Support,,19/01/2021," 1,160.00 ",260000,Human Resources
5406909,ISW CSC Limited,Childrens Services,Children's Services,Living With Formal Support,,19/01/2021," 1,160.00 ",260000,Human Resources
5406910,ISW CSC Limited,Childrens Services,Children's Services,Living With Formal Support,,19/01/2021," 1,160.00 ",260000,Human Resources
5406911,ISW CSC Limited,Childrens Services,Children's Services,Living With Formal Support,,19/01/2021," 1,160.00 ",260000,Human Resources
5406897,ISW CSC Limited,Childrens Services,Children's Services,Living With Formal Support,,19/01/2021, 980.00 ,260000,Human Resources
5406902,ISW CSC Limited,Childrens Services,Children's Services,Living With Formal Support,,19/01/2021," 1,250.00 ",260000,Human Resources
5406906,ISW CSC Limited,Childrens Services,Children's Services,Living With Formal Support,,19/01/2021," 1,250.00 ",260000,Human Resources
5406908,ISW CSC Limited,Childrens Services,Children's Services,Living With Formal Support,,19/01/2021," 1,250.00 ",260000,Human Resources
5406901,ISW CSC Limited,Childrens Services,Children's Services,Living With Formal Support,,19/01/2021," 1,520.00 ",260000,Human Resources
5406819,Cromwood Housing Ltd,Operations and Neighbourhoods,Operations and Neighbourhoods,Other Accommodation Related Costs,,19/01/2021," 39,956.05 ",250000,Housing Management
5406816,Cromwood Housing Ltd,Operations and Neighbourhoods,Operations and Neighbourhoods,Other Accommodation Related Costs,,19/01/2021," 33,431.90 ",250000,Housing Management
5406790,MATTHEWS ENVIRONMENTAL SOLUTIONS LTD,(blank),(blank),Engineers -External,,19/01/2021," 76,997.85 ",390000,"Works - Construction, Repair & Maintenance"
5401652,Options Autism (4) LTD,Childrens Services,Children's Services,Childrens Homes Outside Local Authority Fees,,19/01/2021," 20,681.43 ",170000,Education
5406923,HMRC,Multiple Heads of Service,Multiple Strategic Directorates,Salaries & Wages Advances(Hold),,19/01/2021, 632.17 ,UNCLASS,Unclassifiable
5405825,STOCKPORT MBC,Place,Growth,Agency Staff,,19/01/2021," 3,024.00 ",321100,Social Community Care Supplies & Services - Children
5406774,SANCTUARY HOUSING ASSOCIATION,Place,Growth,Other Accommodation Related Costs,,19/01/2021," 16,301.22 ",UNCLASS,Unclassifiable
5406777,SANCTUARY HOUSING ASSOCIATION,Place,Growth,Other Accommodation Related Costs,,19/01/2021," 7,903.55 ",UNCLASS,Unclassifiable
5406775,SANCTUARY HOUSING ASSOCIATION,Place,Growth,Other Accommodation Related Costs,,19/01/2021," 6,164.49 ",UNCLASS,Unclassifiable
5406781,SANCTUARY HOUSING ASSOCIATION,Place,Growth,Other Accommodation Related Costs,,19/01/2021," 4,652.52 ",UNCLASS,Unclassifiable
5406779,SANCTUARY HOUSING ASSOCIATION,Place,Growth,Other Accommodation Related Costs,,19/01/2021," 7,471.34 ",UNCLASS,Unclassifiable
5405849,QUALITY PROTECTS CHILDREN LTD,Childrens Services,Children's Services,Childrens Homes Outside Local Authority Fees,,19/01/2021," 30,000.00 ",-999999,Unclassifiable
5404583,With Box Limited,Childrens Services,Children's Services,Training Course Costs,,20/01/2021," 6,000.00 ",220000,Health & Safety
5404599,TREBBI CONTINUUM LIMITED,Place,Growth,Fees,,20/01/2021," 4,750.00 ",-999999,Unclassifiable
5404598,TREBBI CONTINUUM LIMITED,Place,Growth,Professional Consultancy Services,,20/01/2021," 4,999.00 ",-999999,Unclassifiable
5404589,Zeno Ltd,Adult Social Care,Adults,Homecare Fees,,20/01/2021," 10,037.84 ",310000,Healthcare
5404590,Prestige Adolescent Care & Education Ltd,Childrens Services,Children's Services,Childrens Homes Outside Local Authority Fees,,20/01/2021," 15,278.66 ",321117,Social Community Care Supplies & Services - Children
5404591,CMT Group,Contingency,Contingency,Professional Services,,20/01/2021, 899.40 ,311300,Healthcare
5404595,Optima Health,People and Workforce Development,Governance,Fees,,20/01/2021," 5,667.23 ",311410,Healthcare
5404011,Optima Health,People and Workforce Development,Governance,Fees,,20/01/2021," 5,948.23 ",311410,Healthcare
5407027,Oikos Family Centres Limited,Childrens Services,Children's Services,Childrens Homes Outside Local Authority Fees,,20/01/2021," 1,857.12 ",311600,Healthcare
5404596,NORTHGATE PUBLIC SERVICES UK LTD,Operations and Neighbourhoods,Operations and Neighbourhoods,Computer Software Maintenance Costs,,20/01/2021," 4,000.00 ",270000,Information Communication Technology
5407051,redacted,Childrens Services,Children's Services,Childrens Homes Outside Local Authority Fees,Redacted Supplier,20/01/2021," 15,835.80 ",321000,Social Community Care Supplies & Services - Adult
5407116,redacted,Childrens Services,Children's Services,Childrens Homes Outside Local Authority Fees,Redacted Supplier,20/01/2021," 15,835.80 ",321000,Social Community Care Supplies & Services - Adult
5404648,CORE INTEGRATED SOLUTIONS LTD,(blank),(blank),Fibre Works,,20/01/2021," 4,677.11 ",390000,"Works - Construction, Repair & Maintenance"
5404649,CORE INTEGRATED SOLUTIONS LTD,(blank),(blank),Fibre Works,,20/01/2021," 2,100.00 ",390000,"Works - Construction, Repair & Maintenance"
5404650,CORE INTEGRATED SOLUTIONS LTD,Digital Tameside,Finance & IT,Network Equipment/Setup,,20/01/2021," 4,352.65 ",390000,"Works - Construction, Repair & Maintenance"
5404651,ACORN CARE & EDUCATION LTD (SALES),Education,Children's Services,Independent School Fees,,20/01/2021," 18,034.94 ",321100,Social Community Care Supplies & Services - Children
5404652,INTACT PROJECTS LTD,Childrens Services,Children's Services,Living With Formal Support,,20/01/2021," 1,590.00 ",-999999,Unclassifiable
5406891,GETRONICS SERVICES UK LIMITED,Digital Tameside,Finance & IT,Telephone Landline Costs,,20/01/2021," 5,081.03 ",270000,Information Communication Technology
5404662,PLATINUM STAIRLIFTS LIMITED,Housing,Director of Place,Mandatory Adaptations Grant (DFG),,20/01/2021," 3,164.18 ",321000,Social Community Care Supplies & Services - Adult
5404664,ALLOTTS,Place,Growth,Fees,,20/01/2021, 700.00 ,190000,Facilities & Management Services
5404667,TUDOR (UK) LTD T/A TUDOR ENVIRONMENTAL,Operations and Neighbourhoods,Operations and Neighbourhoods,General Equipment Repair & Maintenance,,20/01/2021," 1,216.77 ",240000,Horticultural
5407048,Victorious Academies Trust,Education,Children's Services,Non-Authority Accommodation Rental,,20/01/2021," 16,260.50 ",-999999,Unclassifiable
5404673,STRUCTEC (NW) LTD,Housing,Director of Place,Mandatory Adaptations Grant (DFG),,20/01/2021," 4,638.78 ",321000,Social Community Care Supplies & Services - Adult
5404593,INSPIRE COMMUNITY SERVICES LIMITED,Childrens Services,Children's Services,Living With Formal Support,,20/01/2021," 4,216.31 ",170000,Education
5404609,INSPIRE COMMUNITY SERVICES LIMITED,Childrens Services,Children's Services,Living With Formal Support,,20/01/2021," 4,216.31 ",170000,Education
5404615,INSPIRE COMMUNITY SERVICES LIMITED,Childrens Services,Children's Services,Living With Formal Support,,20/01/2021," 4,216.31 ",170000,Education
5404619,INSPIRE COMMUNITY SERVICES LIMITED,Childrens Services,Children's Services,Living With Formal Support,,20/01/2021," 4,216.31 ",170000,Education
5404612,INSPIRE COMMUNITY SERVICES LIMITED,Childrens Services,Children's Services,Living With Formal Support,,20/01/2021," 4,279.24 ",170000,Education
5404601,INSPIRE COMMUNITY SERVICES LIMITED,Childrens Services,Children's Services,Living With Formal Support,,20/01/2021," 2,247.19 ",170000,Education
5404607,INSPIRE COMMUNITY SERVICES LIMITED,Childrens Services,Children's Services,Living With Formal Support,,20/01/2021," 2,247.19 ",170000,Education
5404625,INSPIRE COMMUNITY SERVICES LIMITED,Childrens Services,Children's Services,Living With Formal Support,,20/01/2021," 2,606.79 ",170000,Education
5404626,INSPIRE COMMUNITY SERVICES LIMITED,Childrens Services,Children's Services,Living With Formal Support,,20/01/2021," 2,606.79 ",170000,Education
5404676,Change Grow Live,Operations and Neighbourhoods,Operations and Neighbourhoods,Professional Services,,20/01/2021, 617.00 ,321000,Social Community Care Supplies & Services - Adult
5404677,Change Grow Live,Population Health,Population Health,Professional Services,,20/01/2021," 272,416.66 ",321000,Social Community Care Supplies & Services - Adult
5406965,Oxygen Finance Limited,People and Workforce Development,Governance,Professional Services,,20/01/2021," 11,148.42 ",200000,Financial Services
5404698,THE UNIVERSITY OF MANCHESTER,People and Workforce Development,Governance,Training Course Costs,,20/01/2021," 3,800.00 ",UNCLASS,Unclassifiable
5404708,THE UNIVERSITY OF MANCHESTER,People and Workforce Development,Governance,Training Course Costs,,20/01/2021," 3,800.00 ",UNCLASS,Unclassifiable
5404630,CARITAS CARE LTD,Childrens Services,Children's Services,Foster Carer Agency Fees,,20/01/2021," 2,142.86 ",321000,Social Community Care Supplies & Services - Adult
5404629,CARITAS CARE LTD,Childrens Services,Children's Services,Foster Carer Agency Fees,,20/01/2021," 2,142.90 ",321000,Social Community Care Supplies & Services - Adult
5404699,CARITAS CARE LTD,Childrens Services,Children's Services,Foster Carer Agency Fees,,20/01/2021," 2,142.90 ",321000,Social Community Care Supplies & Services - Adult
5406652,redacted,Adult Social Care,Adults,Day Care Fees,Redacted Supplier,20/01/2021, 896.48 ,-999999,Unclassifiable
5404738,WICKSTEED LEISURE LIMITED,Operations and Neighbourhoods,Operations and Neighbourhoods,General Equipment Repair & Maintenance,,20/01/2021, 594.14 ,330000,Sports & Playground Equipment & Maintenance
5404740,ASKEWS  AND HOLTS LIBRARY SERVICES LTD,Operations and Neighbourhoods,Operations and Neighbourhoods,Purchase Books,,20/01/2021," 1,625.93 ",170000,Education
5407117,HAMILTON PROPERTIES,Adult Social Care,Adults,Non-Authority Accommodation Rental,,20/01/2021," 1,604.91 ",250000,Housing Management
5407099,K P DODD CONSTRUCTION LTD,Housing,Director of Place,Mandatory Adaptations Grant (DFG),,20/01/2021," 4,046.76 ",399999,"Works - Construction, Repair & Maintenance"
5404744,K P DODD CONSTRUCTION LTD,Housing,Director of Place,Mandatory Adaptations Grant (DFG),,20/01/2021, 978.00 ,399999,"Works - Construction, Repair & Maintenance"
5407098,K P DODD CONSTRUCTION LTD,Housing,Director of Place,Mandatory Adaptations Grant (DFG),,20/01/2021," 7,385.00 ",399999,"Works - Construction, Repair & Maintenance"
5404764,COOLSPIRIT LTD,Digital Tameside,Finance & IT,Computer Hardware Maintenance Costs,,21/01/2021," 1,417.50 ",270000,Information Communication Technology
5404768,Pickering Psychology Services Limited,Childrens Services,Children's Services,Professional Services,,21/01/2021," 2,544.05 ",280000,Legal Services
470891,AGGREGATE INDUSTRIES UK LIMITED,Operations and Neighbourhoods,Operations and Neighbourhoods,General Materials,,21/01/2021," 9,032.46 ",230000,Highway Equipment & Materials
470891,ELECTRICITY NORTH WEST LTD,Operations and Neighbourhoods,Operations and Neighbourhoods,Sub-contractor Services,,21/01/2021, 925.29 ,370000,Utilities
470891,MARWOOD ELECTRICAL CO,Civil Engineers,Director of Place,Debits Goods Received,,21/01/2021," 1,092.64 ",230000,Highway Equipment & Materials
470891,PG FABRICATIONS,(blank),(blank),Sub-contractor Services,,21/01/2021," 1,880.00 ",390000,"Works - Construction, Repair & Maintenance"
470891,PG FABRICATIONS,Operations and Neighbourhoods,Operations and Neighbourhoods,Sub-contractor Services,,21/01/2021," 14,110.00 ",390000,"Works - Construction, Repair & Maintenance"
470891,TARMAC CENTRAL LIMITED,Operations and Neighbourhoods,Operations and Neighbourhoods,General Materials,,21/01/2021," 2,414.06 ",230000,Highway Equipment & Materials
470891,WILDE CONSULTING ENGINEERS,Operations and Neighbourhoods,Operations and Neighbourhoods,Sub-contractor Services,,21/01/2021," 12,579.75 ",150000,Consultancy
470891,BRAMHALL SURFACING LTD,Operations and Neighbourhoods,Operations and Neighbourhoods,Sub-contractor Services,,21/01/2021," 26,304.46 ",390000,"Works - Construction, Repair & Maintenance"
470891,JONES LIGHTING LTD,Operations and Neighbourhoods,Operations and Neighbourhoods,Sub-contractor Services,,21/01/2021," 11,799.94 ",359999,Street & Traffic Management
470891,MULTEVO LIMITED,Operations and Neighbourhoods,Operations and Neighbourhoods,Training Course Costs,,21/01/2021," 2,375.00 ",-999999,Unclassifiable
470891,CASTINGS SERVICES LTD,Civil Engineers,Director of Place,Debits Goods Received,,21/01/2021," 2,655.00 ",100000,Building Construction Materials
470891,TOTALLY LOCAL COMPANY LIMITED,Operations and Neighbourhoods,Operations and Neighbourhoods,Tipping Facility Fees,,21/01/2021," 1,260.00 ",190000,Facilities & Management Services
470891,NORTHWEST UTILITY SOLUTIONS LTD,Operations and Neighbourhoods,Operations and Neighbourhoods,Sub-contractor Services,,21/01/2021," 6,780.00 ",370000,Utilities
470891,TRAFFIC DIRECT LTD,(blank),(blank),Traffic Signs,,21/01/2021," 1,360.00 ",350000,Street & Traffic Management
470891,TRAFFIC DIRECT LTD,Operations and Neighbourhoods,Operations and Neighbourhoods,Sub-contractor Services,,21/01/2021," 2,812.50 ",350000,Street & Traffic Management
470891,Bloom Procurement Services Limited,(blank),(blank),Street Lighting Works,,21/01/2021," 19,790.45 ",150000,Consultancy
470891,COMPASS MINERALS UK LTD,Civil Engineers,Director of Place,Debits Goods Received,,21/01/2021," 3,475.12 ",230000,Highway Equipment & Materials
5404775,redacted,Operations and Neighbourhoods,Operations and Neighbourhoods,Professional Entertainment Services,,21/01/2021, 700.00 ,400000,Non 3rd Party spend  
3250796,DENNIS EAGLE LTD,Transport,Director of Place,Debits Goods Received,,21/01/2021, 726.18 ,380000,Vehicle Management
3250796,DENNIS EAGLE LTD,Operations and Neighbourhoods,Operations and Neighbourhoods,Sub-contractor Services,,21/01/2021," 2,329.07 ",380000,Vehicle Management
3250796,G B OILS TA CARLTON FUELS,Transport,Director of Place,Diesel Fuel,,21/01/2021," 19,404.22 ",380000,Vehicle Management
3250796,TERBERG MATEC UK LTD,Transport,Director of Place,Debits Goods Received,,21/01/2021," 3,302.30 ",180000,Environmental Services
3250796,LEX AUTOLEASE,Operations and Neighbourhoods,Operations and Neighbourhoods,Core Hire,,21/01/2021, 710.53 ,-999999,Unclassifiable
3250796,A & J MOTORSPARES,Operations and Neighbourhoods,Operations and Neighbourhoods,General Materials,,21/01/2021, 735.41 ,380000,Vehicle Management
3250796,TRUCTYRE ATS,Operations and Neighbourhoods,Operations and Neighbourhoods,Tyre Costs,,21/01/2021," 1,432.57 ",380000,Vehicle Management
5404781,iCare Solutions,Adult Social Care,Adults,Homecare Fees,,21/01/2021," 15,872.29 ",310000,Healthcare
5404782,YOUNG PEOPLE FIRST LIMITED,Childrens Services,Children's Services,Living With Formal Support,,21/01/2021," 2,730.00 ",321100,Social Community Care Supplies & Services - Children
5404783,YOUNG PEOPLE FIRST LIMITED,Childrens Services,Children's Services,Living With Formal Support,,21/01/2021, 850.00 ,321100,Social Community Care Supplies & Services - Children
5404784,YOUNG PEOPLE FIRST LIMITED,Childrens Services,Children's Services,Living With Formal Support,,21/01/2021, 850.00 ,321100,Social Community Care Supplies & Services - Children
5404786,KBW Barristers Chambers,Childrens Services,Children's Services,Legal Fees,,21/01/2021, 600.00 ,280000,Legal Services
5406446,UK Military Mentors Ltd,Operations and Neighbourhoods,Operations and Neighbourhoods,Project Costs,,21/01/2021," 9,300.00 ",310000,Healthcare
5404787,KEYS PCE LTD,Childrens Services,Children's Services,Parent Contact Costs,,21/01/2021, 790.00 ,321100,Social Community Care Supplies & Services - Children
5404788,KEYS PCE LTD,Childrens Services,Children's Services,Parent Contact Costs,,21/01/2021," 1,493.00 ",321100,Social Community Care Supplies & Services - Children
5404644,HOLLYBANK PROPERTY SERVICES,Operations and Neighbourhoods,Operations and Neighbourhoods,Other Accommodation Related Costs,,21/01/2021," 1,713.46 ",100000,Building Construction Materials
5404789,Peterborough City Council,Childrens Services,Children's Services,Childrens Homes Outside Local Authority Fees,,21/01/2021," 38,750.00 ",-999999,Unclassifiable
5404602,redacted,Operations and Neighbourhoods,Operations and Neighbourhoods,Other Accommodation Related Costs,,21/01/2021," 3,000.00 ",-999999,Unclassifiable
5404799,Crime Prevention Services Ltd,Adult Social Care,Adults,Security Equipment,,21/01/2021," 5,268.08 ",-999999,Unclassifiable
5404802,LANGLEY HOUSE TRUST,Adult Social Care,Adults,Residential Home Long Stay Fees,,21/01/2021," 3,300.00 ",-999999,Unclassifiable
5407210,STRAWBERRY GARDEN,Operations and Neighbourhoods,Operations and Neighbourhoods,Project Expenditure Home Office,,21/01/2021, 625.00 ,111200,Catering
5404804,TURNING POINT SERVICES LIMITED,Adult Social Care,Adults,Homecare Fees,,21/01/2021," 14,357.08 ",321000,Social Community Care Supplies & Services - Adult
5404803,TURNING POINT SERVICES LIMITED,Adult Social Care,Adults,Homecare Fees,,21/01/2021," 167,897.00 ",321000,Social Community Care Supplies & Services - Adult
5406445,STEP AHEAD RESOURCE SERVICES,Adult Social Care,Adults,Homecare Fees,,21/01/2021," 1,200.00 ",321000,Social Community Care Supplies & Services - Adult
5406449,STEP AHEAD RESOURCE SERVICES,Adult Social Care,Adults,Homecare Fees,,21/01/2021," 1,200.00 ",321000,Social Community Care Supplies & Services - Adult
5406451,STEP AHEAD RESOURCE SERVICES,Adult Social Care,Adults,Homecare Fees,,21/01/2021," 1,200.00 ",321000,Social Community Care Supplies & Services - Adult
5406452,STEP AHEAD RESOURCE SERVICES,Adult Social Care,Adults,Homecare Fees,,21/01/2021," 1,200.00 ",321000,Social Community Care Supplies & Services - Adult
5406454,STEP AHEAD RESOURCE SERVICES,Adult Social Care,Adults,Homecare Fees,,21/01/2021," 1,200.00 ",321000,Social Community Care Supplies & Services - Adult
5406431,STEP AHEAD RESOURCE SERVICES,Adult Social Care,Adults,Homecare Fees,,21/01/2021," 1,520.00 ",321000,Social Community Care Supplies & Services - Adult
5406434,STEP AHEAD RESOURCE SERVICES,Adult Social Care,Adults,Homecare Fees,,21/01/2021," 1,520.00 ",321000,Social Community Care Supplies & Services - Adult
5406435,STEP AHEAD RESOURCE SERVICES,Adult Social Care,Adults,Homecare Fees,,21/01/2021," 1,520.00 ",321000,Social Community Care Supplies & Services - Adult
5406436,STEP AHEAD RESOURCE SERVICES,Adult Social Care,Adults,Homecare Fees,,21/01/2021," 1,520.00 ",321000,Social Community Care Supplies & Services - Adult
5406460,STEP AHEAD RESOURCE SERVICES,Adult Social Care,Adults,Homecare Fees,,21/01/2021," 1,520.00 ",321000,Social Community Care Supplies & Services - Adult
5406426,STEP AHEAD RESOURCE SERVICES,Adult Social Care,Adults,Homecare Fees,,21/01/2021," 1,150.00 ",321000,Social Community Care Supplies & Services - Adult
5406428,STEP AHEAD RESOURCE SERVICES,Adult Social Care,Adults,Homecare Fees,,21/01/2021," 1,150.00 ",321000,Social Community Care Supplies & Services - Adult
5406430,STEP AHEAD RESOURCE SERVICES,Adult Social Care,Adults,Homecare Fees,,21/01/2021," 1,150.00 ",321000,Social Community Care Supplies & Services - Adult
5406437,STEP AHEAD RESOURCE SERVICES,Adult Social Care,Adults,Homecare Fees,,21/01/2021," 1,150.00 ",321000,Social Community Care Supplies & Services - Adult
5406456,STEP AHEAD RESOURCE SERVICES,Adult Social Care,Adults,Homecare Fees,,21/01/2021, 950.00 ,321000,Social Community Care Supplies & Services - Adult
5406458,STEP AHEAD RESOURCE SERVICES,Adult Social Care,Adults,Homecare Fees,,21/01/2021, 950.00 ,321000,Social Community Care Supplies & Services - Adult
5404808,redacted,Childrens Services,Children's Services,Childrens Homes Outside Local Authority Fees,Redacted Supplier,21/01/2021," 16,363.66 ",321000,Social Community Care Supplies & Services - Adult
5404816,AECOM LTD,(blank),(blank),External  Consultants,,21/01/2021," 6,346.00 ",-999999,Unclassifiable
5407275,COMMUNITY INTEGRATED CARE,Adult Social Care,Adults,Homecare Fees,,21/01/2021," 29,129.79 ",321000,Social Community Care Supplies & Services - Adult
5407274,COMMUNITY INTEGRATED CARE,Adult Social Care,Adults,Homecare Fees,,21/01/2021," 38,414.03 ",321000,Social Community Care Supplies & Services - Adult
5404819,TURNING POINT,Contingency,Contingency,COVID-19 Infection Control Fund,,21/01/2021," 11,884.79 ",321000,Social Community Care Supplies & Services - Adult
5406335,THE SUNFLOWER CHILDRENS CENTRE,Education,Children's Services,Independent School Fees,,21/01/2021, 974.00 ,321100,Social Community Care Supplies & Services - Children
5406372,THE SUNFLOWER CHILDRENS CENTRE,Education,Children's Services,Independent School Fees,,21/01/2021," 1,949.00 ",321100,Social Community Care Supplies & Services - Children
5406352,THE SUNFLOWER CHILDRENS CENTRE,Education,Children's Services,Independent School Fees,,21/01/2021, 988.00 ,321100,Social Community Care Supplies & Services - Children
5404821,PLATINUM STAIRLIFTS LIMITED,Housing,Director of Place,Mandatory Adaptations Grant (DFG),,21/01/2021," 1,925.00 ",321000,Social Community Care Supplies & Services - Adult
5406511,NEW CHARTER HOUSING TRUST GROUP,Childrens Services,Children's Services,Non-Authority Accommodation Rental,,21/01/2021, 966.00 ,-999999,Unclassifiable
5406482,NEW CHARTER HOUSING TRUST GROUP,Adult Social Care,Adults,Non-Authority Accommodation Rental,,21/01/2021," 3,624.08 ",-999999,Unclassifiable
5406488,NEW CHARTER HOUSING TRUST GROUP,Adult Social Care,Adults,Non-Authority Accommodation Rental,,21/01/2021," 1,023.68 ",-999999,Unclassifiable
5406510,NEW CHARTER HOUSING TRUST GROUP,Childrens Services,Children's Services,Non-Authority Accommodation Rental,,21/01/2021," 1,288.00 ",-999999,Unclassifiable
5406487,NEW CHARTER HOUSING TRUST GROUP,Adult Social Care,Adults,Non-Authority Accommodation Rental,,21/01/2021," 1,329.04 ",-999999,Unclassifiable
5406483,NEW CHARTER HOUSING TRUST GROUP,Adult Social Care,Adults,Non-Authority Accommodation Rental,,21/01/2021," 4,699.36 ",-999999,Unclassifiable
5404823,Social Work Options LTD,Adult Social Care,Adults,Professional Services,,21/01/2021, 564.05 ,260000,Human Resources
5406147,INSPIREDSPACES TAMESIDE LTD,Contingency,Contingency,Food & Refreshments,,21/01/2021," 2,042.14 ",390000,"Works - Construction, Repair & Maintenance"
5406149,INSPIREDSPACES TAMESIDE LTD,Asset & Investment Partnership Management,Growth,Food & Refreshments,,21/01/2021, 889.57 ,390000,"Works - Construction, Repair & Maintenance"
5406149,INSPIREDSPACES TAMESIDE LTD,Asset & Investment Partnership Management,Growth,Free School Meal Costs,,21/01/2021," 4,607.52 ",390000,"Works - Construction, Repair & Maintenance"
5406146,INSPIREDSPACES TAMESIDE LTD,Place,Growth,Food & Refreshments,,21/01/2021," 2,491.76 ",390000,"Works - Construction, Repair & Maintenance"
5406148,INSPIREDSPACES TAMESIDE LTD,Place,Growth,Fees,,21/01/2021," 3,944.14 ",390000,"Works - Construction, Repair & Maintenance"
5406148,INSPIREDSPACES TAMESIDE LTD,Place,Growth,Food & Refreshments,,21/01/2021," 197,207.08 ",390000,"Works - Construction, Repair & Maintenance"
5407162,Redacted,Multiple Heads of Service,Multiple Strategic Directorates,Salaries & Wages Advances(Hold),,21/01/2021," 6,811.35 ",-999999,Unclassifiable
5404827,Oxford Innovation LTD - ASHTON OLD BATHS,Place,Growth,Professional Services,,21/01/2021," 14,966.89 ",190000,Facilities & Management Services
5407078,GREATER MANCHESTER PENSION FUND,Corporate Costs,Corporate Costs,Pension Increase Act Costs,,21/01/2021," 99,600.00 ",UNCLASS,Unclassifiable
5397073,STOCKPORT CP  SOCIETY,Adult Social Care,Adults,Homecare Fees,,21/01/2021," 1,165.28 ",321000,Social Community Care Supplies & Services - Adult
5399971,STOCKPORT CP  SOCIETY,Adult Social Care,Adults,Homecare Fees,,21/01/2021," 1,165.28 ",321000,Social Community Care Supplies & Services - Adult
5406605,GRANT THORNTON UK LLP,Childrens Services,Children's Services,Professional Services,,21/01/2021," 12,000.00 ",200000,Financial Services
5404838,SWIIS FOSTER CARE LTD,Childrens Services,Children's Services,Foster Carer Agency Fees,,21/01/2021, 863.03 ,321100,Social Community Care Supplies & Services - Children
5404847,SWIIS FOSTER CARE LTD,Childrens Services,Children's Services,Foster Carer Agency Fees,,21/01/2021, 703.92 ,321100,Social Community Care Supplies & Services - Children
5404836,SWIIS FOSTER CARE LTD,Childrens Services,Children's Services,Foster Carer Agency Fees,,21/01/2021, 760.48 ,321100,Social Community Care Supplies & Services - Children
5404851,SWIIS FOSTER CARE LTD,Childrens Services,Children's Services,Foster Carer Agency Fees,,21/01/2021, 658.84 ,321100,Social Community Care Supplies & Services - Children
5404849,SWIIS FOSTER CARE LTD,Childrens Services,Children's Services,Foster Carer Agency Fees,,21/01/2021, 693.49 ,321100,Social Community Care Supplies & Services - Children
5404840,SWIIS FOSTER CARE LTD,Childrens Services,Children's Services,Foster Carer Agency Fees,,21/01/2021," 1,694.98 ",321100,Social Community Care Supplies & Services - Children
5406468,TAMESIDE COLLEGE,Education,Children's Services,Post 16 FE College Fees,,21/01/2021," 235,898.00 ",UNCLASS,Unclassifiable
5404796,MHR International UK Limited,People and Workforce Development,Governance,Computer Software,,21/01/2021," 22,978.20 ",270000,Information Communication Technology
5406472,TAMESIDE ARTS LTD,Adult Social Care,Adults,Homecare Fees,,21/01/2021, 605.55 ,290000,Arts & Leisure Services
5405197,Pickering Psychology Services Limited,Childrens Services,Children's Services,Professional Child Services,,22/01/2021, 791.59 ,280000,Legal Services
5404954,Complete Care & Enablement Services LTD,Adult Social Care,Adults,Residential Home Long Stay Fees,,22/01/2021," 4,649.80 ",321000,Social Community Care Supplies & Services - Adult
5404950,Complete Care & Enablement Services LTD,Adult Social Care,Adults,Residential Home Long Stay Fees,,22/01/2021," 5,343.80 ",321000,Social Community Care Supplies & Services - Adult
5404951,Complete Care & Enablement Services LTD,Adult Social Care,Adults,Residential Home Long Stay Fees,,22/01/2021," 5,343.80 ",321000,Social Community Care Supplies & Services - Adult
5404952,Complete Care & Enablement Services LTD,Adult Social Care,Adults,Residential Home Long Stay Fees,,22/01/2021," 5,343.80 ",321000,Social Community Care Supplies & Services - Adult
5406871,Social Work Solutions NW Limited,Adult Social Care,Adults,Professional Services,,22/01/2021, 550.00 ,321000,Social Community Care Supplies & Services - Adult
5405383,Her Majesty's Prison and Probation Service (National Offenders Management Service),Childrens Services,Children's Services,Other Accommodation Related Costs,,22/01/2021, 963.00 ,400000,Non 3rd Party spend  
5405368,Her Majesty's Prison and Probation Service (National Offenders Management Service),Childrens Services,Children's Services,Other Accommodation Related Costs,,22/01/2021," 9,144.00 ",400000,Non 3rd Party spend  
5405380,Her Majesty's Prison and Probation Service (National Offenders Management Service),Childrens Services,Children's Services,Other Accommodation Related Costs,,22/01/2021," 12,192.00 ",400000,Non 3rd Party spend  
5402763,Changes Support Ltd,Childrens Services,Children's Services,Living With Formal Support,,22/01/2021," 3,800.00 ",321100,Social Community Care Supplies & Services - Children
5405264,Advantage Healthcare Limited,Childrens Services,Children's Services,Homecare Fees,,22/01/2021," 1,464.46 ",321100,Social Community Care Supplies & Services - Children
5405048,Capita Resourcing Ltd trading as Veredus,Childrens Services,Children's Services,Agency Staff,,22/01/2021, 685.00 ,-999999,Unclassifiable
5406918,Hillgate Health Group Limited,Childrens Services,Children's Services,Living With Formal Support,,22/01/2021," 1,179.36 ",-999999,Unclassifiable
5406919,Hillgate Health Group Limited,Childrens Services,Children's Services,Living With Formal Support,,22/01/2021," 1,179.36 ",-999999,Unclassifiable
5406920,Hillgate Health Group Limited,Childrens Services,Children's Services,Living With Formal Support,,22/01/2021," 1,179.36 ",-999999,Unclassifiable
5406898,ISW CSC Limited,Childrens Services,Children's Services,Living With Formal Support,,22/01/2021, 980.00 ,260000,Human Resources
5406825,ISW CSC Limited,Childrens Services,Children's Services,Living With Formal Support,,22/01/2021," 1,250.00 ",260000,Human Resources
5406884,Rossendale Scaffolding & Equipment Hire Ltd t/a Heywood Scaffolding Services,(blank),(blank),External  Consultants,,22/01/2021," 6,704.46 ",100000,Building Construction Materials
5404935,KBW Barristers Chambers,Childrens Services,Children's Services,Legal Fees,,22/01/2021," 1,200.00 ",280000,Legal Services
5404930,KBW Barristers Chambers,Childrens Services,Children's Services,Legal Fees,,22/01/2021, 600.00 ,280000,Legal Services
5404932,KBW Barristers Chambers,Childrens Services,Children's Services,Legal Fees,,22/01/2021, 600.00 ,280000,Legal Services
5404933,KBW Barristers Chambers,Childrens Services,Children's Services,Legal Fees,,22/01/2021, 600.00 ,280000,Legal Services
5404989,Rite Directions Ltd,Childrens Services,Children's Services,Living With Formal Support,,22/01/2021," 6,000.00 ",390000,"Works - Construction, Repair & Maintenance"
5407172,Avant Healthcare Services,Adult Social Care,Adults,Homecare Fees,,22/01/2021, 506.60 ,321000,Social Community Care Supplies & Services - Adult
5404870,KEYS PCE LTD,Childrens Services,Children's Services,Childrens Homes Outside Local Authority Fees,,22/01/2021," 17,492.86 ",321100,Social Community Care Supplies & Services - Children
5404872,KEYS PCE LTD,Childrens Services,Children's Services,Childrens Homes Outside Local Authority Fees,,22/01/2021," 19,773.57 ",321100,Social Community Care Supplies & Services - Children
5404868,KEYS PCE LTD,Childrens Services,Children's Services,Childrens Homes Outside Local Authority Fees,,22/01/2021," 19,928.57 ",321100,Social Community Care Supplies & Services - Children
5404956,Foundations Plus,Adult Social Care,Adults,Residential Home Long Stay Fees,,22/01/2021," 3,480.00 ",UNCLASS,Unclassifiable
5404944,Pennine Medical Supplies Ltd T/A Pennine Workwear,Operations and Neighbourhoods,Operations and Neighbourhoods,Protective Clothing,,22/01/2021, 880.00 ,MEDICAL,Medical
5407273,ASPLAND GAUGE CO LTD,Place,Growth,Contributions,,22/01/2021," 4,366.80 ",-999999,Unclassifiable
5407075,Project Inc,Education,Children's Services,Post 16 FE College Fees,,22/01/2021," 1,833.33 ",-999999,Unclassifiable
5407077,Project Inc,Education,Children's Services,Post 16 FE College Fees,,22/01/2021," 1,833.33 ",-999999,Unclassifiable
5407072,Project Inc,Education,Children's Services,Post 16 FE College Fees,,22/01/2021," 1,833.33 ",-999999,Unclassifiable
5407074,Project Inc,Education,Children's Services,Post 16 FE College Fees,,22/01/2021," 1,833.33 ",-999999,Unclassifiable
5406210,CONNOR PROPERTIES,Operations and Neighbourhoods,Operations and Neighbourhoods,Other Accommodation Related Costs,,22/01/2021," 2,400.00 ",HOUSMAN,#N/A
5406653,redacted,Adult Social Care,Adults,Day Care Fees,Redacted Supplier,22/01/2021, 879.33 ,321000,Social Community Care Supplies & Services - Adult
5407394,HASTINGS ZIMUTO,Multiple Heads of Service,Multiple Strategic Directorates,Salaries & Wages Advances(Hold),,22/01/2021," 1,650.00 ",400000,Non 3rd Party spend  
5404958,ALLIANCE DISPOSABLES LTD,Adult Social Care,Adults,Printing And Stationery,,22/01/2021," 4,953.00 ",130000,Cleaning & Janitorial
5404800,NEW HORIZONS (STOCKPORT) LTD,Childrens Services,Children's Services,Childrens Homes Outside Local Authority Fees,,22/01/2021," 14,614.33 ",321100,Social Community Care Supplies & Services - Children
5406870,WORKS 4U SUPPORT SERVICES LIMITED,Education,Children's Services,Independent School Fees,,22/01/2021," 27,287.00 ",260000,Human Resources
5406797,GREENSCAPE,Contingency,Contingency,COVID-19 Infection Control Fund,,22/01/2021," 4,882.96 ",390000,"Works - Construction, Repair & Maintenance"
5406822,GREENSCAPE,Adult Social Care,Adults,Professional Services,,22/01/2021, 758.08 ,390000,"Works - Construction, Repair & Maintenance"
5405054,BOOTS UK LTD,Population Health,Population Health,Local Enhanced Services,,22/01/2021," 1,012.85 ",150000,Consultancy
5405051,BOOTS UK LTD,Population Health,Population Health,Local Enhanced Services,,22/01/2021, 574.90 ,150000,Consultancy
5404879,POSITIVE STEPS OLDHAM,Place,Growth,Professional Services,,22/01/2021," 12,328.77 ",261400,Human Resources
5404809,redacted,Childrens Services,Children's Services,Childrens Homes Outside Local Authority Fees,Redacted Supplier,22/01/2021," 16,363.66 ",321000,Social Community Care Supplies & Services - Adult
5406617,PERSON CENTRED CARE SERVICES LIMITED,Adult Social Care,Adults,Homecare Fees,,22/01/2021," 9,373.16 ",310000,Healthcare
5402298,THE FAMILY UNIT LTD,Childrens Services,Children's Services,Living With Formal Support,,22/01/2021," 8,000.00 ",321000,Social Community Care Supplies & Services - Adult
5404945,CLOVERLEAF ADVOCACY 2000 LTD,Adult Social Care,Adults,Professional Services,,22/01/2021," 12,250.00 ",321000,Social Community Care Supplies & Services - Adult
5405180,PULSE HEALTHCARE LTD,Childrens Services,Children's Services,Professional Medical Services,,22/01/2021, 584.64 ,321200,Social Community Care Supplies & Services - Children
5405187,PULSE HEALTHCARE LTD,Childrens Services,Children's Services,Professional Medical Services,,22/01/2021, 624.11 ,321200,Social Community Care Supplies & Services - Children
5405181,PULSE HEALTHCARE LTD,Childrens Services,Children's Services,Professional Medical Services,,22/01/2021, 805.35 ,321200,Social Community Care Supplies & Services - Children
5405178,PULSE HEALTHCARE LTD,Childrens Services,Children's Services,Professional Medical Services,,22/01/2021, 582.73 ,321200,Social Community Care Supplies & Services - Children
5405227,PULSE HEALTHCARE LTD,Childrens Services,Children's Services,Professional Medical Services,,22/01/2021, 852.80 ,321200,Social Community Care Supplies & Services - Children
5405179,PULSE HEALTHCARE LTD,Childrens Services,Children's Services,Professional Medical Services,,22/01/2021, 562.72 ,321200,Social Community Care Supplies & Services - Children
5405290,PULSE HEALTHCARE LTD,Childrens Services,Children's Services,Professional Medical Services,,22/01/2021, 589.85 ,321200,Social Community Care Supplies & Services - Children
5405279,PULSE HEALTHCARE LTD,Childrens Services,Children's Services,Professional Medical Services,,22/01/2021," 1,197.24 ",321200,Social Community Care Supplies & Services - Children
5405222,PULSE HEALTHCARE LTD,Childrens Services,Children's Services,Professional Medical Services,,22/01/2021, 518.87 ,321200,Social Community Care Supplies & Services - Children
5405186,PULSE HEALTHCARE LTD,Childrens Services,Children's Services,Professional Medical Services,,22/01/2021," 1,010.55 ",321200,Social Community Care Supplies & Services - Children
5405230,PULSE HEALTHCARE LTD,Childrens Services,Children's Services,Professional Medical Services,,22/01/2021, 742.88 ,321200,Social Community Care Supplies & Services - Children
5406656,Agilyx UK LTD,People and Workforce Development,Governance,Professional Consultancy Services,,22/01/2021, 760.00 ,150000,Consultancy
5406733,ABLE CARE AND SUPPORT SERVICES LTD,Adult Social Care,Adults,Homecare Fees,,22/01/2021," 5,172.41 ",321000,Social Community Care Supplies & Services - Adult
5407245,QUEST MEDIA NETWORKS LTD,Place,Growth,Statutory Advertising,,22/01/2021, 660.00 ,-999999,Unclassifiable
5406396,THE SUNFLOWER CHILDRENS CENTRE,Education,Children's Services,Independent School Fees,,22/01/2021," 1,949.00 ",321100,Social Community Care Supplies & Services - Children
5406764,NEW CHARTER HOUSING TRUST GROUP,Childrens Services,Children's Services,Professional Services,,22/01/2021," 9,600.00 ",-999999,Unclassifiable
5405064,PETERS LIMITED (PETERS BOOKSELLING SERVICES),Operations and Neighbourhoods,Operations and Neighbourhoods,Purchase Books,,22/01/2021," 2,119.86 ",170000,Education
5404947,APT SKIDATA LTD,Operations and Neighbourhoods,Operations and Neighbourhoods,Miscellaneous Expenses,,22/01/2021," 5,752.73 ",-999999,Unclassifiable
5404960,BKSB LTD,Individual Schools Budget,Children's Services,Licences,,22/01/2021, 827.10 ,170000,Education
5404961,438 MARKETING LIMITED,Population Health,Population Health,Professional Services,,22/01/2021," 15,260.00 ",-999999,Unclassifiable
5404907,BRANAS ISAF LTD,Childrens Services,Children's Services,Childrens Homes Outside Local Authority Fees,,22/01/2021," 21,921.43 ",321100,Social Community Care Supplies & Services - Children
5404964,BRANAS ISAF LTD,Childrens Services,Children's Services,Childrens Homes Outside Local Authority Fees,,22/01/2021," 21,700.00 ",321100,Social Community Care Supplies & Services - Children
5404975,CARETECH COMMUNITY SERVICES LIMITED,Adult Social Care,Adults,Homecare Fees,,22/01/2021," 13,249.16 ",321000,Social Community Care Supplies & Services - Adult
5404971,CARETECH COMMUNITY SERVICES LIMITED,Adult Social Care,Adults,Nursing Home Long Stay Fees,,22/01/2021," 9,796.00 ",321000,Social Community Care Supplies & Services - Adult
5406280,CARETECH COMMUNITY SERVICES LIMITED,Adult Social Care,Adults,Nursing Home Long Stay Fees,,22/01/2021," 9,796.00 ",321000,Social Community Care Supplies & Services - Adult
5404972,CARETECH COMMUNITY SERVICES LIMITED,Adult Social Care,Adults,Residential Home Long Stay Fees,,22/01/2021," 3,671.96 ",321000,Social Community Care Supplies & Services - Adult
5404977,CARETECH COMMUNITY SERVICES LIMITED,Adult Social Care,Adults,Residential Home Long Stay Fees,,22/01/2021," 2,914.80 ",321000,Social Community Care Supplies & Services - Adult
5404982,CARETECH COMMUNITY SERVICES LIMITED,Adult Social Care,Adults,Residential Home Long Stay Fees,,22/01/2021," 2,914.80 ",321000,Social Community Care Supplies & Services - Adult
5404979,CARETECH COMMUNITY SERVICES LIMITED,Adult Social Care,Adults,Residential Home Long Stay Fees,,22/01/2021," 6,801.20 ",321000,Social Community Care Supplies & Services - Adult
5404976,CARETECH COMMUNITY SERVICES LIMITED,Adult Social Care,Adults,Residential Home Long Stay Fees,,22/01/2021," 5,661.92 ",321000,Social Community Care Supplies & Services - Adult
5404973,CARETECH COMMUNITY SERVICES LIMITED,Adult Social Care,Adults,Residential Home Long Stay Fees,,22/01/2021," 6,315.40 ",321000,Social Community Care Supplies & Services - Adult
5406277,CARETECH COMMUNITY SERVICES LIMITED,Adult Social Care,Adults,Nursing Home Long Stay Fees,,22/01/2021," 19,592.00 ",321000,Social Community Care Supplies & Services - Adult
5404987,CARETECH COMMUNITY SERVICES LIMITED,Adult Social Care,Adults,Residential Home Long Stay Fees,,22/01/2021," 2,161.80 ",321000,Social Community Care Supplies & Services - Adult
5404980,CARETECH COMMUNITY SERVICES LIMITED,Adult Social Care,Adults,Residential Home Long Stay Fees,,22/01/2021," 3,886.40 ",321000,Social Community Care Supplies & Services - Adult
5404974,CARETECH COMMUNITY SERVICES LIMITED,Adult Social Care,Adults,Residential Home Long Stay Fees,,22/01/2021," 3,400.60 ",321000,Social Community Care Supplies & Services - Adult
5404978,CARETECH COMMUNITY SERVICES LIMITED,Adult Social Care,Adults,Residential Home Long Stay Fees,,22/01/2021," 5,295.24 ",321000,Social Community Care Supplies & Services - Adult
5404983,CARETECH COMMUNITY SERVICES LIMITED,Adult Social Care,Adults,Homecare Fees,,22/01/2021," 5,343.80 ",321000,Social Community Care Supplies & Services - Adult
5404986,CARETECH COMMUNITY SERVICES LIMITED,Adult Social Care,Adults,Residential Home Long Stay Fees,,22/01/2021," 4,323.64 ",321000,Social Community Care Supplies & Services - Adult
5404826,CARETECH COMMUNITY SERVICES LIMITED,Adult Social Care,Adults,Residential Home Long Stay Fees,,22/01/2021," 4,323.64 ",321000,Social Community Care Supplies & Services - Adult
5405001,DHL Parcel UK Ltd (UK Mail),Exchequer,Governance,Printing And Stationery,,22/01/2021," 1,556.58 ",300000,Mail Services
5406554,Infinity Initiatives,Operations and Neighbourhoods,Operations and Neighbourhoods,Grants to Organisations,,22/01/2021," 10,000.00 ",-999999,Unclassifiable
5404968,Orange Grove Fostercare LTD,Childrens Services,Children's Services,Foster Carer Agency Fees,,22/01/2021," 3,669.48 ",321100,Social Community Care Supplies & Services - Children
5404970,Orange Grove Fostercare LTD,Childrens Services,Children's Services,Foster Carer Agency Fees,,22/01/2021," 3,680.63 ",321100,Social Community Care Supplies & Services - Children
5404966,Orange Grove Fostercare LTD,Childrens Services,Children's Services,Foster Carer Agency Fees,,22/01/2021," 3,497.33 ",321100,Social Community Care Supplies & Services - Children
5404965,Orange Grove Fostercare LTD,Childrens Services,Children's Services,Foster Carer Agency Fees,,22/01/2021," 3,551.45 ",321100,Social Community Care Supplies & Services - Children
5404967,Orange Grove Fostercare LTD,Childrens Services,Children's Services,Foster Carer Agency Fees,,22/01/2021," 3,551.45 ",321100,Social Community Care Supplies & Services - Children
5404969,Orange Grove Fostercare LTD,Childrens Services,Children's Services,Foster Carer Agency Fees,,22/01/2021," 3,378.21 ",321100,Social Community Care Supplies & Services - Children
5405301,XMA LIMITED,GMPF (FX),GMPF (FX),Computer Hardware Maintenance Costs,,22/01/2021," 3,062.91 ",270000,Information Communication Technology
5407030,GREATER MANCHESTER COMBINED AUTHORITY,Corporate Costs,Corporate Costs,Contributions,,22/01/2021," 744,886.00 ",-999999,Unclassifiable
5406855,R & P PRINTERS,GMPF (FX),GMPF (FX),Printing And Stationery,,22/01/2021, 651.62 ,190000,Facilities & Management Services
5404860,"TAMESIDE, OLDHAM AND GLOSSOP MIND",Population Health,Population Health,Professional Services,,22/01/2021," 3,656.25 ",321000,Social Community Care Supplies & Services - Adult
5404877,STAFF CARE SERVICES,Adult Social Care,Adults,Professional Consultancy Services,,22/01/2021, 675.00 ,260000,Human Resources
5404962,PHOENIX SOFTWARE LTD,(blank),(blank),Computer Software,,22/01/2021," 18,458.00 ",270000,Information Communication Technology
5405258,PHOENIX SOFTWARE LTD,(blank),(blank),Computer Software,,22/01/2021," 5,766.53 ",270000,Information Communication Technology
5404843,redacted,Childrens Services,Children's Services,Childrens Homes Outside Local Authority Fees,Redacted Supplier,22/01/2021," 15,278.66 ",321100,Social Community Care Supplies & Services - Children
5404859,redacted,Childrens Services,Children's Services,Childrens Homes Outside Local Authority Fees,Redacted Supplier,22/01/2021," 15,278.66 ",321100,Social Community Care Supplies & Services - Children
5404863,redacted,Childrens Services,Children's Services,Childrens Homes Outside Local Authority Fees,Redacted Supplier,22/01/2021," 15,278.66 ",321100,Social Community Care Supplies & Services - Children
5404864,redacted,Childrens Services,Children's Services,Childrens Homes Outside Local Authority Fees,Redacted Supplier,22/01/2021," 15,278.66 ",321100,Social Community Care Supplies & Services - Children
5404845,redacted,Childrens Services,Children's Services,Childrens Homes Outside Local Authority Fees,Redacted Supplier,22/01/2021," 30,557.01 ",321100,Social Community Care Supplies & Services - Children
5404862,redacted,Childrens Services,Children's Services,Childrens Homes Outside Local Authority Fees,Redacted Supplier,22/01/2021," 20,592.99 ",321100,Social Community Care Supplies & Services - Children
5404861,redacted,Childrens Services,Children's Services,Childrens Homes Outside Local Authority Fees,Redacted Supplier,22/01/2021," 3,742.01 ",321100,Social Community Care Supplies & Services - Children
5404853,redacted,Childrens Services,Children's Services,Childrens Homes Outside Local Authority Fees,Redacted Supplier,22/01/2021," 3,542.99 ",321100,Social Community Care Supplies & Services - Children
5405189,K P DODD CONSTRUCTION LTD,Housing,Director of Place,Minor Works - Building,,22/01/2021, 595.00 ,399999,"Works - Construction, Repair & Maintenance"
5405190,K P DODD CONSTRUCTION LTD,Housing,Director of Place,Minor Works - Building,,22/01/2021, 800.00 ,399999,"Works - Construction, Repair & Maintenance"
5407434,Ashton United in the Community,(blank),(blank),Grants to Organisations,,25/01/2021," 9,345.00 ",400000,Non 3rd Party spend  
470892,AGGREGATE INDUSTRIES UK LIMITED,Operations and Neighbourhoods,Operations and Neighbourhoods,General Materials,,25/01/2021," 9,109.90 ",230000,Highway Equipment & Materials
470892,ARCO LIMITED,Civil Engineers,Director of Place,Debits Goods Received,,25/01/2021, 878.70 ,140000,Clothing
470892,EAGLE CIVIL ENGINEERING LTD,Operations and Neighbourhoods,Operations and Neighbourhoods,Sub-contractor Services,,25/01/2021," 22,991.45 ",391411,"Works - Construction, Repair & Maintenance"
470892,PG FABRICATIONS,(blank),(blank),Sub-contractor Services,,25/01/2021," 10,000.00 ",390000,"Works - Construction, Repair & Maintenance"
470892,TARMAC CENTRAL LIMITED,Operations and Neighbourhoods,Operations and Neighbourhoods,General Materials,,25/01/2021," 6,528.69 ",230000,Highway Equipment & Materials
470892,WILDE CONSULTING ENGINEERS,Operations and Neighbourhoods,Operations and Neighbourhoods,Sub-contractor Services,,25/01/2021," 5,134.50 ",150000,Consultancy
470892,WOLSELEY UK LTD,Civil Engineers,Director of Place,Debits Goods Received,,25/01/2021," 2,492.58 ",230000,Highway Equipment & Materials
470892,WOLSELEY UK LTD,Operations and Neighbourhoods,Operations and Neighbourhoods,General Materials,,25/01/2021," 1,072.40 ",230000,Highway Equipment & Materials
470892,4WAY CONSULTING LTD,(blank),(blank),Street Lighting Works,,25/01/2021," 2,775.83 ",180000,Environmental Services
470892,4WAY CONSULTING LTD,Operations and Neighbourhoods,Operations and Neighbourhoods,Engineers Recharge - Street Lighting Painting (Internal),,25/01/2021, 574.88 ,180000,Environmental Services
470892,HSS HIRE SERVICE GROUP  PLC,Operations and Neighbourhoods,Operations and Neighbourhoods,General Materials,,25/01/2021, 669.90 ,380000,Vehicle Management
470892,STALYBRIDGE READYMIX LTD,Operations and Neighbourhoods,Operations and Neighbourhoods,General Materials,,25/01/2021, 680.00 ,231200,Highway Equipment & Materials
470892,Saint-Gobain Building Distribution Limited t/a Benchmark Building Supplies,Civil Engineers,Director of Place,Debits Goods Received,,25/01/2021," 1,346.00 ",100000,Building Construction Materials
470892,NORTHWEST UTILITY SOLUTIONS LTD,Operations and Neighbourhoods,Operations and Neighbourhoods,Sub-contractor Services,,25/01/2021," 9,085.00 ",370000,Utilities
470892,TRAFFIC DIRECT LTD,(blank),(blank),Traffic Signs,,25/01/2021," 2,400.00 ",350000,Street & Traffic Management
470892,TRAFFIC DIRECT LTD,Operations and Neighbourhoods,Operations and Neighbourhoods,Sub-contractor Services,,25/01/2021," 3,200.00 ",350000,Street & Traffic Management
470892,COMPASS MINERALS UK LTD,Civil Engineers,Director of Place,Debits Goods Received,,25/01/2021," 12,556.85 ",230000,Highway Equipment & Materials
470892,Stamford Products Limited,Operations and Neighbourhoods,Operations and Neighbourhoods,General Materials,,25/01/2021," 2,100.00 ",180000,Environmental Services
470892,ROCH NDT SERVICES,Engineers Client,Director of Place,Street Lighting Works,,25/01/2021, 960.00 ,150000,Consultancy
470892,ALLROADS TRAINING,Operations and Neighbourhoods,Operations and Neighbourhoods,Training Course Costs,,25/01/2021," 1,103.84 ",260000,Human Resources
5406854,ISW CSC Limited,Childrens Services,Children's Services,Living With Formal Support,,25/01/2021," 1,145.00 ",260000,Human Resources
5406849,ISW CSC Limited,Childrens Services,Children's Services,Living With Formal Support,,25/01/2021," 1,250.00 ",260000,Human Resources
5406899,ISW CSC Limited,Childrens Services,Children's Services,Living With Formal Support,,25/01/2021," 1,250.00 ",260000,Human Resources
5406833,ISW CSC Limited,Childrens Services,Children's Services,Living With Formal Support,,25/01/2021," 1,160.00 ",260000,Human Resources
5406845,ISW CSC Limited,Childrens Services,Children's Services,Living With Formal Support,,25/01/2021," 1,160.00 ",260000,Human Resources
5406473,Bloom Procurement Services Limited,Population Health,Population Health,Professional Services,,25/01/2021," 8,662.50 ",150000,Consultancy
5407421,redacted,Operations and Neighbourhoods,Operations and Neighbourhoods,Other Accommodation Related Costs,,25/01/2021, 600.00 ,400000,Non 3rd Party spend  
5406821,GREENSCAPE,Education,Children's Services,Hired Transport,,25/01/2021, 600.00 ,390000,"Works - Construction, Repair & Maintenance"
5404605,TAMESIDE AND GLOSSOP INTEGRATED CARE NHS FOUNDATION TRUST,Adult Social Care,Adults,Agency Staff,,25/01/2021," 8,445.99 ",310000,Healthcare
5406256,STOCKPORT MBC,Population Health,Population Health,Professional Services,,25/01/2021," 106,606.10 ",321100,Social Community Care Supplies & Services - Children
5392646,MHR International UK Limited,People and Workforce Development,Governance,Professional Consultancy Services,,25/01/2021," 4,450.50 ",270000,Information Communication Technology
5407487,ISW CSC Limited,Childrens Services,Children's Services,Living With Formal Support,,26/01/2021," 1,160.00 ",260000,Human Resources
5407493,ISW CSC Limited,Childrens Services,Children's Services,Living With Formal Support,,26/01/2021," 1,160.00 ",260000,Human Resources
5407495,ISW CSC Limited,Childrens Services,Children's Services,Living With Formal Support,,26/01/2021," 1,160.00 ",260000,Human Resources
5407496,ISW CSC Limited,Childrens Services,Children's Services,Living With Formal Support,,26/01/2021," 1,160.00 ",260000,Human Resources
5407482,ISW CSC Limited,Childrens Services,Children's Services,Living With Formal Support,,26/01/2021, 980.00 ,260000,Human Resources
5407481,ISW CSC Limited,Childrens Services,Children's Services,Living With Formal Support,,26/01/2021, 980.00 ,260000,Human Resources
5407483,ISW CSC Limited,Childrens Services,Children's Services,Living With Formal Support,,26/01/2021," 1,250.00 ",260000,Human Resources
5407486,ISW CSC Limited,Childrens Services,Children's Services,Living With Formal Support,,26/01/2021," 1,250.00 ",260000,Human Resources
5407490,ISW CSC Limited,Childrens Services,Children's Services,Living With Formal Support,,26/01/2021," 1,250.00 ",260000,Human Resources
5407492,ISW CSC Limited,Childrens Services,Children's Services,Living With Formal Support,,26/01/2021," 1,250.00 ",260000,Human Resources
5407485,ISW CSC Limited,Childrens Services,Children's Services,Living With Formal Support,,26/01/2021," 1,520.00 ",260000,Human Resources
5407484,ISW CSC Limited,Childrens Services,Children's Services,Living With Formal Support,,26/01/2021, 950.00 ,260000,Human Resources
5407491,ISW CSC Limited,Childrens Services,Children's Services,Living With Formal Support,,26/01/2021," 1,070.00 ",260000,Human Resources
5407489,ISW CSC Limited,Childrens Services,Children's Services,Living With Formal Support,,26/01/2021, 850.00 ,260000,Human Resources
5407480,ISW CSC Limited,Childrens Services,Children's Services,Living With Formal Support,,26/01/2021, 870.00 ,260000,Human Resources
5399804,CALL PLUS - t/a BEING THERE,Contingency,Contingency,COVID-19 Infection Control Fund,,26/01/2021, 939.03 ,UNCLASS,Unclassifiable
5407590,PARKLAND PROPERTIES LTD,Operations and Neighbourhoods,Operations and Neighbourhoods,Other Accommodation Related Costs,,26/01/2021, 790.00 ,-999999,Unclassifiable
5405775,COMMUNITY INTEGRATED CARE,Adult Social Care,Adults,Homecare Fees,,26/01/2021, 670.80 ,321000,Social Community Care Supplies & Services - Adult
5405779,COMMUNITY INTEGRATED CARE,Adult Social Care,Adults,Homecare Fees,,26/01/2021," 109,583.33 ",321000,Social Community Care Supplies & Services - Adult
5405778,COMMUNITY INTEGRATED CARE,Adult Social Care,Adults,Homecare Fees,,26/01/2021," 119,416.67 ",321000,Social Community Care Supplies & Services - Adult
5406623,INSPIREDSPACES TAMESIDE LTD,Cultural and Customer Services,"Community,Environmental,Adult and Health Services",External  Consultants,,26/01/2021, 750.00 ,390000,"Works - Construction, Repair & Maintenance"
5407594,BARCHAM TREES PLC,Operations and Neighbourhoods,Operations and Neighbourhoods,General Materials,,26/01/2021," 4,926.00 ",240000,Horticultural
460419,AUDEN HOUSE RESIDENTIAL HOME,Adult Social Care,Adults,Nursing Home Long Stay Fees,,27/01/2021," 22,222.89 ",321000,Social Community Care Supplies & Services - Adult
460419,BELMONT PARKHILL LTD,Adult Social Care,Adults,Nursing Home Long Stay Fees,,27/01/2021," 37,146.60 ",321000,Social Community Care Supplies & Services - Adult
460419,BLACKCLIFFE LTD,Adult Social Care,Adults,Nursing Home Long Stay Fees,,27/01/2021," 132,269.34 ",321000,Social Community Care Supplies & Services - Adult
460419,BOURNE HOUSE RESIDENTIAL HOME,Adult Social Care,Adults,Nursing Home Long Stay Fees,,27/01/2021," 27,931.17 ",321000,Social Community Care Supplies & Services - Adult
460419,BROOKVALE,Adult Social Care,Adults,Nursing Home Long Stay Fees,,27/01/2021," 8,033.96 ",321000,Social Community Care Supplies & Services - Adult
460419,BROUGHTON HOUSE HOME FOR  EX-SERVICE PERSONNEL,Adult Social Care,Adults,Nursing Home Long Stay Fees,,27/01/2021," 1,314.97 ",321000,Social Community Care Supplies & Services - Adult
460419,CHADDERTON TOTAL CAREUNIT LTD,Adult Social Care,Adults,Nursing Home Long Stay Fees,,27/01/2021," 4,358.73 ",321000,Social Community Care Supplies & Services - Adult
460419,CLARKSON HOUSE,Adult Social Care,Adults,Nursing Home Long Stay Fees,,27/01/2021," 26,950.99 ",321000,Social Community Care Supplies & Services - Adult
460419,DOMAIN CARE NORTH WEST LTD,Adult Social Care,Adults,Nursing Home Long Stay Fees,,27/01/2021," 8,212.39 ",321100,Social Community Care Supplies & Services - Children
460419,FAIRFIELD VIEW CARE LTD,Adult Social Care,Adults,Nursing Home Long Stay Fees,,27/01/2021," 54,978.69 ",321000,Social Community Care Supplies & Services - Adult
460419,HC ONE OF A KIND - KINGS PARK,Adult Social Care,Adults,Nursing Home Long Stay Fees,,27/01/2021," 43,476.70 ",321000,Social Community Care Supplies & Services - Adult
460419,LAUREL BANK RESIDENTIAL CARE HOME LTD,Adult Social Care,Adults,Nursing Home Long Stay Fees,,27/01/2021," 10,780.40 ",321000,Social Community Care Supplies & Services - Adult
460419,MARPLE DALE HALL LTD,Adult Social Care,Adults,Nursing Home Long Stay Fees,,27/01/2021," 5,053.35 ",321000,Social Community Care Supplies & Services - Adult
460419,MOSS COTTAGE NURSING HOME,Adult Social Care,Adults,Nursing Home Long Stay Fees,,27/01/2021," 41,557.65 ",321000,Social Community Care Supplies & Services - Adult
460419,OAKWOOD CARE CENTRE,Adult Social Care,Adults,Nursing Home Long Stay Fees,,27/01/2021," 20,369.41 ",321000,Social Community Care Supplies & Services - Adult
460419,POLEBANK HALL RESIDENTIAL CARE HOME LTD,Adult Social Care,Adults,Nursing Home Long Stay Fees,,27/01/2021," 4,507.08 ",321100,Social Community Care Supplies & Services - Children
460419,ST GEORGE'S NURSING HOME (OLDHAM) LTD,Adult Social Care,Adults,Nursing Home Long Stay Fees,,27/01/2021," 40,968.50 ",321000,Social Community Care Supplies & Services - Adult
460419,ST LAWRENCES LODGE,Adult Social Care,Adults,Nursing Home Long Stay Fees,,27/01/2021," 20,188.11 ",321000,Social Community Care Supplies & Services - Adult
460419,STALEY HOUSE EPH,Adult Social Care,Adults,Nursing Home Long Stay Fees,,27/01/2021," 32,874.75 ",321000,Social Community Care Supplies & Services - Adult
460419,SUNNY BANK PRS LTD,Adult Social Care,Adults,Nursing Home Long Stay Fees,,27/01/2021," 2,797.48 ",321000,Social Community Care Supplies & Services - Adult
460419,THE JOSEPH COX CHARITY,Adult Social Care,Adults,Nursing Home Long Stay Fees,,27/01/2021," 6,191.58 ",321000,Social Community Care Supplies & Services - Adult
460419,THE VICARAGE RESIDENTIAL CARE HOME,Adult Social Care,Adults,Nursing Home Long Stay Fees,,27/01/2021," 40,734.50 ",321000,Social Community Care Supplies & Services - Adult
460419,THORNCLIFFE GRANGE NURSING HOME,Adult Social Care,Adults,Nursing Home Long Stay Fees,,27/01/2021," 63,907.29 ",321000,Social Community Care Supplies & Services - Adult
460419,HEATHCOTES M LTD,Adult Social Care,Adults,Nursing Home Long Stay Fees,,27/01/2021," 24,192.89 ",321000,Social Community Care Supplies & Services - Adult
460419,BROOKFIELD RESIDENTIAL CARE HOME,Adult Social Care,Adults,Nursing Home Long Stay Fees,,27/01/2021," 2,661.31 ",321000,Social Community Care Supplies & Services - Adult
460419,WOODLAND CARE HOME,Adult Social Care,Adults,Nursing Home Long Stay Fees,,27/01/2021," 8,881.10 ",321000,Social Community Care Supplies & Services - Adult
460419,FERN BANK THERAPEUTIC COMMUNITY LTD,Adult Social Care,Adults,Nursing Home Long Stay Fees,,27/01/2021," 17,853.53 ",321000,Social Community Care Supplies & Services - Adult
460419,Hyde Nursing Care Home t/a Meridian Healthcare LTD,Adult Social Care,Adults,Nursing Home Long Stay Fees,,27/01/2021," 39,725.83 ",321000,Social Community Care Supplies & Services - Adult
460419,Millbrook Care Home t/a Meridian Healthcare LTD,Adult Social Care,Adults,Nursing Home Long Stay Fees,,27/01/2021," 10,546.28 ",321000,Social Community Care Supplies & Services - Adult
460419,Sandon House t/a Meridian Healthcare LTD,Adult Social Care,Adults,Nursing Home Long Stay Fees,,27/01/2021," 51,330.75 ",321000,Social Community Care Supplies & Services - Adult
460419,Stamford Court Nursing t/a Meridian Healthcare LTD,Adult Social Care,Adults,Nursing Home Long Stay Fees,,27/01/2021," 89,844.41 ",321000,Social Community Care Supplies & Services - Adult
460419,Sunnyside Residential Care Home t/a Meridian Healthcare LTD,Adult Social Care,Adults,Nursing Home Long Stay Fees,,27/01/2021," 43,668.20 ",321000,Social Community Care Supplies & Services - Adult
460419,Beeches t/a Meridian Healthcare LTD,Adult Social Care,Adults,Nursing Home Long Stay Fees,,27/01/2021," 43,963.60 ",321000,Social Community Care Supplies & Services - Adult
460419,Yew Trees t/a Meridian Healthcare LTD,Adult Social Care,Adults,Nursing Home Long Stay Fees,,27/01/2021," 82,176.02 ",321000,Social Community Care Supplies & Services - Adult
460419,Daisy Nook House t/a Meridian Healthcare LTD,Adult Social Care,Adults,Nursing Home Long Stay Fees,,27/01/2021," 49,023.74 ",321000,Social Community Care Supplies & Services - Adult
460419,Fir Trees t/a Meridian Healthcare LTD,Adult Social Care,Adults,Nursing Home Long Stay Fees,,27/01/2021," 58,169.36 ",321000,Social Community Care Supplies & Services - Adult
460419,Greatwood House t/a Meridian Healthcare LTD,Adult Social Care,Adults,Nursing Home Long Stay Fees,,27/01/2021," 43,915.39 ",321000,Social Community Care Supplies & Services - Adult
460419,Holme Lea t/a Meridian Healthcare LTD,Adult Social Care,Adults,Nursing Home Long Stay Fees,,27/01/2021," 92,856.73 ",321000,Social Community Care Supplies & Services - Adult
460419,Hurst Hall t/a Meridian Healthcare LTD,Adult Social Care,Adults,Nursing Home Long Stay Fees,,27/01/2021," 63,442.49 ",321000,Social Community Care Supplies & Services - Adult
460419,The Sycamores t/a Meridian Health Care LTD,Adult Social Care,Adults,Nursing Home Long Stay Fees,,27/01/2021," 70,984.02 ",321000,Social Community Care Supplies & Services - Adult
460419,TRACS Limited,Adult Social Care,Adults,Nursing Home Long Stay Fees,,27/01/2021," 6,501.36 ",321000,Social Community Care Supplies & Services - Adult
460419,RIVERSIDE CARE CENTRE,Adult Social Care,Adults,Nursing Home Long Stay Fees,,27/01/2021," 139,034.41 ",321000,Social Community Care Supplies & Services - Adult
460419,Clarence Park Care Home,Adult Social Care,Adults,Nursing Home Long Stay Fees,,27/01/2021," 3,186.88 ",321000,Social Community Care Supplies & Services - Adult
460419,HC-ONE LIMITED - BROOKDALE VIEW,Adult Social Care,Adults,Nursing Home Long Stay Fees,,27/01/2021," 4,220.48 ",321000,Social Community Care Supplies & Services - Adult
460419,SPRINGFIELD HOUSE CARE HOME,Adult Social Care,Adults,Nursing Home Long Stay Fees,,27/01/2021," 2,200.00 ",321000,Social Community Care Supplies & Services - Adult
460419,Elysium Healthcare,Adult Social Care,Adults,Nursing Home Long Stay Fees,,27/01/2021," 13,945.75 ",321000,Social Community Care Supplies & Services - Adult
460419,EAST CHESHIRE HOUSING CONSORTIUM,Adult Social Care,Adults,Nursing Home Long Stay Fees,,27/01/2021," 2,995.18 ",321000,Social Community Care Supplies & Services - Adult
460419,FRANCIS HOUSE FAMILIES LTD,Adult Social Care,Adults,Nursing Home Long Stay Fees,,27/01/2021," 7,457.08 ",321000,Social Community Care Supplies & Services - Adult
460419,ZZ DUP - The Coach House,Adult Social Care,Adults,Nursing Home Long Stay Fees,,27/01/2021," 33,388.80 ",321000,Social Community Care Supplies & Services - Adult
460419,HEATHCOTES THE ROOKERY,Adult Social Care,Adults,Nursing Home Long Stay Fees,,27/01/2021," 17,502.06 ",321000,Social Community Care Supplies & Services - Adult
460419,EHC MOSTON GRANGE LTD,Adult Social Care,Adults,Nursing Home Long Stay Fees,,27/01/2021," 5,081.46 ",321000,Social Community Care Supplies & Services - Adult
460419,RUSHCLIFFE CARE LTD T/A OAKFORD MANOR NURSING HOME,Adult Social Care,Adults,Nursing Home Long Stay Fees,,27/01/2021," 7,440.30 ",321000,Social Community Care Supplies & Services - Adult
460419,MAYFIELD CARE HOME,Adult Social Care,Adults,Nursing Home Long Stay Fees,,27/01/2021," 2,313.75 ",321000,Social Community Care Supplies & Services - Adult
460419,D R Price Associates Limited t/a Chataway Nursing Home,Adult Social Care,Adults,Nursing Home Long Stay Fees,,27/01/2021," 3,293.17 ",321000,Social Community Care Supplies & Services - Adult
460419,BOWERFIELD COURT,Adult Social Care,Adults,Nursing Home Long Stay Fees,,27/01/2021," 3,380.02 ",321000,Social Community Care Supplies & Services - Adult
460419,The Coppice Care Home,Adult Social Care,Adults,Nursing Home Long Stay Fees,,27/01/2021," 2,546.43 ",311600,Healthcare
460419,MHA t/a LAUREL COURT CARE CENTRE,Adult Social Care,Adults,Nursing Home Long Stay Fees,,27/01/2021," 3,188.88 ",321017,Social Community Care Supplies & Services - Adult
460419,ROEFIELD SPECIALIST CARE LIMITED t/a THISTLE MANOR,Adult Social Care,Adults,Nursing Home Long Stay Fees,,27/01/2021," 15,314.12 ",321000,Social Community Care Supplies & Services - Adult
460419,EHC OAKLAND HOUSE LTD,Adult Social Care,Adults,Nursing Home Long Stay Fees,,27/01/2021," 27,335.36 ",321000,Social Community Care Supplies & Services - Adult
460419,HC ONE LIMITED - AVERILL HOUSE,Adult Social Care,Adults,Nursing Home Long Stay Fees,,27/01/2021," 2,464.32 ",321000,Social Community Care Supplies & Services - Adult
460419,HC ONE Limited - Beechcroft,Adult Social Care,Adults,Nursing Home Long Stay Fees,,27/01/2021," 2,659.40 ",321000,Social Community Care Supplies & Services - Adult
460419,Cartwright Care Balmoral Management Ltd,Adult Social Care,Adults,Nursing Home Long Stay Fees,,27/01/2021," 40,208.15 ",321017,Social Community Care Supplies & Services - Adult
460419,HC ONE LIMITED - APPLETON LODGE,Adult Social Care,Adults,Nursing Home Long Stay Fees,,27/01/2021," 2,750.54 ",410000,Social Community Care Supplies & Services
460419,SOUTHERN CROSS HEALTHCARE,Adult Social Care,Adults,Nursing Home Long Stay Fees,,27/01/2021," 2,551.32 ",321000,Social Community Care Supplies & Services - Adult
460419,NYMS SERVICES - PENNINE CARE CENTRE,Adult Social Care,Adults,Nursing Home Long Stay Fees,,27/01/2021," 25,953.58 ",311600,Healthcare
460419,Thames House t/a Exemplar Health Care Partnerships LTD,Adult Social Care,Adults,Nursing Home Long Stay Fees,,27/01/2021," 13,467.20 ",321000,Social Community Care Supplies & Services - Adult
460419,Regency Hall Care Home,Adult Social Care,Adults,Nursing Home Long Stay Fees,,27/01/2021," 3,764.29 ",321000,Social Community Care Supplies & Services - Adult
460419,Halcyon Care Limited trading as Manor Care Centre,Adult Social Care,Adults,Nursing Home Long Stay Fees,,27/01/2021," 2,307.29 ",321000,Social Community Care Supplies & Services - Adult
460419,THE LIGHT HOUSE (Bloomcare Group),Adult Social Care,Adults,Nursing Home Long Stay Fees,,27/01/2021," 16,828.56 ",321000,Social Community Care Supplies & Services - Adult
460419,ASHGROVE HOUSE CARE LTD,Adult Social Care,Adults,Nursing Home Long Stay Fees,,27/01/2021," 2,180.00 ",410000,Social Community Care Supplies & Services
460419,CYGNET LEARNING DISABILITIES LTD,Adult Social Care,Adults,Nursing Home Long Stay Fees,,27/01/2021," 10,151.68 ",321000,Social Community Care Supplies & Services - Adult
460419,SPINAL UNIT ACTION GROUP,Adult Social Care,Adults,Nursing Home Long Stay Fees,,27/01/2021," 2,880.00 ",321000,Social Community Care Supplies & Services - Adult
460419,Postgrad Ltd - Treelands Care Home,Adult Social Care,Adults,Nursing Home Long Stay Fees,,27/01/2021," 8,759.35 ",310000,Healthcare
460419,Northern Healthcare Limited tas Holland House/Montgomery House,Adult Social Care,Adults,Nursing Home Long Stay Fees,,27/01/2021," 9,026.89 ",321000,Social Community Care Supplies & Services - Adult
460419,ANCHOR HANOVER GROUP TAS HATTON GRANGE CARE HOME,Adult Social Care,Adults,Nursing Home Long Stay Fees,,27/01/2021," 26,927.10 ",321000,Social Community Care Supplies & Services - Adult
460419,MERIDIAN HEALTH CARE LTD TAS GUIDE LANE,Adult Social Care,Adults,Nursing Home Long Stay Fees,,27/01/2021," 39,664.03 ",321000,Social Community Care Supplies & Services - Adult
460419,MBI SOCIAL CARE LTD TAS DOWNSHAW LODGE CARE HOME,Adult Social Care,Adults,Nursing Home Long Stay Fees,,27/01/2021," 26,781.78 ",321000,Social Community Care Supplies & Services - Adult
460419,ADVINIA HEALTH CARE LTD TAS GORTON PARKS CARE HOME,Adult Social Care,Adults,Nursing Home Long Stay Fees,,27/01/2021," 4,775.81 ",321000,Social Community Care Supplies & Services - Adult
460419,PARTNERSHIP CARING LTD TAS FIRBANK HOUSE NURSING & RESIDENTIAL CARE HOME,Adult Social Care,Adults,Nursing Home Long Stay Fees,,27/01/2021," 62,655.52 ",321000,Social Community Care Supplies & Services - Adult
460419,DEVONSHIRE CARE LIMITED TAS CHARNLEY HOUSE,Adult Social Care,Adults,Nursing Home Long Stay Fees,,27/01/2021," 31,226.89 ",321000,Social Community Care Supplies & Services - Adult
